Workbook

Sheet MODIFICATION REQUEST
Q1: STATE OF CALIFORNIA
A2: MODIFICATION REQUEST - (FORM BSCC 223.1 (Revised 04/20) | Q2: BOARD OF STATE AND COMMUNITY CORRECTIONS
B5: Line-Item Change | G5: Budget Modification | M5: Project Income Allocation
B6: Check this box if you are modifying narrative details within a line item (or line items) but not changing the budget. | G6: Check this box if you are modifying line-item dollar amounts by moving funds from one line-item to another. | M6: Check this box if you are allocating earned project income.
A8: Important Note: You must provide a detailed justification for all modification requests. All modifications require BSCC Field Representative approval.
A10: Grantee: | B10: ='INVOICE 1'!B7 -> City of Pasadena Public Health Department | K10: Grant Program: | M10: ='INVOICE 1'!B5 -> Program Name
B11: 14 CALVIP 18 | F11: 2021-05-01 | I11: 2021-08-16
A12: Address | K12: Lead Public Agency: | M12: ='INVOICE 1'!I7 -> City of Pasadena Public Health Department
A16: Contract #: | B16: ='INVOICE 1'!B9 -> 853-17 | M16: Modification Request # | N16: 1
A18: Term: | B18: ='INVOICE 1'!F9 -> 2018-05-01 | C18: ='INVOICE 1'!G9 -> TO | E18: ='INVOICE 1'!I9 -> 2021-08-15 | M18: Effective on Invoice # | N18: 1
A20: Line Items | B20: Current Budget | F20: Available Budget | J20: Changes (+/-) | N20: Modified Budget
B21: Grant Funds | C21: Cash Match | D21: In-kind Match | E21: TOTAL | F21: Grant Funds | G21: Cash Match | H21: In-kind Match | I21: TOTAL | J21: Grant Funds | K21: Cash Match | L21: In-kind Match | M21: TOTAL | N21: Grant Funds | O21: Cash Match | P21: In-kind Match | Q21: TOTAL
A22: Salaries & Benefits | B22: 89578 | C22: 0 | D22: 340797 | E22: =SUM(B22:D22) -> 430375 | F22: 89578 | G22: 0 | H22: 340797 | I22: =SUM(F22:H22) -> 430375 | J22: 70422 | K22: 270584 | L22: -340797 | M22: =SUM(J22:L22) -> 209 | N22: =SUM(B22,J22) -> 160000 | O22: =SUM(C22,K22) -> 270584 | P22: 0 | Q22: =SUM(N22:P22) -> 430584
A23: Services & Supplies | B23: 5325 | C23: 0 | D23: 0 | E23: 5325 | F23: 5325 | G23: 0 | H23: 0 | I23: 5325 | J23: 9000 | K23: 0 | L23: 0 | M23: =SUM(J23:L23) -> 9000 | N23: 14325 | O23: 0 | P23: 0 | Q23: =SUM(N23:P23) -> 14325
A24: Professional Services | B24: 5000 | C24: 0 | D24: 0 | E24: 5000 | F24: 5000 | G24: 0 | H24: 0 | I24: 5000 | J24: 44626 | K24: 0 | L24: 0 | M24: 44626 | N24: 49626 | O24: 0 | P24: 0 | Q24: 49626
A25: CBO Subcontracts | B25: 117642 | C25: 0 | D25: 0 | E25: 117642 | F25: 117642 | G25: 0 | H25: 0 | I25: 117642 | J25: 131089 | K25: 0 | L25: 0 | M25: 131089 | N25: 248731 | O25: 0 | P25: 0 | Q25: 248731
A26: Indirect Costs | B26: 8958 | C26: 0 | D26: 34080 | E26: 43038 | F26: 8958 | G26: 0 | H26: 34080 | I26: 43038 | J26: 7042 | K26: 27058 | L26: -34080 | M26: 20 | N26: 16000 | O26: 27058 | P26: 0 | Q26: 43058
A27: Fixed Assets/Equipment | B27: 0 | C27: 0 | D27: 0 | E27: 0 | F27: 0 | G27: 0 | H27: 10000 | I27: 10000 | J27: 0 | K27: 0 | L27: 0 | M27: 0 | N27: 0 | O27: 0 | P27: 0 | Q27: 0
A28: Project Evaluation | B28: 0 | C28: 0 | D28: 10000 | E28: 10000 | F28: 0 | G28: 0 | H28: 0 | I28: 0 | J28: 0 | K28: 0 | L28: 0 | M28: 0 | N28: 0 | O28: 0 | P28: 10000 | Q28: 10000
A29: Other | B29: 8780 | C29: 0 | D29: 96000 | E29: 104780 | F29: 8780 | G29: 0 | H29: 96000 | I29: 104780 | J29: 0 | K29: 0 | L29: 101699 | M29: 101699 | N29: 8780 | O29: 0 | P29: 197699 | Q29: 206479
A30: TOTAL | B30: =SUM(B22:B29) -> 235283 | C30: 0 | D30: 480877 | E30: 716160 | F30: =SUM(F22:F29) -> 235283 | G30: 0 | H30: 480877 | I30: 716160 | J30: 0 | K30: 0 | M30: =SUM(M22:M29) -> 286643 | N30: 497462 | O30: 297642 | P30: 207699 | Q30: 1002803
A32: Project Income | D32: Income reported to date | E32: ='INVOICE 2'!E25 -> 0 | H32: Prior allocated income | I32: ='INVOICE 2'!I25 -> 0 | K32: This Period | L32: 0 | P32: Unallocated income balance | Q32: =E32-L32 -> 0
A34: JUSTIFICATION FOR MODIFICATION:
A35: The City of Pasadena's original grant project was partially funded with FY 17 grant funds and then amended to add FY 18 grant funds to the fully the project as requester in the original grant proposal. This budget modificaiton augments the City of Pasadena's project budget by $262,179 to a total of $497,462. This budget modification was prepared and approved by BSCC Staff.
A54: PERSON PREPARING REPORT | K54: AUTHORIZED FINANCIAL OFFICER
K55: I hereby certify that I am the authorized financial officer of the herein named agency. I further certify that I have not violated any of the provisions of Section 1090 of the Government Code in incurring the expenditures reported in this invoice, nor in any other way; that Sections 1090 through 1096 of the Government Code will not be violated in any way in the expenditure of funds pursuant to this invoice; that statement of funds above is true, correct, and in accordance with program provisions in all respects; and that all expenditures submitted after the expiration date of this contract are for the purpose of substantiating obligations legally incurred during the contract period. Furthermore, by submitting this invoice, I acknowledge that it must adhere to all of the requirements in the BSCC Grant Administration Guide, including any updates to the Guide during the term of the grant agreement.
A56: Angela Ardisana
A57: Name, Title
A58: (916)323-8580
A59: Phone
A60: angela.ardisana@bscc.ca.gov
A61: Email
A62: 2019-05-14
A63: Date
K66: Name, Title
K68: Phone
K70: Date
A72: BSCC USE ONLY
A73: Date Received: | C73: 2020-05-30 | J73: Approved By: | K73: Colleen Curtin | O73: Date: | P73: 2019-05-22
K74: BSCC Field Representative

Sheet INVOICE 1
A1: STATE OF CALIFORNIA | N1: Purchase Authority | O1: BSCC 5227
A2: BOARD OF STATE AND COMMUNITY CORRECTIONS | N2: Purchase Order: | O2: 5227-0000001824
A3: Financial Invoice Form: BSCC 201 (Revised 04/2020)
A5: Program: | B5: Program Name | M5: Please Note: The California State Controller's Office will send all checks directly to the address listed in the "BSCC Vendor Data" section at the bottom of this invoice.
A7: Grantee: | B7: City of Pasadena Public Health Department | G7: Lead Public Agency: | I7: City of Pasadena Public Health Department
A9: Contract #: | B9: 853-17 | E9: Term: | F9: 2018-05-01 | G9: TO | I9: 2021-08-15 | N9: Invoicing Frequency | O9: Quarterly
A11: Invoice #: | B11: 1 CALVIP 18 | E11: Reporting Period: | F11: 2018-05-01 | G11: TO | I11: 2018-06-30 | J11: Due: | K11: 2018-08-15 | N11: Final Invoice (Y/N): | O11: No
F12: 5
A13: Line Items | B13: Budget | F13: Prior Expenditures | J13: This Reporting Period | N13: Balance
B14: Grant Funds | C14: Cash Match | D14: In-kind Match | E14: TOTAL | F14: Grant Funds | G14: Cash Match | H14: In-kind Match | I14: TOTAL | J14: Grant Funds | K14: Cash Match | L14: In-kind Match | M14: TOTAL | N14: Grant Funds | O14: Cash Match | P14: In-kind Match | Q14: TOTAL
A15: Salaries & Benefits | B15: 160000 | C15: 270584 | D15: 0 | E15: 430584 | F15: 0 | G15: 0 | H15: 0 | I15: =SUM(F15:H15) -> 0 | J15: 0 | K15: 3690 | L15: 0 | M15: =SUM(J15:L15) -> 3690 | N15: =B15-F15-J15 -> 160000 | O15: =C15-G15-K15 -> 266894 | P15: 0 | Q15: =SUM(N15:P15) -> 426894
A16: Services & Supplies | B16: 14325 | C16: 0 | D16: 0 | E16: 14325 | F16: 0 | G16: 0 | H16: 0 | I16: =SUM(F16:H16) -> 0 | J16: 0 | K16: 0 | L16: 0 | M16: =SUM(J16:L16) -> 0 | N16: 14325 | O16: 0 | P16: 0 | Q16: =SUM(N16:P16) -> 14325
A17: Prof Services / Public Agency Subcontracts | B17: 49626 | C17: 0 | D17: 0 | E17: 49626 | F17: 0 | G17: 0 | H17: 0 | I17: 0 | J17: 0 | K17: 0 | L17: 0 | M17: 0 | N17: 49626 | O17: 0 | P17: 0 | Q17: 49626
A18: CBO Subcontracts | B18: 248731 | C18: 0 | D18: 0 | E18: 248731 | F18: 0 | G18: 0 | H18: 0 | I18: 0 | J18: 0 | K18: 0 | L18: 0 | M18: 0 | N18: 248731 | O18: 0 | P18: 0 | Q18: 248731
A19: Indirect Costs | B19: 16000 | C19: 27058 | D19: 0 | E19: 43058 | F19: 0 | G19: 0 | H19: 0 | I19: =SUM(F19:H19) -> 0 | J19: 0 | K19: 0 | L19: 0 | M19: =SUM(J19:L19) -> 0 | N19: =B19-F19-J19 -> 16000 | O19: =C19-G19-K19 -> 27058 | P19: =D19-H19-L19 -> 0 | Q19: =SUM(N19:P19) -> 43058
A20: Fixed Assets/Equipment | B20: 0 | C20: 0 | D20: 0 | E20: 10000 | F20: 0 | G20: 0 | H20: 0 | I20: 0 | J20: 0 | K20: 0 | L20: 0 | M20: 0 | N20: 0 | O20: 0 | P20: 0 | Q20: 0
A21: Project Evaluation | B21: 0 | C21: 0 | D21: 10000 | E21: 0 | F21: 0 | G21: 0 | H21: 0 | I21: 0 | J21: 0 | K21: 0 | L21: 0 | M21: 0 | N21: 0 | O21: 0 | P21: 10000 | Q21: 10000
A22: Other | B22: 8780 | C22: 0 | D22: 197699 | E22: 206479 | F22: 0 | G22: 0 | H22: 0 | I22: 0 | J22: 0 | K22: 0 | L22: 1264 | M22: 1264 | N22: 8780 | O22: 0 | P22: 196435 | Q22: 205215
A23: TOTAL | B23: 497462 | C23: 297642 | D23: 207699 | E23: 1002803 | F23: =SUM(F15:F22) -> 0 | G23: 0 | H23: 0 | I23: 0 | J23: 0 | K23: 3690 | L23: 1264 | M23: 4954 | N23: 497462 | O23: 293952 | P23: 206435 | Q23: 997849
A25: Project Income | D25: Income reported to date | E25: =L25 -> 0 | H25: Prior allocated income | I25: 0 | K25: This Period | L25: 0 | P25: Unallocated income balance | Q25: =E25-I25 -> 0
C27: Grant funds expended to date: | E27: =SUM(F23,J23) -> 0 | I27: Grant funds claimed this period: | J27: =J23 -> 0 | O27: Percentage Grant $$ expended to date: | Q27: =E27/B23 -> 0
C28: Cash match to date: | E28: =SUM(G23,K23) -> 3690 | O28: % of Total Obligated Cash Match to date: | Q28: =E28/C23 -> 0.01239744391
C29: In-kind match to date: | E29: =SUM(H23,L23) -> 1264 | O29: % of Total Obligated In-kind Match to date: | Q29: =E29/D23 -> 0.00608572983
E31: Expenditure Descriptions - Units / $ Amounts | O31: Comments
A32: Salaries & Benefits | B32: Grant Funds | D32: =J15 -> 0
B33: Cash Match | D33: =K15 -> 3690 | E33: Angelica Palmeros in-kind salaries for time spent on program. $2432.Angelica Palmeros in-kind benefits for time spent on program. $2432.
B34: In-kind Match | D34: =L15 -> 0
A35: Services & Supplies | B35: Grant Funds | D35: =J16 -> 0
B36: Cash Match | D36: =K16 -> 0
B37: In-kind Match | D37: =L16 -> 0
A38: Prof Services / Public Agency Subcontracts | B38: Grant Funds | D38: =J17 -> 0
B39: Cash Match | D39: =K17 -> 0
B40: In-kind Match | D40: =L17 -> 0
A41: CBO Subcontracts | B41: Grant Funds | D41: =J18 -> 0
B42: Cash Match | D42: =K18 -> 0
B43: In-kind Match | D43: =L18 -> 0
A44: Indirect Costs | B44: Grant Funds | D44: =J20 -> 0
B45: Cash Match | D45: =K20 -> 0
B46: In-kind Match | D46: =L20 -> 0
A47: Equip/Fixed Assets | B47: Grant Funds | D47: =J21 -> 0
B48: Cash Match | D48: =K21 -> 0
B49: In-kind Match | D49: =L21 -> 0
A50: Project Evaluation | B50: Grant Funds | D50: =J22 -> 0
B51: Cash Match | D51: =K22 -> 0
B52: In-kind Match
A53: Other | B53: Grant Funds | D53: =J19 -> 0
B54: Cash Match | D54: =K19 -> 0
B55: In-kind Match | D55: 1264 | E55: trsvel for training A. Palmeros and I. Olmedo $1,265
A56: Project Income | D56: =Q25 -> 0
A57: PERSON PREPARING REPORT | F57: AUTHORIZED FINANCIAL OFFICER | N57: BSCC Supplier Data - Internal Use Only
F58: By checking the box below, I hereby certify that I am the authorized financial officer of the herein named agency. I further certify that I have not violated any of the provisions of Section 1090 of the Government Code in incurring the expenditures reported in this invoice, nor in any other way; that Sections 1090 through 1096 of the Government Code will not be violated in any way in the expenditure of funds pursuant to this invoice; that statement of funds above is true, correct, and in accordance with program provisions in all respects; and that all expenditures submitted after the expiration date of this contract are for the purpose of substantiating obligations legally incurred during the contract period. Furthermore, by submitting this invoice, I acknowledge that it must adhere to all of the requirements in the BSCC Grant Administration Guide, including any updates to the Guide during the term of the grant agreement.
A59: Genevieve Chu, Senior Accountant | N59: 0000042790
A60: Name, Title | N60: Supplier ID
A61: (626) 744-6397 | N61: CITY OF PASADENA PUBLIC HEALTH DEPARTMENT
A62: Phone | N62: Supplier Name
A63: gchu@cityofpasadena.net | N63: 1845 N FAIR OAKS AVE
A64: Email | N64: Address Line 1
A65: 2019-04-30 | N65: PASADENA, CA 91103
A66: Date | N66: Address Line 2
F68: Manuel Carmona, Management Analyst V
F69: Name, Title
F70: (626) 744-6122
F71: Phone
F72: 2019-04-30
F73: Date
A75: BSCC USE ONLY
A76: Date Received: | C76: 2019-05-30 | I76: Approved By: | K76: Colleen Curtin | O76: Date: | P76: 2019-05-31
K77: BSCC Field Representative

Sheet INVOICE 2
A1: STATE OF CALIFORNIA | N1: Purchase Authority | O1: BSCC 5227
A2: BOARD OF STATE AND COMMUNITY CORRECTIONS | N2: Purchase Order: | O2: 5227-0000001824 | Q2: ='INVOICE 1'!Q2 -> 0
A3: Financial Invoice Form: BSCC 201 (Revised 04/2020)
A5: Program: | B5: ='INVOICE 1'!B5 -> Program Name | M5: Please Note: The California State Controller's Office will send all checks directly to the address listed in the "BSCC Vendor Data" section at the bottom of this invoice.
A7: Grantee: | B7: City of Pasadena Public Health Department | G7: Lead Public Agency: | I7: City of Pasadena Public Health Department
A9: Contract #: | B9: ='INVOICE 1'!B9 -> 853-17 | E9: Term: | F9: ='INVOICE 1'!F9 -> 2018-05-01 | G9: TO | I9: ='INVOICE 1'!I9 -> 2021-08-15 | N9: Invoicing Frequency | O9: ='INVOICE 1'!O9 -> Quarterly
A11: Invoice #: | B11: 2 CALVIP 18 | E11: Reporting Period: | F11: 2021-07-01 | G11: TO | I11: 2021-09-30 | J11: Due: | K11: 2018-11-15 | N11: Final Invoice (Y/N): | O11: No
A13: Line Items | B13: Budget | F13: Prior Expenditures | J13: This Reporting Period | N13: Balance
B14: Grant Funds | C14: Cash Match | D14: In-kind Match | E14: TOTAL | F14: Grant Funds | G14: Cash Match | H14: In-kind Match | I14: TOTAL | J14: Grant Funds | K14: Cash Match | L14: In-kind Match | M14: TOTAL | N14: Grant Funds | O14: Cash Match | P14: In-kind Match | Q14: TOTAL
A15: ='INVOICE 1'!A15 -> Salaries & Benefits | B15: ='INVOICE 1'!B15 -> 160000 | C15: ='INVOICE 1'!C15 -> 270584 | D15: ='INVOICE 1'!D15 -> 0 | E15: =SUM(B15:D15) -> 430584 | F15: =SUM('INVOICE 1'!F15,'INVOICE 1'!J15) -> 0 | G15: =SUM('INVOICE 1'!G15,'INVOICE 1'!K15) -> 3690 | H15: =SUM('INVOICE 1'!H15,'INVOICE 1'!L15) -> 0 | I15: =SUM(F15:H15) -> 3690 | J15: 0 | K15: 1748 | L15: 0 | M15: =SUM(J15:L15) -> 1748 | N15: =B15-F15-J15 -> 160000 | O15: 265146 | P15: 0 | Q15: =SUM(N15:P15) -> 425146
A16: ='INVOICE 1'!A16 -> Services & Supplies | B16: ='INVOICE 1'!B16 -> 14325 | C16: ='INVOICE 1'!C16 -> 0 | D16: ='INVOICE 1'!D16 -> 0 | E16: =SUM(B16:D16) -> 14325 | F16: =SUM('INVOICE 1'!F16,'INVOICE 1'!J16) -> 0 | G16: =SUM('INVOICE 1'!G16,'INVOICE 1'!K16) -> 0 | H16: =SUM('INVOICE 1'!H16,'INVOICE 1'!L16) -> 0 | I16: =SUM(F16:H16) -> 0 | J16: 0 | K16: 0 | L16: 0 | M16: =SUM(J16:L16) -> 0 | N16: 14325 | O16: 0 | P16: 0 | Q16: =SUM(N16:P16) -> 14325
A17: ='INVOICE 1'!A17 -> Prof Services / Public Agency Subcontracts | B17: ='INVOICE 1'!B17 -> 49626 | C17: ='INVOICE 1'!C17 -> 0 | D17: ='INVOICE 1'!D17 -> 0 | E17: 49626 | F17: =SUM('INVOICE 1'!F17,'INVOICE 1'!J17) -> 0 | G17: =SUM('INVOICE 1'!G17,'INVOICE 1'!K17) -> 0 | H17: =SUM('INVOICE 1'!H17,'INVOICE 1'!L17) -> 0 | I17: 0 | J17: 0 | K17: 0 | L17: 0 | M17: 0 | N17: 49626 | O17: 0 | P17: 0 | Q17: 49626
A18: ='INVOICE 1'!A18 -> CBO Subcontracts | B18: ='INVOICE 1'!B18 -> 248731 | C18: ='INVOICE 1'!C18 -> 0 | D18: ='INVOICE 1'!D18 -> 0 | E18: 248731 | F18: =SUM('INVOICE 1'!F18,'INVOICE 1'!J18) -> 0 | G18: =SUM('INVOICE 1'!G18,'INVOICE 1'!K18) -> 0 | H18: =SUM('INVOICE 1'!H18,'INVOICE 1'!L18) -> 0 | I18: 0 | J18: 0 | K18: 0 | L18: 0 | M18: 0 | N18: 248731 | O18: 0 | P18: 0 | Q18: 248731
A19: ='INVOICE 1'!A19 -> Indirect Costs | B19: ='INVOICE 1'!B19 -> 16000 | C19: ='INVOICE 1'!C19 -> 27058 | D19: ='INVOICE 1'!D19 -> 0 | E19: =SUM(B19:D19) -> 43058 | F19: =SUM('INVOICE 1'!F19,'INVOICE 1'!J19) -> 0 | G19: =SUM('INVOICE 1'!G19,'INVOICE 1'!K19) -> 0 | H19: =SUM('INVOICE 1'!H19,'INVOICE 1'!L19) -> 0 | I19: =SUM(F19:H19) -> 0 | J19: 0 | K19: 0 | L19: 0 | M19: =SUM(J19:L19) -> 0 | N19: =B19-F19-J19 -> 16000 | O19: =C19-G19-K19 -> 27058 | P19: =D19-H19-L19 -> 0 | Q19: =SUM(N19:P19) -> 43058
A20: ='INVOICE 1'!A20 -> Fixed Assets/Equipment | B20: ='INVOICE 1'!B20 -> 0 | C20: ='INVOICE 1'!C20 -> 0 | D20: ='INVOICE 1'!D20 -> 0 | E20: 0 | F20: =SUM('INVOICE 1'!F20,'INVOICE 1'!J20) -> 0 | G20: =SUM('INVOICE 1'!G20,'INVOICE 1'!K20) -> 0 | H20: =SUM('INVOICE 1'!H20,'INVOICE 1'!L20) -> 0 | I20: 0 | J20: 0 | K20: 0 | L20: 0 | M20: 0 | N20: 0 | O20: 0 | P20: 0 | Q20: 0
A21: ='INVOICE 1'!A21 -> Project Evaluation | B21: ='INVOICE 1'!B21 -> 0 | C21: ='INVOICE 1'!C21 -> 0 | D21: ='INVOICE 1'!D21 -> 10000 | E21: 10000 | F21: =SUM('INVOICE 1'!F21,'INVOICE 1'!J21) -> 0 | G21: =SUM('INVOICE 1'!G21,'INVOICE 1'!K21) -> 0 | H21: =SUM('INVOICE 1'!H21,'INVOICE 1'!L21) -> 0 | I21: 0 | J21: 0 | K21: 0 | L21: 0 | M21: 0 | N21: 0 | O21: 0 | P21: 10000 | Q21: 10000
A22: ='INVOICE 1'!A22 -> Other | B22: ='INVOICE 1'!B22 -> 8780 | C22: ='INVOICE 1'!C22 -> 0 | D22: ='INVOICE 1'!D22 -> 197699 | E22: 206479 | F22: =SUM('INVOICE 1'!F22,'INVOICE 1'!J22) -> 0 | G22: =SUM('INVOICE 1'!G22,'INVOICE 1'!K22) -> 0 | H22: =SUM('INVOICE 1'!H22,'INVOICE 1'!L22) -> 1264 | I22: 1264 | J22: 0 | K22: 0 | L22: 0 | M22: 0 | N22: 8780 | O22: 0 | P22: 196435 | Q22: 205215
A23: TOTAL | B23: =SUM(B15:B22) -> 497462 | C23: 297642 | D23: 207699 | E23: 1002803 | F23: 0 | G23: 3690 | H23: 1264 | I23: 4954 | J23: 0 | K23: 1748 | L23: 0 | M23: 1748 | N23: 497462 | O23: 292204 | P23: 206435 | Q23: 996101
A25: Project Income | D25: Income reported to date | E25: ='INVOICE 1'!E25+'INVOICE 2'!L25 -> 0 | H25: Prior allocated income | I25: 0 | K25: This Period | L25: 0 | P25: Unallocated income balance | Q25: =E25-I25 -> 0
C27: Grant funds expended to date: | E27: =SUM(F23,J23) -> 0 | I27: Grant funds claimed this period: | J27: =J23 -> 0 | O27: Percentage Grant $$ expended to date: | Q27: =E27/B23 -> 0
C28: Cash match to date: | E28: =SUM(G23,K23) -> 5438 | O28: % of Total Obligated Cash Match to date: | Q28: =E28/C23 -> 0.018270271
C29: In-kind match to date: | E29: =SUM(H23,L23) -> 1264 | O29: % of Total Obligated In-kind Match to date: | Q29: =E29/D23 -> 0.00608572983
E31: Expenditure Descriptions - Units / $ Amounts | O31: Comments
A32: Salaries & Benefits | B32: Grant Funds | D32: =J15 -> 0
B33: Cash Match | D33: =K15 -> 1748 | E33: Angelica Palmeros salaries for time spent on program. $1,152.Angelica Palmeros benefits for time spent on program. $596..
B34: In-kind Match | D34: =K16 -> 0
A35: Services & Supplies | B35: Grant Funds | D35: =J16 -> 0
B36: Cash Match | D36: =K16 -> 0
B37: In-kind Match | D37: =L16 -> 0
A38: Prof Services / Public Agency Subcontracts | B38: Grant Funds | D38: =J17 -> 0
B39: Cash Match | D39: =K17 -> 0
B40: In-kind Match | D40: =L17 -> 0
A41: CBO Subcontracts | B41: Grant Funds | D41: =J18 -> 0
B42: Cash Match | D42: =K18 -> 0
B43: In-kind Match | D43: =L18 -> 0
A44: Indirect Costs | B44: Grant Funds | D44: =J20 -> 0
B45: Cash Match | D45: =K20 -> 0
B46: In-kind Match | D46: =L20 -> 0
A47: Equip/Fixed Assets | B47: Grant Funds | D47: =J21 -> 0
B48: Cash Match | D48: =K21 -> 0
B49: In-kind Match | D49: =-L21 -> 0
A50: Project Evaluation | B50: Grant Funds | D50: =J22 -> 0
B51: Cash Match | D51: =K22 -> 0
B52: In-kind Match | D52: =L22 -> 0
A53: Other | B53: Grant Funds | D53: =J19 -> 0
B54: Cash Match | D54: =K19 -> 0
B55: In-kind Match | D55: =L19 -> 0
A56: Project Income | D56: =M25 -> 0
A57: PERSON PREPARING REPORT | F57: AUTHORIZED FINANCIAL OFFICER | N57: BSCC Supplier Data - Internal Use Only
F58: By checking the box below, I hereby certify that I am the authorized financial officer of the herein named agency. I further certify that I have not violated any of the provisions of Section 1090 of the Government Code in incurring the expenditures reported in this invoice, nor in any other way; that Sections 1090 through 1096 of the Government Code will not be violated in any way in the expenditure of funds pursuant to this invoice; that statement of funds above is true, correct, and in accordance with program provisions in all respects; and that all expenditures submitted after the expiration date of this contract are for the purpose of substantiating obligations legally incurred during the contract period. Furthermore, by submitting this invoice, I acknowledge that it must adhere to all of the requirements in the BSCC Grant Administration Guide, including any updates to the Guide during the term of the grant agreement.
A59: Genevieve Chu, Senior Accountant | N59: ='INVOICE 1'!N59:Q59 -> 0000042790
A60: Name, Title | N60: ='INVOICE 1'!N60:Q60 -> Supplier ID
A61: (626) 744-6397 | N61: ='INVOICE 1'!N61:Q61 -> CITY OF PASADENA PUBLIC HEALTH DEPARTMENT
A62: Phone | N62: ='INVOICE 1'!N62:Q62 -> Supplier Name
A63: gchu@cityofpasadena.net | N63: ='INVOICE 1'!N63:Q63 -> 1845 N FAIR OAKS AVE
A64: Email | N64: ='INVOICE 1'!N64:Q64 -> Address Line 1
A65: 2019-04-30 | N65: ='INVOICE 1'!N65:Q65 -> PASADENA, CA 91103
A66: Date | N66: ='INVOICE 1'!N66:Q66 -> Address Line 2
F68: Manuel Carmona, Management Analyst V
F69: Name, Title
F70: (626) 744-6122
F71: Phone
F72: 2019-04-30
F73: Date
A75: BSCC USE ONLY
A76: Date Received: | C76: 2019-05-30 | I76: Approved By: | K76: Colleen Curtin | O76: Date: | P76: 2019-05-31
K77: BSCC Field Representative

Sheet INVOICE 3
A1: STATE OF CALIFORNIA | N1: Purchase Authority | O1: BSCC 5227
A2: BOARD OF STATE AND COMMUNITY CORRECTIONS | N2: Purchase Order: | O2: 5227-0000001824 | Q2: ='INVOICE 1'!Q2 -> 0
A3: Financial Invoice Form: BSCC 201 (Revised 04/2020)
A5: Program: | B5: ='INVOICE 1'!B5 -> Program Name | M5: Please Note: The California State Controller's Office will send all checks directly to the address listed in the "BSCC Vendor Data" section at the bottom of this invoice.
A7: Grantee: | B7: ='INVOICE 1'!B7 -> City of Pasadena Public Health Department | G7: Lead Public Agency: | I7: ='INVOICE 1'!I7 -> City of Pasadena Public Health Department
A9: Contract #: | B9: ='INVOICE 1'!B9 -> 853-17 | E9: Term: | F9: ='INVOICE 1'!F9 -> 2018-05-01 | G9: TO | I9: ='INVOICE 1'!I9 -> 2021-08-15 | N9: Invoicing Frequency | O9: ='INVOICE 1'!O9 -> Quarterly
A11: Invoice #: | B11: 3 CALVIP 18 | E11: Reporting Period: | F11: 2018-10-01 | G11: TO | I11: 2018-12-31 | J11: Due: | K11: 2019-02-15 | N11: Final Invoice (Y/N): | O11: No
A13: Line Items | B13: Budget | F13: Prior Expenditures | J13: This Reporting Period | N13: Balance
B14: Grant Funds | C14: Cash Match | D14: In-kind Match | E14: TOTAL | F14: Grant Funds | G14: Cash Match | H14: In-kind Match | I14: TOTAL | J14: Grant Funds | K14: Cash Match | L14: In-kind Match | M14: TOTAL | N14: Grant Funds | O14: Cash Match | P14: In-kind Match | Q14: TOTAL
A15: ='INVOICE 1'!A15 -> Salaries & Benefits | B15: ='INVOICE 2'!B15 -> 160000 | C15: ='INVOICE 2'!C15 -> 270584 | D15: ='INVOICE 2'!D15 -> 0 | E15: =SUM(B15:D15) -> 430584 | F15: =SUM('INVOICE 2'!F15,'INVOICE 2'!J15) -> 0 | G15: =SUM('INVOICE 2'!G15,'INVOICE 2'!K15) -> 5438 | H15: =SUM('INVOICE 2'!H15,'INVOICE 2'!L15) -> 0 | I15: =SUM(F15:H15) -> 5438 | J15: 0 | K15: 2282 | L15: 0 | M15: =SUM(J15:L15) -> 2282 | N15: =B15-F15-J15 -> 160000 | O15: 262864 | P15: 0 | Q15: =SUM(N15:P15) -> 422864
A16: ='INVOICE 1'!A16 -> Services & Supplies | B16: ='INVOICE 2'!B16 -> 14325 | C16: ='INVOICE 2'!C16 -> 0 | D16: ='INVOICE 2'!D16 -> 0 | E16: =SUM(B16:D16) -> 14325 | F16: =SUM('INVOICE 2'!F16,'INVOICE 2'!J16) -> 0 | G16: =SUM('INVOICE 2'!G16,'INVOICE 2'!K16) -> 0 | H16: =SUM('INVOICE 2'!H16,'INVOICE 2'!L16) -> 0 | I16: =SUM(F16:H16) -> 0 | J16: 0 | K16: 0 | L16: 0 | M16: =SUM(J16:L16) -> 0 | N16: 14325 | O16: 0 | P16: 0 | Q16: =SUM(N16:P16) -> 14325
A17: ='INVOICE 1'!A17 -> Prof Services / Public Agency Subcontracts | B17: ='INVOICE 2'!B17 -> 49626 | C17: ='INVOICE 2'!C17 -> 0 | D17: ='INVOICE 2'!D17 -> 0 | E17: 49626 | F17: =SUM('INVOICE 2'!F17,'INVOICE 2'!J17) -> 0 | G17: =SUM('INVOICE 2'!G17,'INVOICE 2'!K17) -> 0 | H17: =SUM('INVOICE 2'!H17,'INVOICE 2'!L17) -> 0 | I17: 0 | J17: 0 | K17: 0 | L17: 0 | M17: 0 | N17: 49626 | O17: 0 | P17: 0 | Q17: 49626
A18: ='INVOICE 1'!A18 -> CBO Subcontracts | B18: ='INVOICE 2'!B18 -> 248731 | C18: ='INVOICE 2'!C18 -> 0 | D18: ='INVOICE 2'!D18 -> 0 | E18: 248731 | F18: =SUM('INVOICE 2'!F18,'INVOICE 2'!J18) -> 0 | G18: =SUM('INVOICE 2'!G18,'INVOICE 2'!K18) -> 0 | H18: =SUM('INVOICE 2'!H18,'INVOICE 2'!L18) -> 0 | I18: 0 | J18: 0 | K18: 0 | L18: 0 | M18: 0 | N18: 248731 | O18: 0 | P18: 0 | Q18: 248731
A19: ='INVOICE 1'!A19 -> Indirect Costs | B19: ='INVOICE 2'!B19 -> 16000 | C19: ='INVOICE 2'!C19 -> 27058 | D19: ='INVOICE 2'!D19 -> 0 | E19: =SUM(B19:D19) -> 43058 | F19: =SUM('INVOICE 2'!F19,'INVOICE 2'!J19) -> 0 | G19: =SUM('INVOICE 2'!G19,'INVOICE 2'!K19) -> 0 | H19: =SUM('INVOICE 2'!H19,'INVOICE 2'!L19) -> 0 | I19: =SUM(F19:H19) -> 0 | J19: 0 | K19: 0 | L19: 0 | M19: =SUM(J19:L19) -> 0 | N19: =B19-F19-J19 -> 16000 | O19: =C19-G19-K19 -> 27058 | P19: =D19-H19-L19 -> 0 | Q19: =SUM(N19:P19) -> 43058
A20: ='INVOICE 1'!A20 -> Fixed Assets/Equipment | B20: ='INVOICE 2'!B20 -> 0 | C20: ='INVOICE 2'!C20 -> 0 | D20: ='INVOICE 2'!D20 -> 0 | E20: 0 | F20: =SUM('INVOICE 2'!F20,'INVOICE 2'!J20) -> 0 | G20: =SUM('INVOICE 2'!G20,'INVOICE 2'!K20) -> 0 | H20: =SUM('INVOICE 2'!H20,'INVOICE 2'!L20) -> 0 | I20: 0 | J20: 0 | K20: 0 | L20: 0 | M20: 0 | N20: 0 | O20: 0 | P20: 0 | Q20: 0
A21: ='INVOICE 1'!A21 -> Project Evaluation | B21: ='INVOICE 2'!B21 -> 0 | C21: ='INVOICE 2'!C21 -> 0 | D21: ='INVOICE 2'!D21 -> 10000 | E21: 10000 | F21: =SUM('INVOICE 2'!F21,'INVOICE 2'!J21) -> 0 | G21: =SUM('INVOICE 2'!G21,'INVOICE 2'!K21) -> 0 | H21: =SUM('INVOICE 2'!H21,'INVOICE 2'!L21) -> 0 | I21: 0 | J21: 0 | K21: 0 | L21: 0 | M21: 0 | N21: 0 | O21: 0 | P21: 10000 | Q21: 10000
A22: ='INVOICE 1'!A22 -> Other | B22: ='INVOICE 2'!B22 -> 8780 | C22: ='INVOICE 2'!C22 -> 0 | D22: ='INVOICE 2'!D22 -> 197699 | E22: 206479 | F22: =SUM('INVOICE 2'!F22,'INVOICE 2'!J22) -> 0 | G22: =SUM('INVOICE 2'!G22,'INVOICE 2'!K22) -> 0 | H22: =SUM('INVOICE 2'!H22,'INVOICE 2'!L22) -> 1264 | I22: 1264 | J22: 0 | K22: 0 | L22: 0 | M22: 0 | N22: 8780 | O22: 0 | P22: 196435 | Q22: 205215
A23: TOTAL | B23: =SUM(B15:B22) -> 497462 | C23: 297642 | D23: 207699 | E23: 1002803 | F23: 0 | G23: 5438 | H23: 1264 | I23: 6702 | J23: 0 | K23: 2282 | L23: 0 | M23: 2282 | N23: 497462 | O23: 289922 | P23: 206435 | Q23: 993819
A25: Project Income | D25: Income reported to date | E25: ='INVOICE 1'!E25+'INVOICE 3'!L25 -> 0 | H25: Prior allocated income | I25: 0 | K25: This Period | L25: 0 | P25: Unallocated income balance | Q25: =E25-I25 -> 0
C27: Grant funds expended to date: | E27: =SUM(F23,J23) -> 0 | I27: Grant funds claimed this period: | J27: =J23 -> 0 | O27: Percentage Grant $$ expended to date: | Q27: =E27/B23 -> 0
C28: Cash match to date: | E28: =SUM(G23,K23) -> 7720 | O28: % of Total Obligated Cash Match to date: | Q28: =E28/C23 -> 0.02593719972
C29: In-kind match to date: | E29: =SUM(H23,L23) -> 1264 | O29: % of Total Obligated In-kind Match to date: | Q29: =E29/D23 -> 0.00608572983
E31: Expenditure Descriptions - Units / $ Amounts | O31: Comments
A32: Salaries & Benefits | B32: Grant Funds | D32: =J15 -> 0
B33: Cash Match | D33: =K15 -> 2282 | E33: Angelica Palmeros in-kind salaries for time spent on program. $1,504. Angelica Palmeros in-kind benefits for time spent on program. $778..
B34: In-kind Match | D34: =K16 -> 0
A35: Services & Supplies | B35: Grant Funds | D35: =J16 -> 0
B36: Cash Match | D36: =K16 -> 0
B37: In-kind Match | D37: =L16 -> 0
A38: Prof Services / Public Agency Subcontracts | B38: Grant Funds | D38: =J17 -> 0
B39: Cash Match | D39: =K17 -> 0
B40: In-kind Match | D40: =L17 -> 0
A41: CBO Subcontracts | B41: Grant Funds | D41: =J18 -> 0
B42: Cash Match | D42: =K18 -> 0
B43: In-kind Match | D43: =L18 -> 0
A44: Indirect Costs | B44: Grant Funds | D44: =J20 -> 0
B45: Cash Match | D45: =K20 -> 0
B46: In-kind Match | D46: =L20 -> 0
A47: Equip/Fixed Assets | B47: Grant Funds | D47: =J21 -> 0
B48: Cash Match | D48: =K21 -> 0
B49: In-kind Match | D49: =-L21 -> 0
A50: Project Evaluation | B50: Grant Funds | D50: =J22 -> 0
B51: Cash Match | D51: =K22 -> 0
B52: In-kind Match | D52: =L22 -> 0
A53: Other | B53: Grant Funds | D53: =J19 -> 0
B54: Cash Match | D54: =K19 -> 0
B55: In-kind Match | D55: =L19 -> 0
A56: Project Income | D56: =M25 -> 0
A57: PERSON PREPARING REPORT | F57: AUTHORIZED FINANCIAL OFFICER | N57: BSCC Supplier Data - Internal Use Only
F58: By checking the box below, I hereby certify that I am the authorized financial officer of the herein named agency. I further certify that I have not violated any of the provisions of Section 1090 of the Government Code in incurring the expenditures reported in this invoice, nor in any other way; that Sections 1090 through 1096 of the Government Code will not be violated in any way in the expenditure of funds pursuant to this invoice; that statement of funds above is true, correct, and in accordance with program provisions in all respects; and that all expenditures submitted after the expiration date of this contract are for the purpose of substantiating obligations legally incurred during the contract period. Furthermore, by submitting this invoice, I acknowledge that it must adhere to all of the requirements in the BSCC Grant Administration Guide, including any updates to the Guide during the term of the grant agreement.
A59: Genevieve Chu, Senior Accountant | N59: ='INVOICE 2'!N59:Q59 -> 0000042790
A60: Name, Title | N60: ='INVOICE 1'!N60:Q60 -> Supplier ID
A61: (626) 744-6397 | N61: ='INVOICE 2'!N61:Q61 -> CITY OF PASADENA PUBLIC HEALTH DEPARTMENT
A62: Phone | N62: ='INVOICE 1'!N62:Q62 -> Supplier Name
A63: gchu@cityofpasadena.net | N63: ='INVOICE 2'!N63:Q63 -> 1845 N FAIR OAKS AVE
A64: Email | N64: ='INVOICE 1'!N64:Q64 -> Address Line 1
A65: 2019-04-30 | N65: ='INVOICE 2'!N65:Q65 -> PASADENA, CA 91103
A66: Date | N66: ='INVOICE 1'!N66:Q66 -> Address Line 2
F68: Manuel Carmona, Management Analyst V
F69: Name, Title
F70: (626) 744-6122
F71: Phone
F72: 2019-04-30
F73: Date
A75: BSCC USE ONLY
A76: Date Received: | C76: 2019-05-30 | I76: Approved By: | K76: Colleen Curtin | O76: Date: | P76: 2019-05-31
K77: BSCC Field Representative

Sheet INVOICE 4
A1: STATE OF CALIFORNIA | N1: Purchase Authority | O1: BSCC 5227
A2: BOARD OF STATE AND COMMUNITY CORRECTIONS | N2: Purchase Order: | O2: 5227-0000001824 | Q2: ='INVOICE 1'!Q2 -> 0
A3: Financial Invoice Form: BSCC 201 (Revised 04/2020)
A5: Program: | B5: ='INVOICE 1'!B5 -> Program Name | M5: Please Note: The California State Controller's Office will send all checks directly to the address listed in the "BSCC Vendor Data" section at the bottom of this invoice.
A7: Grantee: | B7: ='INVOICE 1'!B7 -> City of Pasadena Public Health Department | G7: Lead Public Agency: | I7: ='INVOICE 1'!I7 -> City of Pasadena Public Health Department
A9: Contract #: | B9: ='INVOICE 1'!B9 -> 853-17 | E9: Term: | F9: ='INVOICE 1'!F9 -> 2018-05-01 | G9: TO | I9: ='INVOICE 1'!I9 -> 2021-08-15 | N9: Invoicing Frequency | O9: ='INVOICE 1'!O9 -> Quarterly
A11: Invoice #: | B11: 4 CALVIP 18 | E11: Reporting Period: | F11: 2019-01-01 | G11: TO | I11: 2019-03-31 | J11: Due: | K11: 2019-08-15 | N11: Final Invoice (Y/N): | O11: No
A13: Line Items | B13: Budget | F13: Prior Expenditures | J13: This Reporting Period | N13: Balance
B14: Grant Funds | C14: Cash Match | D14: In-kind Match | E14: TOTAL | F14: Grant Funds | G14: Cash Match | H14: In-kind Match | I14: TOTAL | J14: Grant Funds | K14: Cash Match | L14: In-kind Match | M14: TOTAL | N14: Grant Funds | O14: Cash Match | P14: In-kind Match | Q14: TOTAL
A15: ='INVOICE 1'!A15 -> Salaries & Benefits | B15: ='INVOICE 3'!B15 -> 160000 | C15: ='INVOICE 3'!C15 -> 270584 | D15: ='INVOICE 3'!D15 -> 0 | E15: =SUM(B15:D15) -> 430584 | F15: =SUM('INVOICE 3'!F15,'INVOICE 3'!J15) -> 0 | G15: =SUM('INVOICE 3'!G15,'INVOICE 3'!K15) -> 7720 | H15: =SUM('INVOICE 3'!H15,'INVOICE 3'!L15) -> 0 | I15: =SUM(F15:H15) -> 7720 | J15: 2350 | K15: 20331 | L15: 0 | M15: =SUM(J15:L15) -> 22681 | N15: =B15-F15-J15 -> 157650 | O15: 242533 | P15: 0 | Q15: =SUM(N15:P15) -> 400183
A16: ='INVOICE 1'!A16 -> Services & Supplies | B16: ='INVOICE 3'!B16 -> 14325 | C16: ='INVOICE 3'!C16 -> 0 | D16: ='INVOICE 3'!D16 -> 0 | E16: =SUM(B16:D16) -> 14325 | F16: =SUM('INVOICE 3'!F16,'INVOICE 3'!J16) -> 0 | G16: =SUM('INVOICE 3'!G16,'INVOICE 3'!K16) -> 0 | H16: =SUM('INVOICE 3'!H16,'INVOICE 3'!L16) -> 0 | I16: =SUM(F16:H16) -> 0 | J16: 0 | K16: 0 | L16: 0 | M16: =SUM(J16:L16) -> 0 | N16: 14325 | O16: 0 | P16: 0 | Q16: =SUM(N16:P16) -> 14325
A17: ='INVOICE 1'!A17 -> Prof Services / Public Agency Subcontracts | B17: ='INVOICE 3'!B17 -> 49626 | C17: ='INVOICE 3'!C17 -> 0 | D17: ='INVOICE 3'!D17 -> 0 | E17: 49626 | F17: =SUM('INVOICE 3'!F17,'INVOICE 3'!J17) -> 0 | G17: =SUM('INVOICE 3'!G17,'INVOICE 3'!K17) -> 0 | H17: =SUM('INVOICE 3'!H17,'INVOICE 3'!L17) -> 0 | I17: 0 | J17: 15000 | K17: 0 | L17: 0 | M17: 15000 | N17: 34626 | O17: 0 | P17: 0 | Q17: 34626
A18: ='INVOICE 1'!A18 -> CBO Subcontracts | B18: ='INVOICE 3'!B18 -> 248731 | C18: ='INVOICE 3'!C18 -> 0 | D18: ='INVOICE 3'!D18 -> 0 | E18: 248731 | F18: =SUM('INVOICE 3'!F18,'INVOICE 3'!J18) -> 0 | G18: =SUM('INVOICE 3'!G18,'INVOICE 3'!K18) -> 0 | H18: =SUM('INVOICE 3'!H18,'INVOICE 3'!L18) -> 0 | I18: 0 | J18: 0 | K18: 0 | L18: 0 | M18: 0 | N18: 248731 | O18: 0 | P18: 0 | Q18: 248731
A19: ='INVOICE 1'!A19 -> Indirect Costs | B19: ='INVOICE 3'!B19 -> 16000 | C19: ='INVOICE 3'!C19 -> 27058 | D19: ='INVOICE 3'!D19 -> 0 | E19: =SUM(B19:D19) -> 43058 | F19: =SUM('INVOICE 3'!F19,'INVOICE 3'!J19) -> 0 | G19: =SUM('INVOICE 3'!G19,'INVOICE 3'!K19) -> 0 | H19: =SUM('INVOICE 3'!H19,'INVOICE 3'!L19) -> 0 | I19: =SUM(F19:H19) -> 0 | J19: 235 | K19: 0 | L19: 0 | M19: =SUM(J19:L19) -> 235 | N19: =B19-F19-J19 -> 15765 | O19: =C19-G19-K19 -> 27058 | P19: =D19-H19-L19 -> 0 | Q19: =SUM(N19:P19) -> 42823
A20: ='INVOICE 1'!A20 -> Fixed Assets/Equipment | B20: ='INVOICE 3'!B20 -> 0 | C20: ='INVOICE 3'!C20 -> 0 | D20: ='INVOICE 3'!D20 -> 0 | E20: 0 | F20: =SUM('INVOICE 3'!F20,'INVOICE 3'!J20) -> 0 | G20: =SUM('INVOICE 3'!G20,'INVOICE 3'!K20) -> 0 | H20: =SUM('INVOICE 3'!H20,'INVOICE 3'!L20) -> 0 | I20: 0 | J20: 0 | K20: 0 | L20: 0 | M20: 0 | N20: 0 | O20: 0 | P20: 0 | Q20: 0
A21: ='INVOICE 1'!A21 -> Project Evaluation | B21: ='INVOICE 3'!B21 -> 0 | C21: ='INVOICE 3'!C21 -> 0 | D21: ='INVOICE 3'!D21 -> 10000 | E21: 10000 | F21: =SUM('INVOICE 3'!F21,'INVOICE 3'!J21) -> 0 | G21: =SUM('INVOICE 3'!G21,'INVOICE 3'!K21) -> 0 | H21: =SUM('INVOICE 3'!H21,'INVOICE 3'!L21) -> 0 | I21: 0 | J21: 0 | K21: 0 | L21: 0 | M21: 0 | N21: 0 | O21: 0 | P21: 10000 | Q21: 10000
A22: ='INVOICE 1'!A22 -> Other | B22: ='INVOICE 3'!B22 -> 8780 | C22: ='INVOICE 3'!C22 -> 0 | D22: ='INVOICE 3'!D22 -> 197699 | E22: 206479 | F22: =SUM('INVOICE 3'!F22,'INVOICE 3'!J22) -> 0 | G22: =SUM('INVOICE 3'!G22,'INVOICE 3'!K22) -> 0 | H22: =SUM('INVOICE 3'!H22,'INVOICE 3'!L22) -> 1264 | I22: 1264 | J22: 1311 | K22: 0 | L22: 0 | M22: 1311 | N22: 7469 | O22: 0 | P22: 196435 | Q22: 203904
A23: TOTAL | B23: =SUM(B15:B22) -> 497462 | C23: 297642 | D23: 207699 | E23: 1002803 | F23: 0 | G23: 7720 | H23: 1264 | I23: 8984 | J23: 18896 | K23: 20331 | L23: 0 | M23: 39227 | N23: 478566 | O23: 269591 | P23: 206435 | Q23: 954592
A25: Project Income | D25: Income reported to date | E25: ='INVOICE 1'!E25+'INVOICE 4'!L25 -> 0 | H25: Prior allocated income | I25: 0 | K25: This Period | L25: 0 | P25: Unallocated income balance | Q25: =E25-I25 -> 0
C27: Grant funds expended to date: | E27: =SUM(F23,J23) -> 18896 | I27: Grant funds claimed this period: | J27: =J23 -> 18896 | O27: Percentage Grant $$ expended to date: | Q27: =E27/B23 -> 0.0379848109
C28: Cash match to date: | E28: =SUM(G23,K23) -> 28051 | O28: % of Total Obligated Cash Match to date: | Q28: =E28/C23 -> 0.0942440919
C29: In-kind match to date: | E29: =SUM(H23,L23) -> 1264 | O29: % of Total Obligated In-kind Match to date: | Q29: =E29/D23 -> 0.00608572983
E31: . | O31: Comments
A32: Salaries & Benefits | B32: Grant Funds | D32: =J15 -> 2350 | E32: Grant Administrator's .05 FTE for 3 months= $2,350
B33: Cash Match | D33: =K15 -> 20331 | E33: Division Manager salaries and benefits for time spent on program $1,812 for Q4..2 Social workers A 161 hrs x 29.74 = $4,788 one month and B three months 496 hrs x $29.74 = $14,751.Correction Division Manager cash-match salaries & benefits for time spent on program for Q1 - Q3, incorrect hourly rate ($1,021)..
B34: In-kind Match | D34: =K16 -> 0
A35: Services & Supplies | B35: Grant Funds | D35: =J16 -> 0
B36: Cash Match | D36: =K16 -> 0
B37: In-kind Match | D37: =L16 -> 0
A38: Prof Services / Public Agency Subcontracts | B38: Grant Funds | D38: =J17 -> 15000 | E38: Five days of Police Department Staff training. Why'd You Stop Me? $15,000..
B39: Cash Match | D39: =K17 -> 0
B40: In-kind Match | D40: =L17 -> 0
A41: CBO Subcontracts | B41: Grant Funds | D41: =J18 -> 0
B42: Cash Match | D42: =K18 -> 0
B43: In-kind Match | D43: =L18 -> 0
A44: Indirect Costs | B44: Grant Funds | D44: 235 | E44: 10% of salaries and benefits
B45: Cash Match | D45: =K20 -> 0
B46: In-kind Match | D46: =L20 -> 0
A47: Equip/Fixed Assets | B47: Grant Funds | D47: =J21 -> 0
B48: Cash Match | D48: =K21 -> 0
B49: In-kind Match | D49: =-L21 -> 0
A50: Project Evaluation | B50: Grant Funds | D50: 0
B51: Cash Match | D51: =K22 -> 0
B52: In-kind Match | D52: =L22 -> 0
A53: Other | B53: Grant Funds | D53: 1311 | E53: 2019 Gang Prevention & Intervention Conference, Long Beach, CA 7 tickets
B54: Cash Match | D54: =K19 -> 0
B55: In-kind Match | D55: =L19 -> 0
A56: Project Income | D56: =M25 -> 0
A57: PERSON PREPARING REPORT | F57: AUTHORIZED FINANCIAL OFFICER | N57: BSCC Supplier Data - Internal Use Only
F58: By checking the box below, I hereby certify that I am the authorized financial officer of the herein named agency. I further certify that I have not violated any of the provisions of Section 1090 of the Government Code in incurring the expenditures reported in this invoice, nor in any other way; that Sections 1090 through 1096 of the Government Code will not be violated in any way in the expenditure of funds pursuant to this invoice; that statement of funds above is true, correct, and in accordance with program provisions in all respects; and that all expenditures submitted after the expiration date of this contract are for the purpose of substantiating obligations legally incurred during the contract period. Furthermore, by submitting this invoice, I acknowledge that it must adhere to all of the requirements in the BSCC Grant Administration Guide, including any updates to the Guide during the term of the grant agreement.
A59: Genevieve Chu, Senior Accountant | N59: ='INVOICE 3'!N59:Q59 -> 0000042790
A60: Name, Title | N60: ='INVOICE 1'!N60:Q60 -> Supplier ID
A61: (626) 744-6397 | N61: ='INVOICE 3'!N61:Q61 -> CITY OF PASADENA PUBLIC HEALTH DEPARTMENT
A62: Phone | N62: ='INVOICE 1'!N62:Q62 -> Supplier Name
A63: gchu@cityofpasadena.net | N63: ='INVOICE 3'!N63:Q63 -> 1845 N FAIR OAKS AVE
A64: Email | N64: ='INVOICE 1'!N64:Q64 -> Address Line 1
A65: 2019-06-27 | N65: ='INVOICE 3'!N65:Q65 -> PASADENA, CA 91103
A66: Date | N66: ='INVOICE 1'!N66:Q66 -> Address Line 2
F68: Manuel Carmona, Management Analyst V
F69: Name, Title
F70: (626) 744-6122
F71: Phone
F72: 2019-06-27
F73: Date
A75: BSCC USE ONLY
A76: Date Received: | C76: 2019-07-03 | I76: Approved By: | K76: Colleen Curtin | O76: Date: | P76: 2019-07-17
K77: BSCC Field Representative

Sheet INVOICE 5
A1: STATE OF CALIFORNIA | N1: Purchase Authority | O1: BSCC 5227
A2: BOARD OF STATE AND COMMUNITY CORRECTIONS | N2: Purchase Order: | O2: 5227-0000001824 | Q2: ='INVOICE 1'!Q2 -> 0
A3: Financial Invoice Form: BSCC 201 (Revised 04/2020)
A5: Program: | B5: ='INVOICE 1'!B5 -> Program Name | M5: Please Note: The California State Controller's Office will send all checks directly to the address listed in the "BSCC Vendor Data" section at the bottom of this invoice.
A7: Grantee: | B7: ='INVOICE 1'!B7 -> City of Pasadena Public Health Department | G7: Lead Public Agency: | I7: ='INVOICE 1'!I7 -> City of Pasadena Public Health Department
A9: Contract #: | B9: ='INVOICE 1'!B9 -> 853-17 | E9: Term: | F9: ='INVOICE 1'!F9 -> 2018-05-01 | G9: TO | I9: ='INVOICE 1'!I9 -> 2021-08-15 | N9: Invoicing Frequency | O9: ='INVOICE 1'!O9 -> Quarterly
A11: Invoice #: | B11: 5 CALVIP 18 | E11: Reporting Period: | F11: 2019-04-01 | G11: TO | I11: 2019-06-30 | J11: Due: | K11: 2020-08-15 | N11: Final Invoice (Y/N): | O11: No
A13: Line Items | B13: Budget | F13: Prior Expenditures | J13: This Reporting Period | N13: Balance
B14: Grant Funds | C14: Cash Match | D14: In-kind Match | E14: TOTAL | F14: Grant Funds | G14: Cash Match | H14: In-kind Match | I14: TOTAL | J14: Grant Funds | K14: Cash Match | L14: In-kind Match | M14: TOTAL | N14: Grant Funds | O14: Cash Match | P14: In-kind Match | Q14: TOTAL
A15: ='INVOICE 1'!A15 -> Salaries & Benefits | B15: ='INVOICE 4'!B15 -> 160000 | C15: ='INVOICE 4'!C15 -> 270584 | D15: ='INVOICE 4'!D15 -> 0 | E15: =SUM(B15:D15) -> 430584 | F15: =SUM('INVOICE 4'!F15,'INVOICE 4'!J15) -> 2350 | G15: =SUM('INVOICE 4'!G15,'INVOICE 4'!K15) -> 28051 | H15: =SUM('INVOICE 4'!H15,'INVOICE 4'!L15) -> 0 | I15: =SUM(F15:H15) -> 30401 | J15: 2025 | K15: 26785 | L15: 0 | M15: =SUM(J15:L15) -> 28810 | N15: =B15-F15-J15 -> 155625 | O15: 215748 | P15: 0 | Q15: =SUM(N15:P15) -> 371373
A16: ='INVOICE 1'!A16 -> Services & Supplies | B16: ='INVOICE 4'!B16 -> 14325 | C16: ='INVOICE 4'!C16 -> 0 | D16: ='INVOICE 4'!D16 -> 0 | E16: =SUM(B16:D16) -> 14325 | F16: =SUM('INVOICE 4'!F16,'INVOICE 4'!J16) -> 0 | G16: =SUM('INVOICE 4'!G16,'INVOICE 4'!K16) -> 0 | H16: =SUM('INVOICE 4'!H16,'INVOICE 4'!L16) -> 0 | I16: =SUM(F16:H16) -> 0 | J16: 0 | K16: 0 | L16: 0 | M16: =SUM(J16:L16) -> 0 | N16: 14325 | O16: 0 | P16: 0 | Q16: =SUM(N16:P16) -> 14325
A17: ='INVOICE 1'!A17 -> Prof Services / Public Agency Subcontracts | B17: ='INVOICE 4'!B17 -> 49626 | C17: ='INVOICE 4'!C17 -> 0 | D17: ='INVOICE 4'!D17 -> 0 | E17: 49626 | F17: =SUM('INVOICE 4'!F17,'INVOICE 4'!J17) -> 15000 | G17: =SUM('INVOICE 4'!G17,'INVOICE 4'!K17) -> 0 | H17: =SUM('INVOICE 4'!H17,'INVOICE 4'!L17) -> 0 | I17: 15000 | J17: 0 | K17: 0 | L17: 0 | M17: 0 | N17: 34626 | O17: 0 | P17: 0 | Q17: 34626
A18: ='INVOICE 1'!A18 -> CBO Subcontracts | B18: ='INVOICE 4'!B18 -> 248731 | C18: ='INVOICE 4'!C18 -> 0 | D18: ='INVOICE 4'!D18 -> 0 | E18: 248731 | F18: =SUM('INVOICE 4'!F18,'INVOICE 4'!J18) -> 0 | G18: =SUM('INVOICE 4'!G18,'INVOICE 4'!K18) -> 0 | H18: =SUM('INVOICE 4'!H18,'INVOICE 4'!L18) -> 0 | I18: 0 | J18: 4748 | K18: 0 | L18: 0 | M18: 4748 | N18: 243983 | O18: 0 | P18: 0 | Q18: 243983
A19: ='INVOICE 1'!A19 -> Indirect Costs | B19: ='INVOICE 4'!B19 -> 16000 | C19: ='INVOICE 4'!C19 -> 27058 | D19: ='INVOICE 4'!D19 -> 0 | E19: =SUM(B19:D19) -> 43058 | F19: =SUM('INVOICE 4'!F19,'INVOICE 4'!J19) -> 235 | G19: =SUM('INVOICE 4'!G19,'INVOICE 4'!K19) -> 0 | H19: =SUM('INVOICE 4'!H19,'INVOICE 4'!L19) -> 0 | I19: =SUM(F19:H19) -> 235 | J19: 203 | K19: 0 | L19: 0 | M19: =SUM(J19:L19) -> 203 | N19: =B19-F19-J19 -> 15562 | O19: =C19-G19-K19 -> 27058 | P19: =D19-H19-L19 -> 0 | Q19: =SUM(N19:P19) -> 42620
A20: ='INVOICE 1'!A20 -> Fixed Assets/Equipment | B20: ='INVOICE 4'!B20 -> 0 | C20: ='INVOICE 4'!C20 -> 0 | D20: ='INVOICE 4'!D20 -> 0 | E20: 0 | F20: =SUM('INVOICE 4'!F20,'INVOICE 4'!J20) -> 0 | G20: =SUM('INVOICE 4'!G20,'INVOICE 4'!K20) -> 0 | H20: =SUM('INVOICE 4'!H20,'INVOICE 4'!L20) -> 0 | I20: 0 | J20: 0 | K20: 0 | L20: 0 | M20: 0 | N20: 0 | O20: 0 | P20: 0 | Q20: 0
A21: ='INVOICE 1'!A21 -> Project Evaluation | B21: ='INVOICE 4'!B21 -> 0 | C21: ='INVOICE 4'!C21 -> 0 | D21: ='INVOICE 4'!D21 -> 10000 | E21: 10000 | F21: =SUM('INVOICE 4'!F21,'INVOICE 4'!J21) -> 0 | G21: =SUM('INVOICE 4'!G21,'INVOICE 4'!K21) -> 0 | H21: =SUM('INVOICE 4'!H21,'INVOICE 4'!L21) -> 0 | I21: 0 | J21: 0 | K21: 0 | L21: 0 | M21: 0 | N21: 0 | O21: 0 | P21: 10000 | Q21: 10000
A22: ='INVOICE 1'!A22 -> Other | B22: ='INVOICE 4'!B22 -> 8780 | C22: ='INVOICE 4'!C22 -> 0 | D22: ='INVOICE 4'!D22 -> 197699 | E22: 206479 | F22: =SUM('INVOICE 4'!F22,'INVOICE 4'!J22) -> 1311 | G22: =SUM('INVOICE 4'!G22,'INVOICE 4'!K22) -> 0 | H22: =SUM('INVOICE 4'!H22,'INVOICE 4'!L22) -> 1264 | I22: 2575 | J22: 1049 | K22: 0 | L22: 0 | M22: 1049 | N22: 6420 | O22: 0 | P22: 196435 | Q22: 202855
A23: TOTAL | B23: =SUM(B15:B22) -> 497462 | C23: 297642 | D23: 207699 | E23: 1002803 | F23: 18896 | G23: 28051 | H23: 1264 | I23: 48211 | J23: 8025 | K23: 26785 | L23: 0 | M23: 34810 | N23: 470541 | O23: 242806 | P23: 206435 | Q23: 919782
A25: Project Income | D25: Income reported to date | E25: ='INVOICE 1'!E25+'INVOICE 5'!L25 -> 0 | H25: Prior allocated income | I25: 0 | K25: This Period | L25: 0 | P25: Unallocated income balance | Q25: =E25-I25 -> 0
C27: Grant funds expended to date: | E27: =SUM(F23,J23) -> 26921 | I27: Grant funds claimed this period: | J27: =J23 -> 8025 | O27: Percentage Grant $$ expended to date: | Q27: =E27/B23 -> 0.05411669635
C28: Cash match to date: | E28: =SUM(G23,K23) -> 54836 | O28: % of Total Obligated Cash Match to date: | Q28: =E28/C23 -> 0.1842347518
C29: In-kind match to date: | E29: =SUM(H23,L23) -> 1264 | O29: % of Total Obligated In-kind Match to date: | Q29: =E29/D23 -> 0.00608572983
E31: Expenditure Descriptions - Units / $ Amounts | O31: Comments
A32: Salaries & Benefits | B32: Grant Funds | D32: =J15 -> 2025 | E32: Grant Administrator's .05 FTE for 3 months - 54.4hrs x 24.46 = $1,331 + $694.14 benefits = $2,.025.
B33: Cash Match | D33: =K15 -> 26785 | E33: Division Mngr sal & ben for time spent on program $11,798.70 for Q5. 140 hrs x 55.54 = $7,776.60 + $4,023.10 ben = $11,798.70., Dir/Hlth Offcr sal & ben for time spent on prog $4,661.13 for Q5. 31 hrs x 99.09= $3,071.79+$1,589.34 ben =$4,661.13..CSR III sal & ben spent for time spent on prog $3,247.92 for Q5. 156 hrs x 20.82 = 3,247.92 - 2 Social Wrkr @ $2,141.28 ea. (72hrs x 29.74 = 2,141).Admin Specialist sal and benefits for time spent on program $2,794.81 for Q5. 77hrs x 23.92 =$1,841.84 + 952.97 ben = 2,794.81
B34: In-kind Match | D34: =K16 -> 0
A35: Services & Supplies | B35: Grant Funds | D35: =J16 -> 0
B36: Cash Match | D36: =K16 -> 0
B37: In-kind Match | D37: =L16 -> 0
A38: Prof Services / Public Agency Subcontracts | B38: Grant Funds | D38: =J17 -> 0
B39: Cash Match | D39: =K17 -> 0
B40: In-kind Match | D40: =L17 -> 0
A41: CBO Subcontracts | B41: Grant Funds | D41: =J18 -> 4748 | E41: Harvest Ministries community exp period 6/11-6/30/19 - CALVIP community based advocacy = 4,747.71
B42: Cash Match | D42: =K18 -> 0
B43: In-kind Match | D43: =L18 -> 0
A44: Indirect Costs | B44: Grant Funds | D44: =J19 -> 203 | E44: 10% of salaries and benefits - 10% of 2,025 = 202.50
B45: Cash Match | D45: =K20 -> 0
B46: In-kind Match | D46: =L20 -> 0
A47: Equip/Fixed Assets | B47: Grant Funds | D47: =J21 -> 0
B48: Cash Match | D48: =K21 -> 0
B49: In-kind Match | D49: =-L21 -> 0
A50: Project Evaluation | B50: Grant Funds
B51: Cash Match | D51: =K22 -> 0
B52: In-kind Match | D52: =L22 -> 0
A53: Other | B53: Grant Funds | D53: 1049 | E53: Staff training lunch - Subway Catering meal = 1,048.50 - Invoice #18149749-39 PAID
B54: Cash Match | D54: =K19 -> 0
B55: In-kind Match | D55: =L19 -> 0
A56: Project Income | D56: =M25 -> 0
A57: PERSON PREPARING REPORT | F57: AUTHORIZED FINANCIAL OFFICER | N57: BSCC Supplier Data - Internal Use Only
F58: By checking the box below, I hereby certify that I am the authorized financial officer of the herein named agency. I further certify that I have not violated any of the provisions of Section 1090 of the Government Code in incurring the expenditures reported in this invoice, nor in any other way; that Sections 1090 through 1096 of the Government Code will not be violated in any way in the expenditure of funds pursuant to this invoice; that statement of funds above is true, correct, and in accordance with program provisions in all respects; and that all expenditures submitted after the expiration date of this contract are for the purpose of substantiating obligations legally incurred during the contract period. Furthermore, by submitting this invoice, I acknowledge that it must adhere to all of the requirements in the BSCC Grant Administration Guide, including any updates to the Guide during the term of the grant agreement.
A59: Genevieve Chu, Senior Accountant | N59: ='INVOICE 4'!N59:Q59 -> 0000042790
A60: Name, Title | N60: ='INVOICE 1'!N60:Q60 -> Supplier ID
A61: (626) 744-6397 | N61: ='INVOICE 4'!N61:Q61 -> CITY OF PASADENA PUBLIC HEALTH DEPARTMENT
A62: Phone | N62: ='INVOICE 1'!N62:Q62 -> Supplier Name
A63: gchu@cityofpasadena.net | N63: ='INVOICE 4'!N63:Q63 -> 1845 N FAIR OAKS AVE
A64: Email | N64: ='INVOICE 1'!N64:Q64 -> Address Line 1
A65: 2019-08-03 | N65: ='INVOICE 4'!N65:Q65 -> PASADENA, CA 91103
A66: Date | N66: ='INVOICE 1'!N66:Q66 -> Address Line 2
F68: Manuel Carmona, Management Analyst V
F69: Name, Title
F70: (626) 744-6122
F71: Phone
F72: 2019-08-09
F73: Date
A75: BSCC USE ONLY
A76: Date Received: | C76: 2019-08-12 | I76: Approved By: | K76: Colleen Curtin | O76: Date: | P76: 2019-08-14
K77: BSCC Field Representative

Sheet INVOICE 6
A1: STATE OF CALIFORNIA | N1: Purchase Authority | O1: BSCC 5227
A2: BOARD OF STATE AND COMMUNITY CORRECTIONS | N2: Purchase Order: | O2: 5227-0000001824 | Q2: ='INVOICE 1'!Q2 -> 0
A3: Financial Invoice Form: BSCC 201 (Revised 04/2020)
A5: Program: | B5: CalVIP -17 | M5: Please Note: The California State Controller's Office will send all checks directly to the address listed in the "BSCC Vendor Data" section at the bottom of this invoice.
A7: Grantee: | B7: ='INVOICE 1'!B7 -> City of Pasadena Public Health Department | G7: Lead Public Agency: | I7: ='INVOICE 1'!I7 -> City of Pasadena Public Health Department
A9: Contract #: | B9: ='INVOICE 1'!B9 -> 853-17 | E9: Term: | F9: ='INVOICE 1'!F9 -> 2018-05-01 | G9: TO | I9: ='INVOICE 1'!I9 -> 2021-08-15 | N9: Invoicing Frequency | O9: ='INVOICE 1'!O9 -> Quarterly
A11: Invoice #: | B11: 6 CALVIP 18 | E11: Reporting Period: | F11: 2019-07-01 | G11: TO | I11: 2019-09-30 | J11: Due: | K11: 2019-09-30 | N11: Final Invoice (Y/N): | O11: No
A13: Line Items | B13: Budget | F13: Prior Expenditures | J13: This Reporting Period | N13: Balance
B14: Grant Funds | C14: Cash Match | D14: In-kind Match | E14: TOTAL | F14: Grant Funds | G14: Cash Match | H14: In-kind Match | I14: TOTAL | J14: Grant Funds | K14: Cash Match | L14: In-kind Match | M14: TOTAL | N14: Grant Funds | O14: Cash Match | P14: In-kind Match | Q14: TOTAL
A15: ='INVOICE 1'!A15 -> Salaries & Benefits | B15: ='INVOICE 5'!B15 -> 160000 | C15: ='INVOICE 5'!C15 -> 270584 | D15: ='INVOICE 5'!D15 -> 0 | E15: =SUM(B15:D15) -> 430584 | F15: =SUM('INVOICE 5'!F15,'INVOICE 5'!J15) -> 4375 | G15: =SUM('INVOICE 5'!G15,'INVOICE 5'!K15) -> 54836 | H15: =SUM('INVOICE 5'!H15,'INVOICE 5'!L15) -> 0 | I15: =SUM(F15:H15) -> 59211 | J15: 15246 | K15: 24478 | L15: 0 | M15: =SUM(J15:L15) -> 39724 | N15: =B15-F15-J15 -> 140379 | O15: 191270 | P15: 0 | Q15: =SUM(N15:P15) -> 331649
A16: ='INVOICE 1'!A16 -> Services & Supplies | B16: ='INVOICE 5'!B16 -> 14325 | C16: ='INVOICE 5'!C16 -> 0 | D16: ='INVOICE 5'!D16 -> 0 | E16: =SUM(B16:D16) -> 14325 | F16: =SUM('INVOICE 5'!F16,'INVOICE 5'!J16) -> 0 | G16: =SUM('INVOICE 5'!G16,'INVOICE 5'!K16) -> 0 | H16: =SUM('INVOICE 5'!H16,'INVOICE 5'!L16) -> 0 | I16: =SUM(F16:H16) -> 0 | J16: 164 | K16: 0 | L16: 0 | M16: =SUM(J16:L16) -> 164 | N16: 14161 | O16: 0 | P16: 0 | Q16: =SUM(N16:P16) -> 14161
A17: ='INVOICE 1'!A17 -> Prof Services / Public Agency Subcontracts | B17: ='INVOICE 5'!B17 -> 49626 | C17: ='INVOICE 5'!C17 -> 0 | D17: ='INVOICE 5'!D17 -> 0 | E17: 49626 | F17: =SUM('INVOICE 5'!F17,'INVOICE 5'!J17) -> 15000 | G17: =SUM('INVOICE 5'!G17,'INVOICE 5'!K17) -> 0 | H17: =SUM('INVOICE 5'!H17,'INVOICE 5'!L17) -> 0 | I17: 15000 | J17: 24278 | K17: 0 | L17: 0 | M17: 24278 | N17: 10348 | O17: 0 | P17: 0 | Q17: 10348
A18: ='INVOICE 1'!A18 -> CBO Subcontracts | B18: ='INVOICE 5'!B18 -> 248731 | C18: ='INVOICE 5'!C18 -> 0 | D18: ='INVOICE 5'!D18 -> 0 | E18: 248731 | F18: =SUM('INVOICE 5'!F18,'INVOICE 5'!J18) -> 4748 | G18: =SUM('INVOICE 5'!G18,'INVOICE 5'!K18) -> 0 | H18: =SUM('INVOICE 5'!H18,'INVOICE 5'!L18) -> 0 | I18: 4748 | J18: 36805 | K18: 0 | L18: 0 | M18: 36805 | N18: 207178 | O18: 0 | P18: 0 | Q18: 207178
A19: ='INVOICE 1'!A19 -> Indirect Costs | B19: ='INVOICE 5'!B19 -> 16000 | C19: ='INVOICE 5'!C19 -> 27058 | D19: ='INVOICE 5'!D19 -> 0 | E19: =SUM(B19:D19) -> 43058 | F19: =SUM('INVOICE 5'!F19,'INVOICE 5'!J19) -> 438 | G19: =SUM('INVOICE 5'!G19,'INVOICE 5'!K19) -> 0 | H19: =SUM('INVOICE 5'!H19,'INVOICE 5'!L19) -> 0 | I19: =SUM(F19:H19) -> 438 | J19: 1552 | K19: 0 | L19: 0 | M19: =SUM(J19:L19) -> 1552 | N19: =B19-F19-J19 -> 14010 | O19: =C19-G19-K19 -> 27058 | P19: =D19-H19-L19 -> 0 | Q19: =SUM(N19:P19) -> 41068
A20: ='INVOICE 1'!A20 -> Fixed Assets/Equipment | B20: ='INVOICE 5'!B20 -> 0 | C20: ='INVOICE 5'!C20 -> 0 | D20: ='INVOICE 5'!D20 -> 0 | E20: 0 | F20: =SUM('INVOICE 5'!F20,'INVOICE 5'!J20) -> 0 | G20: =SUM('INVOICE 5'!G20,'INVOICE 5'!K20) -> 0 | H20: =SUM('INVOICE 5'!H20,'INVOICE 5'!L20) -> 0 | I20: 0 | J20: 0 | K20: 0 | L20: 0 | M20: 0 | N20: 0 | O20: 0 | P20: 0 | Q20: 0
A21: ='INVOICE 1'!A21 -> Project Evaluation | B21: ='INVOICE 5'!B21 -> 0 | C21: ='INVOICE 5'!C21 -> 0 | D21: ='INVOICE 5'!D21 -> 10000 | E21: 10000 | F21: =SUM('INVOICE 5'!F21,'INVOICE 5'!J21) -> 0 | G21: =SUM('INVOICE 5'!G21,'INVOICE 5'!K21) -> 0 | H21: =SUM('INVOICE 5'!H21,'INVOICE 5'!L21) -> 0 | I21: 0 | J21: 0 | K21: 0 | L21: 0 | M21: 0 | N21: 0 | O21: 0 | P21: 10000 | Q21: 10000
A22: ='INVOICE 1'!A22 -> Other | B22: ='INVOICE 5'!B22 -> 8780 | C22: ='INVOICE 5'!C22 -> 0 | D22: ='INVOICE 5'!D22 -> 197699 | E22: 206479 | F22: =SUM('INVOICE 5'!F22,'INVOICE 5'!J22) -> 2360 | G22: =SUM('INVOICE 5'!G22,'INVOICE 5'!K22) -> 0 | H22: =SUM('INVOICE 5'!H22,'INVOICE 5'!L22) -> 1264 | I22: 3624 | J22: 445 | K22: 0 | L22: 0 | M22: 445 | N22: 5975 | O22: 0 | P22: 196435 | Q22: 202410
A23: TOTAL | B23: =SUM(B15:B22) -> 497462 | C23: 297642 | D23: 207699 | E23: 1002803 | F23: 26921 | G23: 54836 | H23: 1264 | I23: 83021 | J23: 78490 | K23: 24478 | L23: 0 | M23: 102968 | N23: 392051 | O23: 218328 | P23: 206435 | Q23: 816814
A25: Project Income | D25: Income reported to date | E25: ='INVOICE 1'!E25+'INVOICE 6'!L25 -> 0 | H25: Prior allocated income | I25: 0 | K25: This Period | L25: 0 | P25: Unallocated income balance | Q25: =E25-I25 -> 0
C27: Grant funds expended to date: | E27: =SUM(F23,J23) -> 105411 | I27: Grant funds claimed this period: | J27: =J23 -> 78490 | O27: Percentage Grant $$ expended to date: | Q27: =E27/B23 -> 0.2118975922
C28: Cash match to date: | E28: =SUM(G23,K23) -> 79314 | O28: % of Total Obligated Cash Match to date: | Q28: =E28/C23 -> 0.2664744895
C29: In-kind match to date: | E29: =SUM(H23,L23) -> 1264 | O29: % of Total Obligated In-kind Match to date: | Q29: =E29/D23 -> 0.00608572983
E31: Expenditure Descriptions - Units / $ Amounts | O31: Comments
A32: Salaries & Benefits | B32: Grant Funds | D32: =J15 -> 15246 | E32: Grant Administrator $2,589 - $1,717 in salaries and $872 in benefits.Program Manager $4,638 - $3,312 in salaries and $1,326 in benefits..Social Worker $5,065 - $3,298 in salaries and $1,767 in benefits.Administrative support 1) $952.88 - $646.98 salaries and $305.90 benefits 2) $2,000.71 - $1,402.61 salaries and $598.10 benefits
B33: Cash Match | D33: =K15 -> 24478 | E33: Division Mngr sal & ben for time spent on program $12,660.33 for Q6. 146 hrs x 55.54 = $8,108.84 + $4,551.49 ben = $12,660.33.CSR III sal & ben spent for time spent on prog $5,798.37 for Q6. 278.5 hrs x 20.82 = 5,798.37 - 1 Social Wrkr @ $1,933.10 (65 hrs x 29.74 = 1,933.10).Admin Specialist sal and ben for time spent on prog. $4,085.91 for Q6. 107 hrs x 23.92 =$2,617 + 1,468.92 ben = $4,085.91
B34: In-kind Match | D34: =K16 -> 0
A35: Services & Supplies | B35: Grant Funds | D35: =J16 -> 164 | E35: Printer Copies for July and August.
B36: Cash Match | D36: =K16 -> 0
B37: In-kind Match | D37: =L16 -> 0
A38: Prof Services / Public Agency Subcontracts | B38: Grant Funds | D38: =J17 -> 24278 | E38: $24,090.00 (2) Police Officer (Gang) training, $187.53 Copier maintenance
B39: Cash Match | D39: =K17 -> 0
B40: In-kind Match | D40: =L17 -> 0
A41: CBO Subcontracts | B41: Grant Funds | D41: =J18 -> 36805 | E41: Harvest Ministries community exp period 7/1/19-9/30/19 - CALVIP community based advocacy = 36,805.17
B42: Cash Match | D42: =K18 -> 0
B43: In-kind Match | D43: =L18 -> 0
A44: Indirect Costs | B44: Grant Funds | D44: =J19 -> 1552 | E44: 10% of salaries and benefits - includes YTD adjustment
B45: Cash Match | D45: =K20 -> 0
B46: In-kind Match | D46: =L20 -> 0
A47: Equip/Fixed Assets | B47: Grant Funds | D47: =J21 -> 0
B48: Cash Match | D48: =K21 -> 0
B49: In-kind Match | D49: =-L21 -> 0
A50: Project Evaluation | B50: Grant Funds | D50: 0
B51: Cash Match | D51: =K22 -> 0
B52: In-kind Match | D52: =L22 -> 0
A53: Other | B53: Grant Funds | D53: 445 | E53: EMDR training for Vanessa Gonzalez 9/20-9/22/19 - 445.00
B54: Cash Match | D54: =K19 -> 0
B55: In-kind Match | D55: =L19 -> 0
A56: Project Income | D56: =M25 -> 0
A57: PERSON PREPARING REPORT | F57: AUTHORIZED FINANCIAL OFFICER | N57: BSCC Supplier Data - Internal Use Only
F58: By checking the box below, I hereby certify that I am the authorized financial officer of the herein named agency. I further certify that I have not violated any of the provisions of Section 1090 of the Government Code in incurring the expenditures reported in this invoice, nor in any other way; that Sections 1090 through 1096 of the Government Code will not be violated in any way in the expenditure of funds pursuant to this invoice; that statement of funds above is true, correct, and in accordance with program provisions in all respects; and that all expenditures submitted after the expiration date of this contract are for the purpose of substantiating obligations legally incurred during the contract period. Furthermore, by submitting this invoice, I acknowledge that it must adhere to all of the requirements in the BSCC Grant Administration Guide, including any updates to the Guide during the term of the grant agreement.
A59: Genevieve Chu, Senior Accountant | N59: ='INVOICE 5'!N59:Q59 -> 0000042790
A60: Name, Title | N60: ='INVOICE 1'!N60:Q60 -> Supplier ID
A61: (626) 744-6397 | N61: ='INVOICE 5'!N61:Q61 -> CITY OF PASADENA PUBLIC HEALTH DEPARTMENT
A62: Phone | N62: ='INVOICE 1'!N62:Q62 -> Supplier Name
A63: gchu@cityofpasadena.net | N63: ='INVOICE 5'!N63:Q63 -> 1845 N FAIR OAKS AVE
A64: Email | N64: ='INVOICE 1'!N64:Q64 -> Address Line 1
A65: 2019-11-06 | N65: ='INVOICE 5'!N65:Q65 -> PASADENA, CA 91103
A66: Date | N66: ='INVOICE 1'!N66:Q66 -> Address Line 2
F68: Manuel Carmona, Management Analyst V
F69: Name, Title
F70: (626) 744-6122
F71: Phone
F72: 2019-11-06
F73: Date
A75: BSCC USE ONLY
A76: Date Received: | C76: 2019-11-14 | I76: Approved By: | K76: Colleen Curtin | O76: Date: | P76: 2019-11-15
K77: BSCC Field Representative

Sheet INVOICE 7
A1: STATE OF CALIFORNIA | N1: Purchase Authority | O1: BSCC 5227
A2: BOARD OF STATE AND COMMUNITY CORRECTIONS | N2: Purchase Order: | O2: 5227-0000001824 | Q2: ='INVOICE 1'!Q2 -> 0
A3: Financial Invoice Form: BSCC 201 (Revised 04/2020)
A5: Program: | B5: ='INVOICE 1'!B5 -> Program Name | M5: Please Note: The California State Controller's Office will send all checks directly to the address listed in the "BSCC Vendor Data" section at the bottom of this invoice.
A7: Grantee: | B7: ='INVOICE 1'!B7 -> City of Pasadena Public Health Department | G7: Lead Public Agency: | I7: ='INVOICE 1'!I7 -> City of Pasadena Public Health Department
A9: Contract #: | B9: ='INVOICE 1'!B9 -> 853-17 | E9: Term: | F9: ='INVOICE 1'!F9 -> 2018-05-01 | G9: TO | I9: ='INVOICE 1'!I9 -> 2021-08-15 | N9: Invoicing Frequency | O9: ='INVOICE 1'!O9 -> Quarterly
A11: Invoice #: | B11: 7 CALVIP 18 | E11: Reporting Period: | F11: 2019-07-01 | G11: TO | I11: 2019-12-31 | J11: Due: | K11: 2020-02-15 | N11: Final Invoice (Y/N): | O11: No
A13: Line Items | B13: Budget | F13: Prior Expenditures | J13: This Reporting Period | N13: Balance
B14: Grant Funds | C14: Cash Match | D14: In-kind Match | E14: TOTAL | F14: Grant Funds | G14: Cash Match | H14: In-kind Match | I14: TOTAL | J14: Grant Funds | K14: Cash Match | L14: In-kind Match | M14: TOTAL | N14: Grant Funds | O14: Cash Match | P14: In-kind Match | Q14: TOTAL
A15: ='INVOICE 1'!A15 -> Salaries & Benefits | B15: ='INVOICE 6'!B15 -> 160000 | C15: ='INVOICE 6'!C15 -> 270584 | D15: ='INVOICE 6'!D15 -> 0 | E15: =SUM(B15:D15) -> 430584 | F15: =SUM('INVOICE 6'!F15,'INVOICE 6'!J15) -> 19621 | G15: =SUM('INVOICE 6'!G15,'INVOICE 6'!K15) -> 79314 | H15: =SUM('INVOICE 6'!H15,'INVOICE 6'!L15) -> 0 | I15: =SUM(F15:H15) -> 98935 | J15: 4913 | K15: 7494 | L15: 0 | M15: =SUM(J15:L15) -> 12407 | N15: =B15-F15-J15 -> 135466 | O15: 183776 | P15: 0 | Q15: =SUM(N15:P15) -> 319242
A16: ='INVOICE 1'!A16 -> Services & Supplies | B16: ='INVOICE 6'!B16 -> 14325 | C16: ='INVOICE 6'!C16 -> 0 | D16: ='INVOICE 6'!D16 -> 0 | E16: =SUM(B16:D16) -> 14325 | F16: =SUM('INVOICE 6'!F16,'INVOICE 6'!J16) -> 164 | G16: =SUM('INVOICE 6'!G16,'INVOICE 6'!K16) -> 0 | H16: =SUM('INVOICE 6'!H16,'INVOICE 6'!L16) -> 0 | I16: =SUM(F16:H16) -> 164 | J16: 2769 | K16: 0 | L16: 0 | M16: =SUM(J16:L16) -> 2769 | N16: 11392 | O16: 0 | P16: 0 | Q16: =SUM(N16:P16) -> 11392
A17: ='INVOICE 1'!A17 -> Prof Services / Public Agency Subcontracts | B17: ='INVOICE 6'!B17 -> 49626 | C17: ='INVOICE 6'!C17 -> 0 | D17: ='INVOICE 6'!D17 -> 0 | E17: 49626 | F17: =SUM('INVOICE 6'!F17,'INVOICE 6'!J17) -> 39278 | G17: =SUM('INVOICE 6'!G17,'INVOICE 6'!K17) -> 0 | H17: =SUM('INVOICE 6'!H17,'INVOICE 6'!L17) -> 0 | I17: 39278 | J17: 188 | K17: 0 | L17: 0 | M17: 188 | N17: 10160 | O17: 0 | P17: 0 | Q17: 10160
A18: ='INVOICE 1'!A18 -> CBO Subcontracts | B18: ='INVOICE 6'!B18 -> 248731 | C18: ='INVOICE 6'!C18 -> 0 | D18: ='INVOICE 6'!D18 -> 0 | E18: 248731 | F18: =SUM('INVOICE 6'!F18,'INVOICE 6'!J18) -> 41553 | G18: =SUM('INVOICE 6'!G18,'INVOICE 6'!K18) -> 0 | H18: =SUM('INVOICE 6'!H18,'INVOICE 6'!L18) -> 0 | I18: 41553 | J18: 60293 | K18: 0 | L18: 0 | M18: 60293 | N18: 146885 | O18: 0 | P18: 0 | Q18: 146885
A19: ='INVOICE 1'!A19 -> Indirect Costs | B19: ='INVOICE 6'!B19 -> 16000 | C19: ='INVOICE 6'!C19 -> 27058 | D19: ='INVOICE 6'!D19 -> 0 | E19: =SUM(B19:D19) -> 43058 | F19: =SUM('INVOICE 6'!F19,'INVOICE 6'!J19) -> 1990 | G19: =SUM('INVOICE 6'!G19,'INVOICE 6'!K19) -> 0 | H19: =SUM('INVOICE 6'!H19,'INVOICE 6'!L19) -> 0 | I19: =SUM(F19:H19) -> 1990 | J19: 491 | K19: 0 | L19: 0 | M19: =SUM(J19:L19) -> 491 | N19: =B19-F19-J19 -> 13519 | O19: =C19-G19-K19 -> 27058 | P19: =D19-H19-L19 -> 0 | Q19: =SUM(N19:P19) -> 40577
A20: ='INVOICE 1'!A20 -> Fixed Assets/Equipment | B20: ='INVOICE 6'!B20 -> 0 | C20: ='INVOICE 6'!C20 -> 0 | D20: ='INVOICE 6'!D20 -> 0 | E20: 0 | F20: =SUM('INVOICE 6'!F20,'INVOICE 6'!J20) -> 0 | G20: =SUM('INVOICE 6'!G20,'INVOICE 6'!K20) -> 0 | H20: =SUM('INVOICE 6'!H20,'INVOICE 6'!L20) -> 0 | I20: 0 | J20: 0 | K20: 0 | L20: 0 | M20: 0 | N20: 0 | O20: 0 | P20: 0 | Q20: 0
A21: ='INVOICE 1'!A21 -> Project Evaluation | B21: ='INVOICE 6'!B21 -> 0 | C21: ='INVOICE 6'!C21 -> 0 | D21: ='INVOICE 6'!D21 -> 10000 | E21: 10000 | F21: =SUM('INVOICE 6'!F21,'INVOICE 6'!J21) -> 0 | G21: =SUM('INVOICE 6'!G21,'INVOICE 6'!K21) -> 0 | H21: =SUM('INVOICE 6'!H21,'INVOICE 6'!L21) -> 0 | I21: 0 | J21: 0 | K21: 0 | L21: 0 | M21: 0 | N21: 0 | O21: 0 | P21: 10000 | Q21: 10000
A22: ='INVOICE 1'!A22 -> Other | B22: ='INVOICE 6'!B22 -> 8780 | C22: ='INVOICE 6'!C22 -> 0 | D22: ='INVOICE 6'!D22 -> 197699 | E22: 206479 | F22: =SUM('INVOICE 6'!F22,'INVOICE 6'!J22) -> 2805 | G22: =SUM('INVOICE 6'!G22,'INVOICE 6'!K22) -> 0 | H22: =SUM('INVOICE 6'!H22,'INVOICE 6'!L22) -> 1264 | I22: 4069 | J22: 820 | K22: 0 | L22: 0 | M22: 820 | N22: 5155 | O22: 0 | P22: 196435 | Q22: 201590
A23: TOTAL | B23: =SUM(B15:B22) -> 497462 | C23: 297642 | D23: 207699 | E23: 1002803 | F23: 105411 | G23: 79314 | H23: 1264 | I23: 185989 | J23: 69474 | K23: 7494 | L23: 0 | M23: 76968 | N23: 322577 | O23: 210834 | P23: 206435 | Q23: 739846
A25: Project Income | D25: Income reported to date | E25: ='INVOICE 1'!E25+'INVOICE 7'!L25 -> 0 | H25: Prior allocated income | I25: 0 | K25: This Period | L25: 0 | P25: Unallocated income balance | Q25: =E25-I25 -> 0
C27: Grant funds expended to date: | E27: =SUM(F23,J23) -> 174885 | I27: Grant funds claimed this period: | J27: =J23 -> 69474 | O27: Percentage Grant $$ expended to date: | Q27: =E27/B23 -> 0.3515544906
C28: Cash match to date: | E28: =SUM(G23,K23) -> 86808 | O28: % of Total Obligated Cash Match to date: | Q28: =E28/C23 -> 0.2916523878
C29: In-kind match to date: | E29: =SUM(H23,L23) -> 1264 | O29: % of Total Obligated In-kind Match to date: | Q29: =E29/D23 -> 0.00608572983
E31: Expenditure Descriptions - Units / $ Amounts | O31: Comments
A32: Salaries & Benefits | B32: Grant Funds | D32: =J15 -> 4913 | E32: Grant Administrator $1,943.13 - $1,300.16 and $642.97 in benefits.Admin support $945.13 - $646.98 in salaries and $298.15 in benefits. Accounting support - $2,025.17 - $1,435.80 in salaries and $$589.37 in benefits
B33: Cash Match | D33: =K15 -> 7494 | E33: Division Mngr sal & ben for time spent on program $5,202.88 for Q7. 60 hrs x 55.54 = $3,332.40 + ben = $1,870.48.Admin Specialist sal and ben for time spent on program $2,291.17 for Q7. 60 hrs x 24.46 = 1,467.47 + ben = $823.69 .
B34: In-kind Match | D34: =K16 -> 0
A35: Services & Supplies | B35: Grant Funds | D35: =J16 -> 2769 | E35: printer copies for Q7 - Office Corp - $170.11. Impressions - shirts and bags for program with logos -$2,246.58 + $352.73 = 2,599.31
B36: Cash Match | D36: =K16 -> 0 | E36: .
B37: In-kind Match | D37: =L16 -> 0
A38: Prof Services / Public Agency Subcontracts | B38: Grant Funds | D38: =J17 -> 188 | E38: Copier maintenance for Q7 - $188.03 - Oct $62.51 - Nov $62.51 - Dec $63.01
B39: Cash Match | D39: =K17 -> 0
B40: In-kind Match | D40: =L17 -> 0
A41: CBO Subcontracts | B41: Grant Funds | D41: =J18 -> 60293 | E41: Harvest Ministries, Inc. - community exp period 10/1/19-12/31/19 - CalVIP community based advocacy - $60,292.61- Oct - $18,830.65 - Nov - $17,572.83 - Dec - $23,889.13
B42: Cash Match | D42: =K18 -> 0
B43: In-kind Match | D43: =L18 -> 0
A44: Indirect Costs | B44: Grant Funds | D44: =J19 -> 491 | E44: %10 of salaries and benefits - includes YTD adjustments
B45: Cash Match | D45: =K20 -> 0
B46: In-kind Match | D46: =L20 -> 0
A47: Equip/Fixed Assets | B47: Grant Funds | D47: =J21 -> 0
B48: Cash Match | D48: =K21 -> 0
B49: In-kind Match | D49: =-L21 -> 0
A50: Project Evaluation | B50: Grant Funds | D50: 0
B51: Cash Match | D51: =K22 -> 0
B52: In-kind Match | D52: =L22 -> 0
A53: Other | B53: Grant Funds | D53: 820 | E53: EMDR IItraining for Vanessa Gonzalez - $445.00 - 11/21/19, CalVIP training - $375.00 - www.calcitiesvpn.org.
B54: Cash Match | D54: =K19 -> 0
B55: In-kind Match | D55: =L19 -> 0
A56: Project Income | D56: =M25 -> 0
A57: PERSON PREPARING REPORT | F57: AUTHORIZED FINANCIAL OFFICER | N57: BSCC Supplier Data - Internal Use Only
F58: By checking the box below, I hereby certify that I am the authorized financial officer of the herein named agency. I further certify that I have not violated any of the provisions of Section 1090 of the Government Code in incurring the expenditures reported in this invoice, nor in any other way; that Sections 1090 through 1096 of the Government Code will not be violated in any way in the expenditure of funds pursuant to this invoice; that statement of funds above is true, correct, and in accordance with program provisions in all respects; and that all expenditures submitted after the expiration date of this contract are for the purpose of substantiating obligations legally incurred during the contract period. Furthermore, by submitting this invoice, I acknowledge that it must adhere to all of the requirements in the BSCC Grant Administration Guide, including any updates to the Guide during the term of the grant agreement.
A59: Genevieve Chu, Senior Accountant | N59: ='INVOICE 6'!N59:Q59 -> 0000042790
A60: Name, Title | N60: ='INVOICE 1'!N60:Q60 -> Supplier ID
A61: (626) 744-6397 | N61: ='INVOICE 6'!N61:Q61 -> CITY OF PASADENA PUBLIC HEALTH DEPARTMENT
A62: Phone | N62: ='INVOICE 1'!N62:Q62 -> Supplier Name
A63: gchu@cityofpasadena.net | N63: ='INVOICE 6'!N63:Q63 -> 1845 N FAIR OAKS AVE
A64: Email | N64: ='INVOICE 1'!N64:Q64 -> Address Line 1
A65: 2020-02-10 | N65: ='INVOICE 6'!N65:Q65 -> PASADENA, CA 91103
A66: Date | N66: ='INVOICE 1'!N66:Q66 -> Address Line 2
F68: Manuel Carmona, Management Analyst V
F69: Name, Title
F70: (626) 744-6122
F71: Phone
F72: 2020-02-10
F73: Date
A75: BSCC USE ONLY
A76: Date Received: | C76: 2020-02-13 | I76: Approved By: | K76: Colleen Curtin | O76: Date: | P76: 2020-02-18
K77: BSCC Field Representative

Sheet INVOICE 8
A1: STATE OF CALIFORNIA | N1: Purchase Authority | O1: BSCC 5227
A2: BOARD OF STATE AND COMMUNITY CORRECTIONS | N2: Purchase Order: | O2: 5227-0000001824/2335 | Q2: ='INVOICE 1'!Q2 -> 0
A3: Financial Invoice Form: BSCC 201 (Revised 04/2020)
A5: Program: | B5: ='INVOICE 1'!B5 -> Program Name | M5: Please Note: The California State Controller's Office will send all checks directly to the address listed in the "BSCC Vendor Data" section at the bottom of this invoice.
A7: Grantee: | B7: ='INVOICE 1'!B7 -> City of Pasadena Public Health Department | G7: Lead Public Agency: | I7: ='INVOICE 1'!I7 -> City of Pasadena Public Health Department
A9: Contract #: | B9: ='INVOICE 1'!B9 -> 853-17 | E9: Term: | F9: ='INVOICE 1'!F9 -> 2018-05-01 | G9: TO | I9: ='INVOICE 1'!I9 -> 2021-08-15 | N9: Invoicing Frequency | O9: ='INVOICE 1'!O9 -> Quarterly
A11: Invoice #: | B11: 8 CALVIP 18 | E11: Reporting Period: | F11: 2020-01-01 | G11: TO | I11: 2020-03-31 | J11: Due: | K11: 2020-04-30 | N11: Final Invoice (Y/N): | O11: No
A13: Line Items | B13: Budget | F13: Prior Expenditures | J13: This Reporting Period | N13: Balance
B14: Grant Funds | C14: Cash Match | D14: In-kind Match | E14: TOTAL | F14: Grant Funds | G14: Cash Match | H14: In-kind Match | I14: TOTAL | J14: Grant Funds | K14: Cash Match | L14: In-kind Match | M14: TOTAL | N14: Grant Funds | O14: Cash Match | P14: In-kind Match | Q14: TOTAL
A15: ='INVOICE 1'!A15 -> Salaries & Benefits | B15: ='INVOICE 7'!B15 -> 160000 | C15: ='INVOICE 7'!C15 -> 270584 | D15: ='INVOICE 7'!D15 -> 0 | E15: =SUM(B15:D15) -> 430584 | F15: =SUM('INVOICE 7'!F15,'INVOICE 7'!J15) -> 24534 | G15: =SUM('INVOICE 7'!G15,'INVOICE 7'!K15) -> 86808 | H15: =SUM('INVOICE 7'!H15,'INVOICE 7'!L15) -> 0 | I15: =SUM(F15:H15) -> 111342 | J15: 12282 | K15: 3504 | L15: 0 | M15: =SUM(J15:L15) -> 15786 | N15: =B15-F15-J15 -> 123184 | O15: 180272 | P15: 0 | Q15: =SUM(N15:P15) -> 303456
A16: ='INVOICE 1'!A16 -> Services & Supplies | B16: ='INVOICE 7'!B16 -> 14325 | C16: ='INVOICE 7'!C16 -> 0 | D16: ='INVOICE 7'!D16 -> 0 | E16: =SUM(B16:D16) -> 14325 | F16: =SUM('INVOICE 7'!F16,'INVOICE 7'!J16) -> 2933 | G16: =SUM('INVOICE 7'!G16,'INVOICE 7'!K16) -> 0 | H16: =SUM('INVOICE 7'!H16,'INVOICE 7'!L16) -> 0 | I16: =SUM(F16:H16) -> 2933 | J16: 1512 | K16: 0 | L16: 0 | M16: =SUM(J16:L16) -> 1512 | N16: 9880 | O16: 0 | P16: 0 | Q16: =SUM(N16:P16) -> 9880
A17: ='INVOICE 1'!A17 -> Prof Services / Public Agency Subcontracts | B17: ='INVOICE 7'!B17 -> 49626 | C17: ='INVOICE 7'!C17 -> 0 | D17: ='INVOICE 7'!D17 -> 0 | E17: 49626 | F17: =SUM('INVOICE 7'!F17,'INVOICE 7'!J17) -> 39466 | G17: =SUM('INVOICE 7'!G17,'INVOICE 7'!K17) -> 0 | H17: =SUM('INVOICE 7'!H17,'INVOICE 7'!L17) -> 0 | I17: 39466 | J17: 189 | K17: 0 | L17: 0 | M17: 189 | N17: 9971 | O17: 0 | P17: 0 | Q17: 9971
A18: ='INVOICE 1'!A18 -> CBO Subcontracts | B18: ='INVOICE 7'!B18 -> 248731 | C18: ='INVOICE 7'!C18 -> 0 | D18: ='INVOICE 7'!D18 -> 0 | E18: 248731 | F18: =SUM('INVOICE 7'!F18,'INVOICE 7'!J18) -> 101846 | G18: =SUM('INVOICE 7'!G18,'INVOICE 7'!K18) -> 0 | H18: =SUM('INVOICE 7'!H18,'INVOICE 7'!L18) -> 0 | I18: 101846 | J18: 64931 | K18: 0 | L18: 0 | M18: 64931 | N18: 81954 | O18: 0 | P18: 0 | Q18: 81954
A19: ='INVOICE 1'!A19 -> Indirect Costs | B19: ='INVOICE 7'!B19 -> 16000 | C19: ='INVOICE 7'!C19 -> 27058 | D19: ='INVOICE 7'!D19 -> 0 | E19: =SUM(B19:D19) -> 43058 | F19: =SUM('INVOICE 7'!F19,'INVOICE 7'!J19) -> 2481 | G19: =SUM('INVOICE 7'!G19,'INVOICE 7'!K19) -> 0 | H19: =SUM('INVOICE 7'!H19,'INVOICE 7'!L19) -> 0 | I19: =SUM(F19:H19) -> 2481 | J19: 1228 | K19: 0 | L19: 0 | M19: =SUM(J19:L19) -> 1228 | N19: =B19-F19-J19 -> 12291 | O19: =C19-G19-K19 -> 27058 | P19: =D19-H19-L19 -> 0 | Q19: =SUM(N19:P19) -> 39349
A20: ='INVOICE 1'!A20 -> Fixed Assets/Equipment | B20: ='INVOICE 7'!B20 -> 0 | C20: ='INVOICE 7'!C20 -> 0 | D20: ='INVOICE 7'!D20 -> 0 | E20: 0 | F20: =SUM('INVOICE 7'!F20,'INVOICE 7'!J20) -> 0 | G20: =SUM('INVOICE 7'!G20,'INVOICE 7'!K20) -> 0 | H20: =SUM('INVOICE 7'!H20,'INVOICE 7'!L20) -> 0 | I20: 0 | J20: 0 | K20: 0 | L20: 0 | M20: 0 | N20: 0 | O20: 0 | P20: 0 | Q20: 0
A21: ='INVOICE 1'!A21 -> Project Evaluation | B21: ='INVOICE 7'!B21 -> 0 | C21: ='INVOICE 7'!C21 -> 0 | D21: ='INVOICE 7'!D21 -> 10000 | E21: 10000 | F21: =SUM('INVOICE 7'!F21,'INVOICE 7'!J21) -> 0 | G21: =SUM('INVOICE 7'!G21,'INVOICE 7'!K21) -> 0 | H21: =SUM('INVOICE 7'!H21,'INVOICE 7'!L21) -> 0 | I21: 0 | J21: 0 | K21: 0 | L21: 0 | M21: 0 | N21: 0 | O21: 0 | P21: 10000 | Q21: 10000
A22: ='INVOICE 1'!A22 -> Other | B22: ='INVOICE 7'!B22 -> 8780 | C22: ='INVOICE 7'!C22 -> 0 | D22: ='INVOICE 7'!D22 -> 197699 | E22: 206479 | F22: =SUM('INVOICE 7'!F22,'INVOICE 7'!J22) -> 3625 | G22: =SUM('INVOICE 7'!G22,'INVOICE 7'!K22) -> 0 | H22: =SUM('INVOICE 7'!H22,'INVOICE 7'!L22) -> 1264 | I22: 4889 | J22: 0 | K22: 0 | M22: 0 | N22: 5155 | O22: 0 | P22: 196435 | Q22: 201590
A23: TOTAL | B23: =SUM(B15:B22) -> 497462 | C23: 297642 | D23: 207699 | E23: 1002803 | F23: 174885 | G23: 86808 | H23: 1264 | I23: 262957 | J23: 80142 | K23: 3504 | L23: 0 | M23: 83646 | N23: 242435 | O23: 207330 | P23: 206435 | Q23: 656200
A25: Project Income | D25: Income reported to date | E25: ='INVOICE 1'!E25+'INVOICE 8'!L25 -> 0 | H25: Prior allocated income | I25: 0 | K25: This Period | L25: 0 | P25: Unallocated income balance | Q25: =E25-I25 -> 0
C27: Grant funds expended to date: | E27: =SUM(F23,J23) -> 255027 | I27: Grant funds claimed this period: | J27: =J23 -> 80142 | O27: Percentage Grant $$ expended to date: | Q27: =E27/B23 -> 0.5126562431
C28: Cash match to date: | E28: =SUM(G23,K23) -> 90312 | O28: % of Total Obligated Cash Match to date: | Q28: =E28/C23 -> 0.3034249199
C29: In-kind match to date: | E29: =SUM(H23,L23) -> 1264 | O29: % of Total Obligated In-kind Match to date: | Q29: =E29/D23 -> 0.00608572983
E31: Expenditure Descriptions - Units / $ Amounts | O31: Comments
A32: Salaries & Benefits | B32: Grant Funds | D32: =J15 -> 12282 | E32: Grant Admin - $1,756.71 = $1,137.70 sal and $619.01 benefits. Social worker - $4,838.88 = $4,516.24 sal and $322.64 benefits. Accounting support - $2,025.17 - $1,435.80 in salaries and $$589.37 in benefits
B33: Cash Match | D33: =K15 -> 3504 | E33: Division Mngr sal & ben for time spent on program $5,202.88 for Q7. 60 hrs x 55.54 = $3,332.40 + ben = $1,870.48. Admin Specialist sal and ben for time spent on program $2,291.17 for Q7. 60 hrs x 24.46 = 1,467.47 + ben = $823.69
B34: In-kind Match | D34: =K16 -> 0
A35: Services & Supplies | B35: Grant Funds | D35: =J16 -> 1512 | E35: printer copies for Q7 - Office Corp - $170.11. Impressions - shirts and bags for program with logos -$2,246.58 + $352.73 = 2,599.31
B36: Cash Match | D36: =K16 -> 0
B37: In-kind Match | D37: =L16 -> 0
A38: Prof Services / Public Agency Subcontracts | B38: Grant Funds | D38: =J17 -> 189 | E38: Copier maintenance for Q7 - $188.03 - Oct $62.51 - Nov $62.51 - Dec $63.01
B39: Cash Match | D39: =K17 -> 0
B40: In-kind Match | D40: =L17 -> 0
A41: CBO Subcontracts | B41: Grant Funds | D41: =J18 -> 64931 | E41: Harvest Ministries, Inc. - community exp period 10/1/19-12/31/19 - CalVIP community based advocacy - $60,292.61- Oct - $18,830.65 - Nov - $17,572.83 - Dec - $23,889.13
B42: Cash Match | D42: =K18 -> 0
B43: In-kind Match | D43: =L18 -> 0
A44: Indirect Costs | B44: Grant Funds | D44: =J19 -> 1228 | E44: %10 of salaries and benefits - includes YTD adjustments
B45: Cash Match | D45: =K20 -> 0
B46: In-kind Match | D46: =L20 -> 0
A47: Equip/Fixed Assets | B47: Grant Funds | D47: =J21 -> 0
B48: Cash Match | D48: =K21 -> 0
B49: In-kind Match | D49: =-L21 -> 0
A50: Project Evaluation | B50: Grant Funds | D50: =J22 -> 0
B51: Cash Match | D51: =K22 -> 0
B52: In-kind Match | D52: =L22 -> 0
A53: Other | B53: Grant Funds | D53: =J24 -> 0
B54: Cash Match | D54: =K19 -> 0
B55: In-kind Match | D55: =L19 -> 0
A56: Project Income | D56: =M25 -> 0
A57: PERSON PREPARING REPORT | F57: AUTHORIZED FINANCIAL OFFICER | N57: BSCC Supplier Data - Internal Use Only
F58: By checking the box below, I hereby certify that I am the authorized financial officer of the herein named agency. I further certify that I have not violated any of the provisions of Section 1090 of the Government Code in incurring the expenditures reported in this invoice, nor in any other way; that Sections 1090 through 1096 of the Government Code will not be violated in any way in the expenditure of funds pursuant to this invoice; that statement of funds above is true, correct, and in accordance with program provisions in all respects; and that all expenditures submitted after the expiration date of this contract are for the purpose of substantiating obligations legally incurred during the contract period. Furthermore, by submitting this invoice, I acknowledge that it must adhere to all of the requirements in the BSCC Grant Administration Guide, including any updates to the Guide during the term of the grant agreement.
A59: Genevieve Chu, Senior Accountant | N59: ='INVOICE 7'!N59:Q59 -> 0000042790
A60: Name, Title | N60: ='INVOICE 1'!N60:Q60 -> Supplier ID
A61: 626-744-6397 | N61: ='INVOICE 7'!N61:Q61 -> CITY OF PASADENA PUBLIC HEALTH DEPARTMENT
A62: Phone | N62: ='INVOICE 1'!N62:Q62 -> Supplier Name
A63: gchu@cityofpasadena.net | N63: ='INVOICE 7'!N63:Q63 -> 1845 N FAIR OAKS AVE
A64: Email | N64: ='INVOICE 1'!N64:Q64 -> Address Line 1
A65: 2020-05-01 | N65: ='INVOICE 7'!N65:Q65 -> PASADENA, CA 91103
A66: Date | N66: ='INVOICE 1'!N66:Q66 -> Address Line 2
F68: Susan Kim, Administration & Finance Manager
A69: PO#1824 $60,353 | F69: Name, Title
A70: PO#2335 $19,789 | F70: 626-744-6166
F71: Phone
F72: 2020-05-01
F73: Date
A75: BSCC USE ONLY
A76: Date Received: | C76: 2020-05-12 | I76: Approved By: | K76: Colleen Curtin | O76: Date: | P76: 2020-05-18
K77: BSCC Field Representative

Sheet INVOICE 9
A1: STATE OF CALIFORNIA | N1: Purchase Authority | O1: BSCC 5227
A2: BOARD OF STATE AND COMMUNITY CORRECTIONS | N2: Purchase Order: | O2: 5227-0000002335 | Q2: ='INVOICE 1'!Q2 -> 0
A3: Financial Invoice Form: BSCC 201 (Revised 04/2020)
A5: Program: | B5: ='INVOICE 1'!B5 -> Program Name | M5: Please Note: The California State Controller's Office will send all checks directly to the address listed in the "BSCC Vendor Data" section at the bottom of this invoice.
A7: Grantee: | B7: ='INVOICE 1'!B7 -> City of Pasadena Public Health Department | G7: Lead Public Agency: | I7: ='INVOICE 1'!I7 -> City of Pasadena Public Health Department
A9: Contract #: | B9: ='INVOICE 1'!B9 -> 853-17 | E9: Term: | F9: ='INVOICE 1'!F9 -> 2018-05-01 | G9: TO | I9: ='INVOICE 1'!I9 -> 2021-08-15 | N9: Invoicing Frequency | O9: ='INVOICE 1'!O9 -> Quarterly
A11: Invoice #: | B11: 9 CALVIP 18 | E11: Reporting Period: | F11: 2020-04-01 | G11: TO | I11: 2020-06-30 | J11: Due: | K11: 2020-08-15 | N11: Final Invoice (Y/N): | O11: No
A13: Line Items | B13: Budget | F13: Prior Expenditures | J13: This Reporting Period | N13: Balance
B14: Grant Funds | C14: Cash Match | D14: In-kind Match | E14: TOTAL | F14: Grant Funds | G14: Cash Match | H14: In-kind Match | I14: TOTAL | J14: Grant Funds | K14: Cash Match | L14: In-kind Match | M14: TOTAL | N14: Grant Funds | O14: Cash Match | P14: In-kind Match | Q14: TOTAL
A15: ='INVOICE 1'!A15 -> Salaries & Benefits | B15: ='INVOICE 8'!B15 -> 160000 | C15: ='INVOICE 8'!C15 -> 270584 | D15: ='INVOICE 8'!D15 -> 0 | E15: =SUM(B15:D15) -> 430584 | F15: =SUM('INVOICE 8'!F15,'INVOICE 8'!J15) -> 36816 | G15: =SUM('INVOICE 8'!G15,'INVOICE 8'!K15) -> 90312 | H15: =SUM('INVOICE 8'!H15,'INVOICE 8'!L15) -> 0 | I15: =SUM(F15:H15) -> 127128 | J15: 12411 | K15: 6849 | L15: 0 | M15: =SUM(J15:L15) -> 19260 | N15: =B15-F15-J15 -> 110773 | O15: 173423 | P15: 0 | Q15: =SUM(N15:P15) -> 284196
A16: ='INVOICE 1'!A16 -> Services & Supplies | B16: ='INVOICE 8'!B16 -> 14325 | C16: ='INVOICE 8'!C16 -> 0 | D16: ='INVOICE 8'!D16 -> 0 | E16: =SUM(B16:D16) -> 14325 | F16: =SUM('INVOICE 8'!F16,'INVOICE 8'!J16) -> 4445 | G16: =SUM('INVOICE 8'!G16,'INVOICE 8'!K16) -> 0 | H16: =SUM('INVOICE 8'!H16,'INVOICE 8'!L16) -> 0 | I16: =SUM(F16:H16) -> 4445 | J16: 92 | K16: 0 | L16: 0 | M16: =SUM(J16:L16) -> 92 | N16: 9788 | O16: 0 | P16: 0 | Q16: =SUM(N16:P16) -> 9788
A17: ='INVOICE 1'!A17 -> Prof Services / Public Agency Subcontracts | B17: ='INVOICE 8'!B17 -> 49626 | C17: ='INVOICE 8'!C17 -> 0 | D17: ='INVOICE 8'!D17 -> 0 | E17: 49626 | F17: =SUM('INVOICE 8'!F17,'INVOICE 8'!J17) -> 39655 | G17: =SUM('INVOICE 8'!G17,'INVOICE 8'!K17) -> 0 | H17: =SUM('INVOICE 8'!H17,'INVOICE 8'!L17) -> 0 | I17: 39655 | J17: 189 | K17: 0 | L17: 0 | M17: 189 | N17: 9782 | O17: 0 | P17: 0 | Q17: 9782
A18: ='INVOICE 1'!A18 -> CBO Subcontracts | B18: ='INVOICE 8'!B18 -> 248731 | C18: ='INVOICE 8'!C18 -> 0 | D18: ='INVOICE 8'!D18 -> 0 | E18: 248731 | F18: =SUM('INVOICE 8'!F18,'INVOICE 8'!J18) -> 166777 | G18: =SUM('INVOICE 8'!G18,'INVOICE 8'!K18) -> 0 | H18: =SUM('INVOICE 8'!H18,'INVOICE 8'!L18) -> 0 | I18: 166777 | J18: 54820 | K18: 0 | L18: 0 | M18: 54820 | N18: 27134 | O18: 0 | P18: 0 | Q18: 27134
A19: ='INVOICE 1'!A19 -> Indirect Costs | B19: ='INVOICE 8'!B19 -> 16000 | C19: ='INVOICE 8'!C19 -> 27058 | D19: ='INVOICE 8'!D19 -> 0 | E19: =SUM(B19:D19) -> 43058 | F19: =SUM('INVOICE 8'!F19,'INVOICE 8'!J19) -> 3709 | G19: =SUM('INVOICE 8'!G19,'INVOICE 8'!K19) -> 0 | H19: =SUM('INVOICE 8'!H19,'INVOICE 8'!L19) -> 0 | I19: =SUM(F19:H19) -> 3709 | J19: 1241 | K19: 21000 | L19: 0 | M19: =SUM(J19:L19) -> 22241 | N19: =B19-F19-J19 -> 11050 | O19: =C19-G19-K19 -> 6058 | P19: =D19-H19-L19 -> 0 | Q19: =SUM(N19:P19) -> 17108
A20: ='INVOICE 1'!A20 -> Fixed Assets/Equipment | B20: ='INVOICE 8'!B20 -> 0 | C20: ='INVOICE 8'!C20 -> 0 | D20: ='INVOICE 8'!D20 -> 0 | E20: 0 | F20: =SUM('INVOICE 8'!F20,'INVOICE 8'!J20) -> 0 | G20: =SUM('INVOICE 8'!G20,'INVOICE 8'!K20) -> 0 | H20: =SUM('INVOICE 8'!H20,'INVOICE 8'!L20) -> 0 | I20: 0 | J20: 0 | K20: 0 | L20: 0 | M20: 0 | N20: 0 | O20: 0 | P20: 0 | Q20: 0
A21: ='INVOICE 1'!A21 -> Project Evaluation | B21: ='INVOICE 8'!B21 -> 0 | C21: ='INVOICE 8'!C21 -> 0 | D21: ='INVOICE 8'!D21 -> 10000 | E21: 10000 | F21: =SUM('INVOICE 8'!F21,'INVOICE 8'!J21) -> 0 | G21: =SUM('INVOICE 8'!G21,'INVOICE 8'!K21) -> 0 | H21: =SUM('INVOICE 8'!H21,'INVOICE 8'!L21) -> 0 | I21: 0 | J21: 0 | K21: 0 | L21: 0 | M21: 0 | N21: 0 | O21: 0 | P21: 10000 | Q21: 10000
A22: ='INVOICE 1'!A22 -> Other | B22: ='INVOICE 8'!B22 -> 8780 | C22: ='INVOICE 8'!C22 -> 0 | D22: ='INVOICE 8'!D22 -> 197699 | E22: 206479 | F22: =SUM('INVOICE 8'!F22,'INVOICE 8'!J22) -> 3625 | G22: =SUM('INVOICE 8'!G22,'INVOICE 8'!K22) -> 0 | H22: =SUM('INVOICE 8'!H22,'INVOICE 8'!L22) -> 1264 | I22: 4889 | J22: 0 | K22: 0 | L22: 0 | M22: 0 | N22: 5155 | O22: 0 | P22: 196435 | Q22: 201590
A23: TOTAL | B23: =SUM(B15:B22) -> 497462 | C23: 297642 | D23: 207699 | E23: 1002803 | F23: 255027 | G23: 90312 | H23: 1264 | I23: 346603 | J23: 68753 | K23: 27849 | L23: 0 | M23: 96602 | N23: 173682 | O23: 179481 | P23: 206435 | Q23: 559598
A25: Project Income | D25: Income reported to date | E25: ='INVOICE 1'!E25+'INVOICE 9'!L25 -> 0 | H25: Prior allocated income | I25: 0 | K25: This Period | L25: 0 | P25: Unallocated income balance | Q25: =E25-I25 -> 0
C27: Grant funds expended to date: | E27: =SUM(F23,J23) -> 323780 | I27: Grant funds claimed this period: | J27: =J23 -> 68753 | O27: Percentage Grant $$ expended to date: | Q27: =E27/B23 -> 0.6508637846
C28: Cash match to date: | E28: =SUM(G23,K23) -> 118161 | O28: % of Total Obligated Cash Match to date: | Q28: =E28/C23 -> 0.3969903441
C29: In-kind match to date: | E29: =SUM(H23,L23) -> 1264 | O29: % of Total Obligated In-kind Match to date: | Q29: =E29/D23 -> 0.00608572983
E31: Expenditure Descriptions - Units / $ Amounts | O31: Comments
A32: Salaries & Benefits | B32: Grant Funds | D32: =J15 -> 12411 | E32: 1. Grant Admin - $2,106.79 = $1,357.17 Sal and $749.62 Benefits. 2. Social Worker - $6,536.13 = $6,035.21 Sal and $500.92 Benefits. 3. Accounting Support - $2,248.49 = 1,553.02 Sal and 695.47 Benefits 4. Admin Support - $818.90 = $539.15 Sal and $279.75 Benefits. 5. Admin Support - $699.94 = $494.91 Sak and $205.03 Benefits.
B33: Cash Match | D33: =K15 -> 6849 | E33: 1. Acting Division Manager - Salary and Benefits for time spent on program - $3,450.86 for Q9 (75 hrs x $29.47 = $2,210.25 + ben = 1,240.61. 2. Admin Specialist - Salary and Benefits for time spent on program - $3,398.56 for Q9 (89 hrs x 24.46 = 2,176.75 + ben = 1,221.81).
B34: In-kind Match | D34: =K16 -> 0
A35: Services & Supplies | B35: Grant Funds | D35: =J16 -> 92 | E35: Printer copies for Q9 - Office Corp - $92.50
B36: Cash Match | D36: =K16 -> 0
B37: In-kind Match | D37: =L16 -> 0
A38: Prof Services / Public Agency Subcontracts | B38: Grant Funds | D38: =J17 -> 189 | E38: Copy Maintenance for Q9 - $188.98 - Apr = $62.99 = May = $62.99 - June = $63.00
B39: Cash Match | D39: =K17 -> 0
B40: In-kind Match | D40: =L17 -> 0
A41: CBO Subcontracts | B41: Grant Funds | D41: =J18 -> 54820 | E41: Harvest Ministries, Inc. - Community exp period 4/1/20-6/30-20 - $54,820.17 - Apr = $19,348.04 - May = $17,623.55 - June = $17,848.58
B42: Cash Match | D42: =K18 -> 0
B43: In-kind Match | D43: =L18 -> 0
A44: Indirect Costs | B44: Grant Funds | D44: 1241 | E44: 10% of salaries and benefits - includes YTD adjustments - $12,541.25 x 10% = $1,241.02
B45: Cash Match | D45: 21000 | E45: 21.614% of match amount adjustment from previous quarters: Q1 = $3,690.00 x 21.614% = 797.56 - Q2 = $1748.00 x 21.614% = $377.81 - Q3 = $2,282.00 x 21.614% = $493.23 - Q4 = $20,331.00 x 21.614% = $4,394.34 - Q5 = $26,785.00 x 21.614% = $5,789.31 - Q6 = $24,478.00 x 21.614% = $5,290.67 - Q7 - $7,494.00 x 21.614% = $1,619.75 - Q8 = $3,504.00 x 21.614% = $757.35 - Q9 = $6,849.43 x 21.614% = $1,480.44 Total Q1-Q9 = $21,000.46
B46: In-kind Match | D46: =L20 -> 0
A47: Equip/Fixed Assets | B47: Grant Funds | D47: =J21 -> 0
B48: Cash Match | D48: =K21 -> 0
B49: In-kind Match | D49: =-L21 -> 0
A50: Project Evaluation | B50: Grant Funds | D50: =J22 -> 0
B51: Cash Match | D51: =K22 -> 0
B52: In-kind Match | D52: =L22 -> 0
A53: Other | B53: Grant Funds | D53: =J25 -> 0
B54: Cash Match | D54: =K27 -> 0
B55: In-kind Match | D55: =L19 -> 0
A56: Project Income | D56: =M25 -> 0
A57: PERSON PREPARING REPORT | F57: AUTHORIZED FINANCIAL OFFICER | N57: BSCC Supplier Data - Internal Use Only
F58: By checking the box below, I hereby certify that I am the authorized financial officer of the herein named agency. I further certify that I have not violated any of the provisions of Section 1090 of the Government Code in incurring the expenditures reported in this invoice, nor in any other way; that Sections 1090 through 1096 of the Government Code will not be violated in any way in the expenditure of funds pursuant to this invoice; that statement of funds above is true, correct, and in accordance with program provisions in all respects; and that all expenditures submitted after the expiration date of this contract are for the purpose of substantiating obligations legally incurred during the contract period. Furthermore, by submitting this invoice, I acknowledge that it must adhere to all of the requirements in the BSCC Grant Administration Guide, including any updates to the Guide during the term of the grant agreement.
A59: Genevieve Chu, Senior Accountant | N59: ='INVOICE 8'!N59:Q59 -> 0000042790
A60: Name, Title | N60: ='INVOICE 1'!N60:Q60 -> Supplier ID
A61: 626-744-6397 | N61: ='INVOICE 8'!N61:Q61 -> CITY OF PASADENA PUBLIC HEALTH DEPARTMENT
A62: Phone | N62: ='INVOICE 1'!N62:Q62 -> Supplier Name
A63: gchu@cityofpasadena.net | N63: ='INVOICE 8'!N63:Q63 -> 1845 N FAIR OAKS AVE
A64: Email | N64: ='INVOICE 1'!N64:Q64 -> Address Line 1
A65: 2020-08-10 | N65: ='INVOICE 8'!N65:Q65 -> PASADENA, CA 91103
A66: Date | N66: ='INVOICE 1'!N66:Q66 -> Address Line 2
F68: Susan Kim, Administration & Finance Manager
F69: Name, Title
F70: 626-744-6166
F71: Phone
F72: 2020-08-10
F73: Date
A75: BSCC USE ONLY
A76: Date Received: | C76: 2020-08-13 | I76: Approved By: | K76: Katrina Jackson | O76: Date: | P76: 2020-08-21
K77: BSCC Field Representative

Sheet INVOICE 10
A1: STATE OF CALIFORNIA | N1: Purchase Authority | O1: BSCC 5227
A2: BOARD OF STATE AND COMMUNITY CORRECTIONS | N2: Purchase Order: | O2: 5227-0000002335 | Q2: ='INVOICE 1'!Q2 -> 0
A3: Financial Invoice Form: BSCC 201 (Revised 04/2020)
A5: Program: | B5: ='INVOICE 1'!B5 -> Program Name | M5: Please Note: The California State Controller's Office will send all checks directly to the address listed in the "BSCC Vendor Data" section at the bottom of this invoice.
A7: Grantee: | B7: ='INVOICE 1'!B7 -> City of Pasadena Public Health Department | G7: Lead Public Agency: | I7: ='INVOICE 1'!I7 -> City of Pasadena Public Health Department
A9: Contract #: | B9: ='INVOICE 1'!B9 -> 853-17 | E9: Term: | F9: ='INVOICE 1'!F9 -> 2018-05-01 | G9: TO | I9: ='INVOICE 1'!I9 -> 2021-08-15 | N9: Invoicing Frequency | O9: ='INVOICE 1'!O9 -> Quarterly
A11: Invoice #: | B11: 10 CALVIP 18 | E11: Reporting Period: | F11: 2020-07-01 | G11: TO | I11: 2020-09-30 | J11: Due: | K11: 2020-11-15 | N11: Final Invoice (Y/N): | O11: No
A13: Line Items | B13: Budget | F13: Prior Expenditures | J13: This Reporting Period | N13: Balance
B14: Grant Funds | C14: Cash Match | D14: In-kind Match | E14: TOTAL | F14: Grant Funds | G14: Cash Match | H14: In-kind Match | I14: TOTAL | J14: Grant Funds | K14: Cash Match | L14: In-kind Match | M14: TOTAL | N14: Grant Funds | O14: Cash Match | P14: In-kind Match | Q14: TOTAL
A15: ='INVOICE 1'!A15 -> Salaries & Benefits | B15: ='INVOICE 9'!B15 -> 160000 | C15: ='INVOICE 9'!C15 -> 270584 | D15: ='INVOICE 9'!D15 -> 0 | E15: =SUM(B15:D15) -> 430584 | F15: =SUM('INVOICE 9'!F15,'INVOICE 9'!J15) -> 49227 | G15: =SUM('INVOICE 9'!G15,'INVOICE 9'!K15) -> 97161 | H15: =SUM('INVOICE 9'!H15,'INVOICE 9'!L15) -> 0 | I15: =SUM(F15:H15) -> 146388 | J15: 0 | K15: 0 | L15: 0 | M15: =SUM(J15:L15) -> 0 | N15: =B15-F15-J15 -> 110773 | O15: 173423 | P15: 0 | Q15: =SUM(N15:P15) -> 284196
A16: ='INVOICE 1'!A16 -> Services & Supplies | B16: ='INVOICE 9'!B16 -> 14325 | C16: ='INVOICE 9'!C16 -> 0 | D16: ='INVOICE 9'!D16 -> 0 | E16: =SUM(B16:D16) -> 14325 | F16: =SUM('INVOICE 9'!F16,'INVOICE 9'!J16) -> 4537 | G16: =SUM('INVOICE 9'!G16,'INVOICE 9'!K16) -> 0 | H16: =SUM('INVOICE 9'!H16,'INVOICE 9'!L16) -> 0 | I16: =SUM(F16:H16) -> 4537 | J16: 0 | K16: 0 | L16: 0 | M16: =SUM(J16:L16) -> 0 | N16: 9788 | O16: 0 | P16: 0 | Q16: =SUM(N16:P16) -> 9788
A17: ='INVOICE 1'!A17 -> Prof Services / Public Agency Subcontracts | B17: ='INVOICE 9'!B17 -> 49626 | C17: ='INVOICE 9'!C17 -> 0 | D17: ='INVOICE 9'!D17 -> 0 | E17: 49626 | F17: =SUM('INVOICE 9'!F17,'INVOICE 9'!J17) -> 39844 | G17: =SUM('INVOICE 9'!G17,'INVOICE 9'!K17) -> 0 | H17: =SUM('INVOICE 9'!H17,'INVOICE 9'!L17) -> 0 | I17: 39844 | J17: 0 | K17: 0 | L17: 0 | M17: 0 | N17: 9782 | O17: 0 | P17: 0 | Q17: 9782
A18: ='INVOICE 1'!A18 -> CBO Subcontracts | B18: ='INVOICE 9'!B18 -> 248731 | C18: ='INVOICE 9'!C18 -> 0 | D18: ='INVOICE 9'!D18 -> 0 | E18: 248731 | F18: =SUM('INVOICE 9'!F18,'INVOICE 9'!J18) -> 221597 | G18: =SUM('INVOICE 9'!G18,'INVOICE 9'!K18) -> 0 | H18: =SUM('INVOICE 9'!H18,'INVOICE 9'!L18) -> 0 | I18: 221597 | J18: 0 | K18: 0 | L18: 0 | M18: 0 | N18: 27134 | O18: 0 | P18: 0 | Q18: 27134
A19: ='INVOICE 1'!A19 -> Indirect Costs | B19: ='INVOICE 9'!B19 -> 16000 | C19: ='INVOICE 9'!C19 -> 27058 | D19: ='INVOICE 9'!D19 -> 0 | E19: =SUM(B19:D19) -> 43058 | F19: =SUM('INVOICE 9'!F19,'INVOICE 9'!J19) -> 4950 | G19: =SUM('INVOICE 9'!G19,'INVOICE 9'!K19) -> 21000 | H19: =SUM('INVOICE 9'!H19,'INVOICE 9'!L19) -> 0 | I19: =SUM(F19:H19) -> 25950 | J19: 0 | K19: 0 | L19: 0 | M19: =SUM(J19:L19) -> 0 | N19: =B19-F19-J19 -> 11050 | O19: =C19-G19-K19 -> 6058 | P19: =D19-H19-L19 -> 0 | Q19: =SUM(N19:P19) -> 17108
A20: ='INVOICE 1'!A20 -> Fixed Assets/Equipment | B20: ='INVOICE 9'!B20 -> 0 | C20: ='INVOICE 9'!C20 -> 0 | D20: ='INVOICE 9'!D20 -> 0 | E20: 0 | F20: =SUM('INVOICE 9'!F20,'INVOICE 9'!J20) -> 0 | G20: =SUM('INVOICE 9'!G20,'INVOICE 9'!K20) -> 0 | H20: =SUM('INVOICE 9'!H20,'INVOICE 9'!L20) -> 0 | I20: 0 | J20: 0 | K20: 0 | L20: 0 | M20: 0 | N20: 0 | O20: 0 | P20: 0 | Q20: 0
A21: ='INVOICE 1'!A21 -> Project Evaluation | B21: ='INVOICE 9'!B21 -> 0 | C21: ='INVOICE 9'!C21 -> 0 | D21: ='INVOICE 9'!D21 -> 10000 | E21: 10000 | F21: =SUM('INVOICE 9'!F21,'INVOICE 9'!J21) -> 0 | G21: =SUM('INVOICE 9'!G21,'INVOICE 9'!K21) -> 0 | H21: =SUM('INVOICE 9'!H21,'INVOICE 9'!L21) -> 0 | I21: 0 | J21: 0 | K21: 0 | L21: 0 | M21: 0 | N21: 0 | O21: 0 | P21: 10000 | Q21: 10000
A22: ='INVOICE 1'!A22 -> Other | B22: ='INVOICE 9'!B22 -> 8780 | C22: ='INVOICE 9'!C22 -> 0 | D22: ='INVOICE 9'!D22 -> 197699 | E22: 206479 | F22: =SUM('INVOICE 9'!F22,'INVOICE 9'!J22) -> 3625 | G22: =SUM('INVOICE 9'!G22,'INVOICE 9'!K22) -> 0 | H22: =SUM('INVOICE 9'!H22,'INVOICE 9'!L22) -> 1264 | I22: 4889 | J22: 0 | K22: 0 | L22: 0 | M22: 0 | N22: 5155 | O22: 0 | P22: 196435 | Q22: 201590
A23: TOTAL | B23: =SUM(B15:B22) -> 497462 | C23: 297642 | D23: 207699 | E23: 1002803 | F23: 323780 | G23: 118161 | H23: 1264 | I23: 443205 | J23: 0 | K23: 0 | L23: 0 | M23: 0 | N23: 173682 | O23: 179481 | P23: 206435 | Q23: 559598
A25: Project Income | D25: Income reported to date | E25: ='INVOICE 1'!E25+'INVOICE 10'!L25 -> 0 | H25: Prior allocated income | I25: 0 | K25: This Period | L25: 0 | P25: Unallocated income balance | Q25: =E25-I25 -> 0
C27: Grant funds expended to date: | E27: =SUM(F23,J23) -> 323780 | I27: Grant funds claimed this period: | J27: =J23 -> 0 | O27: Percentage Grant $$ expended to date: | Q27: =E27/B23 -> 0.6508637846
C28: Cash match to date: | E28: =SUM(G23,K23) -> 118161 | O28: % of Total Obligated Cash Match to date: | Q28: =E28/C23 -> 0.3969903441
C29: In-kind match to date: | E29: =SUM(H23,L23) -> 1264 | O29: % of Total Obligated In-kind Match to date: | Q29: =E29/D23 -> 0.00608572983
E31: Expenditure Descriptions - Units / $ Amounts | O31: Comments
A32: Salaries & Benefits | B32: Grant Funds | D32: =J15 -> 0
B33: Cash Match | D33: =K15 -> 0
B34: In-kind Match | D34: =K16 -> 0
A35: Services & Supplies | B35: Grant Funds | D35: =J16 -> 0
B36: Cash Match | D36: =K16 -> 0
B37: In-kind Match | D37: =L16 -> 0
A38: Prof Services / Public Agency Subcontracts | B38: Grant Funds | D38: =J17 -> 0
B39: Cash Match | D39: =K17 -> 0
B40: In-kind Match | D40: =L17 -> 0
A41: CBO Subcontracts | B41: Grant Funds | D41: =J18 -> 0
B42: Cash Match | D42: =K18 -> 0
B43: In-kind Match | D43: =L18 -> 0
A44: Indirect Costs | B44: Grant Funds | D44: =J20 -> 0
B45: Cash Match | D45: =K20 -> 0
B46: In-kind Match | D46: =L20 -> 0
A47: Equip/Fixed Assets | B47: Grant Funds | D47: =J21 -> 0
B48: Cash Match | D48: =K21 -> 0
B49: In-kind Match | D49: =-L21 -> 0
A50: Project Evaluation | B50: Grant Funds | D50: =J22 -> 0
B51: Cash Match | D51: =K22 -> 0
B52: In-kind Match | D52: =L22 -> 0
A53: Other | B53: Grant Funds | D53: =J19 -> 0
B54: Cash Match | D54: =K19 -> 0
B55: In-kind Match | D55: =L19 -> 0
A56: Project Income | D56: =M25 -> 0
A57: PERSON PREPARING REPORT | F57: AUTHORIZED FINANCIAL OFFICER | N57: BSCC Supplier Data - Internal Use Only
F58: By checking the box below, I hereby certify that I am the authorized financial officer of the herein named agency. I further certify that I have not violated any of the provisions of Section 1090 of the Government Code in incurring the expenditures reported in this invoice, nor in any other way; that Sections 1090 through 1096 of the Government Code will not be violated in any way in the expenditure of funds pursuant to this invoice; that statement of funds above is true, correct, and in accordance with program provisions in all respects; and that all expenditures submitted after the expiration date of this contract are for the purpose of substantiating obligations legally incurred during the contract period. Furthermore, by submitting this invoice, I acknowledge that it must adhere to all of the requirements in the BSCC Grant Administration Guide, including any updates to the Guide during the term of the grant agreement.
N59: ='INVOICE 9'!N59:Q59 -> 0000042790
A60: Name, Title | N60: ='INVOICE 1'!N60:Q60 -> Supplier ID
N61: ='INVOICE 9'!N61:Q61 -> CITY OF PASADENA PUBLIC HEALTH DEPARTMENT
A62: Phone | N62: ='INVOICE 1'!N62:Q62 -> Supplier Name
N63: ='INVOICE 9'!N63:Q63 -> 1845 N FAIR OAKS AVE
A64: Email | N64: ='INVOICE 1'!N64:Q64 -> Address Line 1
N65: ='INVOICE 9'!N65:Q65 -> PASADENA, CA 91103
A66: Date | N66: ='INVOICE 1'!N66:Q66 -> Address Line 2
F69: Name, Title
F71: Phone
F73: Date
A75: BSCC USE ONLY
A76: Date Received: | I76: Approved By: | O76: Date:
K77: BSCC Field Representative

Sheet INVOICE 11
A1: STATE OF CALIFORNIA | N1: Purchase Authority | O1: BSCC 5227
A2: BOARD OF STATE AND COMMUNITY CORRECTIONS | N2: Purchase Order: | O2: 5227-0000002335 | Q2: ='INVOICE 1'!Q2 -> 0
A3: Financial Invoice Form: BSCC 201 (Revised 04/2020)
A5: Program: | B5: ='INVOICE 1'!B5 -> Program Name | M5: Please Note: The California State Controller's Office will send all checks directly to the address listed in the "BSCC Vendor Data" section at the bottom of this invoice.
A7: Grantee: | B7: ='INVOICE 1'!B7 -> City of Pasadena Public Health Department | G7: Lead Public Agency: | I7: ='INVOICE 1'!I7 -> City of Pasadena Public Health Department
A9: Contract #: | B9: ='INVOICE 1'!B9 -> 853-17 | E9: Term: | F9: ='INVOICE 1'!F9 -> 2018-05-01 | G9: TO | I9: ='INVOICE 1'!I9 -> 2021-08-15 | N9: Invoicing Frequency | O9: ='INVOICE 1'!O9 -> Quarterly
A11: Invoice #: | B11: 11 CALVIP 18 | E11: Reporting Period: | F11: 2020-10-01 | G11: TO | I11: 2020-12-31 | J11: Due: | K11: 2021-02-15 | N11: Final Invoice (Y/N): | O11: No
A13: Line Items | B13: Budget | F13: Prior Expenditures | J13: This Reporting Period | N13: Balance
B14: Grant Funds | C14: Cash Match | D14: In-kind Match | E14: TOTAL | F14: Grant Funds | G14: Cash Match | H14: In-kind Match | I14: TOTAL | J14: Grant Funds | K14: Cash Match | L14: In-kind Match | M14: TOTAL | N14: Grant Funds | O14: Cash Match | P14: In-kind Match | Q14: TOTAL
A15: ='INVOICE 1'!A15 -> Salaries & Benefits | B15: ='INVOICE 10'!B15 -> 160000 | C15: ='INVOICE 10'!C15 -> 270584 | D15: ='INVOICE 10'!D15 -> 0 | E15: =SUM(B15:D15) -> 430584 | F15: =SUM('INVOICE 10'!F15,'INVOICE 10'!J15) -> 49227 | G15: =SUM('INVOICE 10'!G15,'INVOICE 10'!K15) -> 97161 | H15: =SUM('INVOICE 10'!H15,'INVOICE 10'!L15) -> 0 | I15: =SUM(F15:H15) -> 146388 | J15: 0 | K15: 0 | L15: 0 | M15: =SUM(J15:L15) -> 0 | N15: =B15-F15-J15 -> 110773 | O15: 173423 | P15: 0 | Q15: =SUM(N15:P15) -> 284196
A16: ='INVOICE 1'!A16 -> Services & Supplies | B16: ='INVOICE 10'!B16 -> 14325 | C16: ='INVOICE 10'!C16 -> 0 | D16: ='INVOICE 10'!D16 -> 0 | E16: =SUM(B16:D16) -> 14325 | F16: =SUM('INVOICE 10'!F16,'INVOICE 10'!J16) -> 4537 | G16: =SUM('INVOICE 10'!G16,'INVOICE 10'!K16) -> 0 | H16: =SUM('INVOICE 10'!H16,'INVOICE 10'!L16) -> 0 | I16: =SUM(F16:H16) -> 4537 | J16: 0 | K16: 0 | L16: 0 | M16: =SUM(J16:L16) -> 0 | N16: 9788 | O16: 0 | P16: 0 | Q16: =SUM(N16:P16) -> 9788
A17: ='INVOICE 1'!A17 -> Prof Services / Public Agency Subcontracts | B17: ='INVOICE 10'!B17 -> 49626 | C17: ='INVOICE 10'!C17 -> 0 | D17: ='INVOICE 10'!D17 -> 0 | E17: 49626 | F17: =SUM('INVOICE 10'!F17,'INVOICE 10'!J17) -> 39844 | G17: =SUM('INVOICE 10'!G17,'INVOICE 10'!K17) -> 0 | H17: =SUM('INVOICE 10'!H17,'INVOICE 10'!L17) -> 0 | I17: 39844 | J17: 0 | K17: 0 | L17: 0 | M17: 0 | N17: 9782 | O17: 0 | P17: 0 | Q17: 9782
A18: ='INVOICE 1'!A18 -> CBO Subcontracts | B18: ='INVOICE 10'!B18 -> 248731 | C18: ='INVOICE 10'!C18 -> 0 | D18: ='INVOICE 10'!D18 -> 0 | E18: 248731 | F18: =SUM('INVOICE 10'!F18,'INVOICE 10'!J18) -> 221597 | G18: =SUM('INVOICE 10'!G18,'INVOICE 10'!K18) -> 0 | H18: =SUM('INVOICE 10'!H18,'INVOICE 10'!L18) -> 0 | I18: 221597 | J18: 0 | K18: 0 | L18: 0 | M18: 0 | N18: 27134 | O18: 0 | P18: 0 | Q18: 27134
A19: ='INVOICE 1'!A19 -> Indirect Costs | B19: ='INVOICE 10'!B19 -> 16000 | C19: ='INVOICE 10'!C19 -> 27058 | D19: ='INVOICE 10'!D19 -> 0 | E19: =SUM(B19:D19) -> 43058 | F19: =SUM('INVOICE 10'!F19,'INVOICE 10'!J19) -> 4950 | G19: =SUM('INVOICE 10'!G19,'INVOICE 10'!K19) -> 21000 | H19: =SUM('INVOICE 10'!H19,'INVOICE 10'!L19) -> 0 | I19: =SUM(F19:H19) -> 25950 | J19: 0 | K19: 0 | L19: 0 | M19: =SUM(J19:L19) -> 0 | N19: =B19-F19-J19 -> 11050 | O19: =C19-G19-K19 -> 6058 | P19: =D19-H19-L19 -> 0 | Q19: =SUM(N19:P19) -> 17108
A20: ='INVOICE 1'!A20 -> Fixed Assets/Equipment | B20: ='INVOICE 10'!B20 -> 0 | C20: ='INVOICE 10'!C20 -> 0 | D20: ='INVOICE 10'!D20 -> 0 | E20: 0 | F20: =SUM('INVOICE 10'!F20,'INVOICE 10'!J20) -> 0 | G20: =SUM('INVOICE 10'!G20,'INVOICE 10'!K20) -> 0 | H20: =SUM('INVOICE 10'!H20,'INVOICE 10'!L20) -> 0 | I20: 0 | J20: 0 | K20: 0 | L20: 0 | M20: 0 | N20: 0 | O20: 0 | P20: 0 | Q20: 0
A21: ='INVOICE 1'!A21 -> Project Evaluation | B21: ='INVOICE 10'!B21 -> 0 | C21: ='INVOICE 10'!C21 -> 0 | D21: ='INVOICE 10'!D21 -> 10000 | E21: 10000 | F21: =SUM('INVOICE 10'!F21,'INVOICE 10'!J21) -> 0 | G21: =SUM('INVOICE 10'!G21,'INVOICE 10'!K21) -> 0 | H21: =SUM('INVOICE 10'!H21,'INVOICE 10'!L21) -> 0 | I21: 0 | J21: 0 | K21: 0 | L21: 0 | M21: 0 | N21: 0 | O21: 0 | P21: 10000 | Q21: 10000
A22: ='INVOICE 1'!A22 -> Other | B22: ='INVOICE 10'!B22 -> 8780 | C22: ='INVOICE 10'!C22 -> 0 | D22: ='INVOICE 10'!D22 -> 197699 | E22: 206479 | F22: =SUM('INVOICE 10'!F22,'INVOICE 10'!J22) -> 3625 | G22: =SUM('INVOICE 10'!G22,'INVOICE 10'!K22) -> 0 | H22: =SUM('INVOICE 10'!H22,'INVOICE 10'!L22) -> 1264 | I22: 4889 | J22: 0 | K22: 0 | L22: 0 | M22: 0 | N22: 5155 | O22: 0 | P22: 196435 | Q22: 201590
A23: TOTAL | B23: =SUM(B15:B22) -> 497462 | C23: 297642 | D23: 207699 | E23: 1002803 | F23: 323780 | G23: 118161 | H23: 1264 | I23: 443205 | J23: 0 | K23: 0 | L23: 0 | M23: 0 | N23: 173682 | O23: 179481 | P23: 206435 | Q23: 559598
A25: Project Income | D25: Income reported to date | E25: ='INVOICE 1'!E25+'INVOICE 11'!L25 -> 0 | H25: Prior allocated income | I25: 0 | K25: This Period | L25: 0 | P25: Unallocated income balance | Q25: =E25-I25 -> 0
C27: Grant funds expended to date: | E27: =SUM(F23,J23) -> 323780 | I27: Grant funds claimed this period: | J27: =J23 -> 0 | O27: Percentage Grant $$ expended to date: | Q27: =E27/B23 -> 0.6508637846
C28: Cash match to date: | E28: =SUM(G23,K23) -> 118161 | O28: % of Total Obligated Cash Match to date: | Q28: =E28/C23 -> 0.3969903441
C29: In-kind match to date: | E29: =SUM(H23,L23) -> 1264 | O29: % of Total Obligated In-kind Match to date: | Q29: =E29/D23 -> 0.00608572983
E31: Expenditure Descriptions - Units / $ Amounts | O31: Comments
A32: Salaries & Benefits | B32: Grant Funds | D32: =J15 -> 0
B33: Cash Match | D33: =K15 -> 0
B34: In-kind Match | D34: =K16 -> 0
A35: Services & Supplies | B35: Grant Funds | D35: =J16 -> 0
B36: Cash Match | D36: =K16 -> 0
B37: In-kind Match | D37: =L16 -> 0
A38: Prof Services / Public Agency Subcontracts | B38: Grant Funds | D38: =J17 -> 0
B39: Cash Match | D39: =K17 -> 0
B40: In-kind Match | D40: =L17 -> 0
A41: CBO Subcontracts | B41: Grant Funds | D41: =J18 -> 0
B42: Cash Match | D42: =K18 -> 0
B43: In-kind Match | D43: =L18 -> 0
A44: Indirect Costs | B44: Grant Funds | D44: =J20 -> 0
B45: Cash Match | D45: =K20 -> 0
B46: In-kind Match | D46: =L20 -> 0
A47: Equip/Fixed Assets | B47: Grant Funds | D47: =J21 -> 0
B48: Cash Match | D48: =K21 -> 0
B49: In-kind Match | D49: =-L21 -> 0
A50: Project Evaluation | B50: Grant Funds | D50: =J22 -> 0
B51: Cash Match | D51: =K22 -> 0
B52: In-kind Match | D52: =L22 -> 0
A53: Other | B53: Grant Funds | D53: =J19 -> 0
B54: Cash Match | D54: =K19 -> 0
B55: In-kind Match | D55: =L19 -> 0
A56: Project Income | D56: =M25 -> 0
A57: PERSON PREPARING REPORT | F57: AUTHORIZED FINANCIAL OFFICER | N57: BSCC Supplier Data - Internal Use Only
F58: By checking the box below, I hereby certify that I am the authorized financial officer of the herein named agency. I further certify that I have not violated any of the provisions of Section 1090 of the Government Code in incurring the expenditures reported in this invoice, nor in any other way; that Sections 1090 through 1096 of the Government Code will not be violated in any way in the expenditure of funds pursuant to this invoice; that statement of funds above is true, correct, and in accordance with program provisions in all respects; and that all expenditures submitted after the expiration date of this contract are for the purpose of substantiating obligations legally incurred during the contract period. Furthermore, by submitting this invoice, I acknowledge that it must adhere to all of the requirements in the BSCC Grant Administration Guide, including any updates to the Guide during the term of the grant agreement.
N59: ='INVOICE 10'!N59:Q59 -> 0000042790
A60: Name, Title | N60: ='INVOICE 1'!N60:Q60 -> Supplier ID
N61: ='INVOICE 10'!N61:Q61 -> CITY OF PASADENA PUBLIC HEALTH DEPARTMENT
A62: Phone | N62: ='INVOICE 1'!N62:Q62 -> Supplier Name
N63: ='INVOICE 10'!N63:Q63 -> 1845 N FAIR OAKS AVE
A64: Email | N64: ='INVOICE 1'!N64:Q64 -> Address Line 1
N65: ='INVOICE 10'!N65:Q65 -> PASADENA, CA 91103
A66: Date | N66: ='INVOICE 1'!N66:Q66 -> Address Line 2
F69: Name, Title
F71: Phone
F73: Date
A75: BSCC USE ONLY
A76: Date Received: | I76: Approved By: | O76: Date:
K77: BSCC Field Representative

Sheet INVOICE 12
A1: STATE OF CALIFORNIA | N1: Purchase Authority | O1: BSCC 5227
A2: BOARD OF STATE AND COMMUNITY CORRECTIONS | N2: Purchase Order: | O2: 5227-0000002335 | Q2: ='INVOICE 1'!Q2 -> 0
A3: Financial Invoice Form: BSCC 201 (Revised 04/2020)
A5: Program: | B5: ='INVOICE 1'!B5 -> Program Name | M5: Please Note: The California State Controller's Office will send all checks directly to the address listed in the "BSCC Vendor Data" section at the bottom of this invoice.
A7: Grantee: | B7: ='INVOICE 1'!B7 -> City of Pasadena Public Health Department | G7: Lead Public Agency: | I7: ='INVOICE 1'!I7 -> City of Pasadena Public Health Department
A9: Contract #: | B9: ='INVOICE 1'!B9 -> 853-17 | E9: Term: | F9: ='INVOICE 1'!F9 -> 2018-05-01 | G9: TO | I9: ='INVOICE 1'!I9 -> 2021-08-15 | N9: Invoicing Frequency | O9: ='INVOICE 1'!O9 -> Quarterly
A11: Invoice #: | B11: 12 CALVIP 18 | E11: Reporting Period: | F11: 2021-01-01 | G11: TO | I11: 2021-03-31 | J11: Due: | K11: 2021-05-14 | N11: Final Invoice (Y/N): | O11: No
A13: Line Items | B13: Budget | F13: Prior Expenditures | J13: This Reporting Period | N13: Balance
B14: Grant Funds | C14: Cash Match | D14: In-kind Match | E14: TOTAL | F14: Grant Funds | G14: Cash Match | H14: In-kind Match | I14: TOTAL | J14: Grant Funds | K14: Cash Match | L14: In-kind Match | M14: TOTAL | N14: Grant Funds | O14: Cash Match | P14: In-kind Match | Q14: TOTAL
A15: ='INVOICE 1'!A15 -> Salaries & Benefits | B15: ='INVOICE 11'!B15 -> 160000 | C15: ='INVOICE 11'!C15 -> 270584 | D15: ='INVOICE 11'!D15 -> 0 | E15: =SUM(B15:D15) -> 430584 | F15: =SUM('INVOICE 11'!F15,'INVOICE 11'!J15) -> 49227 | G15: =SUM('INVOICE 11'!G15,'INVOICE 11'!K15) -> 97161 | H15: =SUM('INVOICE 11'!H15,'INVOICE 11'!L15) -> 0 | I15: =SUM(F15:H15) -> 146388 | J15: 0 | K15: 0 | L15: 0 | M15: =SUM(J15:L15) -> 0 | N15: =B15-F15-J15 -> 110773 | O15: 173423 | P15: 0 | Q15: =SUM(N15:P15) -> 284196
A16: ='INVOICE 1'!A16 -> Services & Supplies | B16: ='INVOICE 11'!B16 -> 14325 | C16: ='INVOICE 11'!C16 -> 0 | D16: ='INVOICE 11'!D16 -> 0 | E16: =SUM(B16:D16) -> 14325 | F16: =SUM('INVOICE 11'!F16,'INVOICE 11'!J16) -> 4537 | G16: =SUM('INVOICE 11'!G16,'INVOICE 11'!K16) -> 0 | H16: =SUM('INVOICE 11'!H16,'INVOICE 11'!L16) -> 0 | I16: =SUM(F16:H16) -> 4537 | J16: 0 | K16: 0 | L16: 0 | M16: =SUM(J16:L16) -> 0 | N16: 9788 | O16: 0 | P16: 0 | Q16: =SUM(N16:P16) -> 9788
A17: ='INVOICE 1'!A17 -> Prof Services / Public Agency Subcontracts | B17: ='INVOICE 11'!B17 -> 49626 | C17: ='INVOICE 11'!C17 -> 0 | D17: ='INVOICE 11'!D17 -> 0 | E17: 49626 | F17: =SUM('INVOICE 11'!F17,'INVOICE 11'!J17) -> 39844 | G17: =SUM('INVOICE 11'!G17,'INVOICE 11'!K17) -> 0 | H17: =SUM('INVOICE 11'!H17,'INVOICE 11'!L17) -> 0 | I17: 39844 | J17: 0 | K17: 0 | L17: 0 | M17: 0 | N17: 9782 | O17: 0 | P17: 0 | Q17: 9782
A18: ='INVOICE 1'!A18 -> CBO Subcontracts | B18: ='INVOICE 11'!B18 -> 248731 | C18: ='INVOICE 11'!C18 -> 0 | D18: ='INVOICE 11'!D18 -> 0 | E18: 248731 | F18: =SUM('INVOICE 11'!F18,'INVOICE 11'!J18) -> 221597 | G18: =SUM('INVOICE 11'!G18,'INVOICE 11'!K18) -> 0 | H18: =SUM('INVOICE 11'!H18,'INVOICE 11'!L18) -> 0 | I18: 221597 | J18: 0 | K18: 0 | L18: 0 | M18: 0 | N18: 27134 | O18: 0 | P18: 0 | Q18: 27134
A19: ='INVOICE 1'!A19 -> Indirect Costs | B19: ='INVOICE 11'!B19 -> 16000 | C19: ='INVOICE 11'!C19 -> 27058 | D19: ='INVOICE 11'!D19 -> 0 | E19: =SUM(B19:D19) -> 43058 | F19: =SUM('INVOICE 11'!F19,'INVOICE 11'!J19) -> 4950 | G19: =SUM('INVOICE 11'!G19,'INVOICE 11'!K19) -> 21000 | H19: =SUM('INVOICE 11'!H19,'INVOICE 11'!L19) -> 0 | I19: =SUM(F19:H19) -> 25950 | J19: 0 | K19: 0 | L19: 0 | M19: =SUM(J19:L19) -> 0 | N19: =B19-F19-J19 -> 11050 | O19: =C19-G19-K19 -> 6058 | P19: =D19-H19-L19 -> 0 | Q19: =SUM(N19:P19) -> 17108
A20: ='INVOICE 1'!A20 -> Fixed Assets/Equipment | B20: ='INVOICE 11'!B20 -> 0 | C20: ='INVOICE 11'!C20 -> 0 | D20: ='INVOICE 11'!D20 -> 0 | E20: 0 | F20: =SUM('INVOICE 11'!F20,'INVOICE 11'!J20) -> 0 | G20: =SUM('INVOICE 11'!G20,'INVOICE 11'!K20) -> 0 | H20: =SUM('INVOICE 11'!H20,'INVOICE 11'!L20) -> 0 | I20: 0 | J20: 0 | K20: 0 | L20: 0 | M20: 0 | N20: 0 | O20: 0 | P20: 0 | Q20: 0
A21: ='INVOICE 1'!A21 -> Project Evaluation | B21: ='INVOICE 11'!B21 -> 0 | C21: ='INVOICE 11'!C21 -> 0 | D21: ='INVOICE 11'!D21 -> 10000 | E21: 10000 | F21: =SUM('INVOICE 11'!F21,'INVOICE 11'!J21) -> 0 | G21: =SUM('INVOICE 11'!G21,'INVOICE 11'!K21) -> 0 | H21: =SUM('INVOICE 11'!H21,'INVOICE 11'!L21) -> 0 | I21: 0 | J21: 0 | K21: 0 | L21: 0 | M21: 0 | N21: 0 | O21: 0 | P21: 10000 | Q21: 10000
A22: ='INVOICE 1'!A22 -> Other | B22: ='INVOICE 11'!B22 -> 8780 | C22: ='INVOICE 11'!C22 -> 0 | D22: ='INVOICE 11'!D22 -> 197699 | E22: 206479 | F22: =SUM('INVOICE 11'!F22,'INVOICE 11'!J22) -> 3625 | G22: =SUM('INVOICE 11'!G22,'INVOICE 11'!K22) -> 0 | H22: =SUM('INVOICE 11'!H22,'INVOICE 11'!L22) -> 1264 | I22: 4889 | J22: 0 | K22: 0 | L22: 0 | M22: 0 | N22: 5155 | O22: 0 | P22: 196435 | Q22: 201590
A23: TOTAL | B23: =SUM(B15:B22) -> 497462 | C23: 297642 | D23: 207699 | E23: 1002803 | F23: 323780 | G23: 118161 | H23: 1264 | I23: 443205 | J23: 0 | K23: 0 | L23: 0 | M23: 0 | N23: 173682 | O23: 179481 | P23: 206435 | Q23: 559598
A25: Project Income | D25: Income reported to date | E25: ='INVOICE 1'!E25+'INVOICE 12'!L25 -> 0 | H25: Prior allocated income | I25: 0 | K25: This Period | L25: 0 | P25: Unallocated income balance | Q25: =E25-I25 -> 0
C27: Grant funds expended to date: | E27: =SUM(F23,J23) -> 323780 | I27: Grant funds claimed this period: | J27: =J23 -> 0 | O27: Percentage Grant $$ expended to date: | Q27: =E27/B23 -> 0.6508637846
C28: Cash match to date: | E28: =SUM(G23,K23) -> 118161 | O28: % of Total Obligated Cash Match to date: | Q28: =E28/C23 -> 0.3969903441
C29: In-kind match to date: | E29: =SUM(H23,L23) -> 1264 | O29: % of Total Obligated In-kind Match to date: | Q29: =E29/D23 -> 0.00608572983
E31: Expenditure Descriptions - Units / $ Amounts | O31: Comments
A32: Salaries & Benefits | B32: Grant Funds | D32: =J15 -> 0
B33: Cash Match | D33: =K15 -> 0
B34: In-kind Match | D34: =K16 -> 0
A35: Services & Supplies | B35: Grant Funds | D35: =J16 -> 0
B36: Cash Match | D36: =K16 -> 0
B37: In-kind Match | D37: =L16 -> 0
A38: Prof Services / Public Agency Subcontracts | B38: Grant Funds | D38: =J17 -> 0
B39: Cash Match | D39: =K17 -> 0
B40: In-kind Match | D40: =L17 -> 0
A41: CBO Subcontracts | B41: Grant Funds | D41: =J18 -> 0
B42: Cash Match | D42: =K18 -> 0
B43: In-kind Match | D43: =L18 -> 0
A44: Indirect Costs | B44: Grant Funds | D44: =J20 -> 0
B45: Cash Match | D45: =K20 -> 0
B46: In-kind Match | D46: =L20 -> 0
A47: Equip/Fixed Assets | B47: Grant Funds | D47: =J21 -> 0
B48: Cash Match | D48: =K21 -> 0
B49: In-kind Match | D49: =-L21 -> 0
A50: Project Evaluation | B50: Grant Funds | D50: =J22 -> 0
B51: Cash Match | D51: =K22 -> 0
B52: In-kind Match | D52: =L22 -> 0
A53: Other | B53: Grant Funds | D53: =J19 -> 0
B54: Cash Match | D54: =K19 -> 0
B55: In-kind Match | D55: =L19 -> 0
A56: Project Income | D56: =M25 -> 0
A57: PERSON PREPARING REPORT | F57: AUTHORIZED FINANCIAL OFFICER | N57: BSCC Supplier Data - Internal Use Only
F58: By checking the box below, I hereby certify that I am the authorized financial officer of the herein named agency. I further certify that I have not violated any of the provisions of Section 1090 of the Government Code in incurring the expenditures reported in this invoice, nor in any other way; that Sections 1090 through 1096 of the Government Code will not be violated in any way in the expenditure of funds pursuant to this invoice; that statement of funds above is true, correct, and in accordance with program provisions in all respects; and that all expenditures submitted after the expiration date of this contract are for the purpose of substantiating obligations legally incurred during the contract period. Furthermore, by submitting this invoice, I acknowledge that it must adhere to all of the requirements in the BSCC Grant Administration Guide, including any updates to the Guide during the term of the grant agreement.
N59: ='INVOICE 11'!N59:Q59 -> 0000042790
A60: Name, Title | N60: ='INVOICE 1'!N60:Q60 -> Supplier ID
N61: ='INVOICE 11'!N61:Q61 -> CITY OF PASADENA PUBLIC HEALTH DEPARTMENT
A62: Phone | N62: ='INVOICE 1'!N62:Q62 -> Supplier Name
N63: ='INVOICE 11'!N63:Q63 -> 1845 N FAIR OAKS AVE
A64: Email | N64: ='INVOICE 1'!N64:Q64 -> Address Line 1
N65: ='INVOICE 11'!N65:Q65 -> PASADENA, CA 91103
A66: Date | N66: ='INVOICE 1'!N66:Q66 -> Address Line 2
F69: Name, Title
F71: Phone
F73: Date
A75: BSCC USE ONLY
A76: Date Received: | I76: Approved By: | O76: Date:
K77: BSCC Field Representative

Sheet INVOICE 13
A1: STATE OF CALIFORNIA | N1: Purchase Authority | O1: BSCC 5227
A2: BOARD OF STATE AND COMMUNITY CORRECTIONS | N2: Purchase Order: | O2: 5227-0000002335 | Q2: ='INVOICE 1'!Q2 -> 0
A3: Financial Invoice Form: BSCC 201 (Revised 04/2020)
A5: Program: | B5: ='INVOICE 1'!B5 -> Program Name | M5: Please Note: The California State Controller's Office will send all checks directly to the address listed in the "BSCC Vendor Data" section at the bottom of this invoice.
A7: Grantee: | B7: ='INVOICE 1'!B7 -> City of Pasadena Public Health Department | G7: Lead Public Agency: | I7: ='INVOICE 1'!I7 -> City of Pasadena Public Health Department
A9: Contract #: | B9: ='INVOICE 1'!B9 -> 853-17 | E9: Term: | F9: ='INVOICE 1'!F9 -> 2018-05-01 | G9: TO | I9: ='INVOICE 1'!I9 -> 2021-08-15 | N9: Invoicing Frequency | O9: ='INVOICE 1'!O9 -> Quarterly
A11: Invoice #: | B11: 13 CALVIP 18 | E11: Reporting Period: | F11: 2021-04-01 | G11: TO | I11: 2021-04-30 | J11: Due: | K11: 2021-06-15 | N11: Final Invoice (Y/N): | O11: Yes
A13: Line Items | B13: Budget | F13: Prior Expenditures | J13: This Reporting Period | N13: Balance
B14: Grant Funds | C14: Cash Match | D14: In-kind Match | E14: TOTAL | F14: Grant Funds | G14: Cash Match | H14: In-kind Match | I14: TOTAL | J14: Grant Funds | K14: Cash Match | L14: In-kind Match | M14: TOTAL | N14: Grant Funds | O14: Cash Match | P14: In-kind Match | Q14: TOTAL
A15: ='INVOICE 1'!A15 -> Salaries & Benefits | B15: ='INVOICE 12'!B15 -> 160000 | C15: ='INVOICE 12'!C15 -> 270584 | D15: ='INVOICE 12'!D15 -> 0 | E15: =SUM(B15:D15) -> 430584 | F15: =SUM('INVOICE 12'!F15,'INVOICE 12'!J15) -> 49227 | G15: =SUM('INVOICE 12'!G15,'INVOICE 12'!K15) -> 97161 | H15: =SUM('INVOICE 12'!H15,'INVOICE 12'!L15) -> 0 | I15: =SUM(F15:H15) -> 146388 | J15: 0 | K15: 0 | L15: 0 | M15: =SUM(J15:L15) -> 0 | N15: =B15-F15-J15 -> 110773 | O15: 173423 | P15: 0 | Q15: =SUM(N15:P15) -> 284196
A16: ='INVOICE 1'!A16 -> Services & Supplies | B16: ='INVOICE 12'!B16 -> 14325 | C16: ='INVOICE 12'!C16 -> 0 | D16: ='INVOICE 12'!D16 -> 0 | E16: =SUM(B16:D16) -> 14325 | F16: =SUM('INVOICE 12'!F16,'INVOICE 12'!J16) -> 4537 | G16: =SUM('INVOICE 12'!G16,'INVOICE 12'!K16) -> 0 | H16: =SUM('INVOICE 12'!H16,'INVOICE 12'!L16) -> 0 | I16: =SUM(F16:H16) -> 4537 | J16: 0 | K16: 0 | L16: 0 | M16: =SUM(J16:L16) -> 0 | N16: 9788 | O16: 0 | P16: 0 | Q16: =SUM(N16:P16) -> 9788
A17: ='INVOICE 1'!A17 -> Prof Services / Public Agency Subcontracts | B17: ='INVOICE 12'!B17 -> 49626 | C17: ='INVOICE 12'!C17 -> 0 | D17: ='INVOICE 12'!D17 -> 0 | E17: 49626 | F17: =SUM('INVOICE 12'!F17,'INVOICE 12'!J17) -> 39844 | G17: =SUM('INVOICE 12'!G17,'INVOICE 12'!K17) -> 0 | H17: =SUM('INVOICE 12'!H17,'INVOICE 12'!L17) -> 0 | I17: 39844 | J17: 0 | K17: 0 | L17: 0 | M17: 0 | N17: 9782 | O17: 0 | P17: 0 | Q17: 9782
A18: ='INVOICE 1'!A18 -> CBO Subcontracts | B18: ='INVOICE 12'!B18 -> 248731 | C18: ='INVOICE 12'!C18 -> 0 | D18: ='INVOICE 12'!D18 -> 0 | E18: 248731 | F18: =SUM('INVOICE 12'!F18,'INVOICE 12'!J18) -> 221597 | G18: =SUM('INVOICE 12'!G18,'INVOICE 12'!K18) -> 0 | H18: =SUM('INVOICE 12'!H18,'INVOICE 12'!L18) -> 0 | I18: 221597 | J18: 0 | K18: 0 | L18: 0 | M18: 0 | N18: 27134 | O18: 0 | P18: 0 | Q18: 27134
A19: ='INVOICE 1'!A19 -> Indirect Costs | B19: ='INVOICE 12'!B19 -> 16000 | C19: ='INVOICE 12'!C19 -> 27058 | D19: ='INVOICE 12'!D19 -> 0 | E19: =SUM(B19:D19) -> 43058 | F19: =SUM('INVOICE 12'!F19,'INVOICE 12'!J19) -> 4950 | G19: =SUM('INVOICE 12'!G19,'INVOICE 12'!K19) -> 21000 | H19: =SUM('INVOICE 12'!H19,'INVOICE 12'!L19) -> 0 | I19: =SUM(F19:H19) -> 25950 | J19: 0 | K19: 0 | L19: 0 | M19: =SUM(J19:L19) -> 0 | N19: =B19-F19-J19 -> 11050 | O19: =C19-G19-K19 -> 6058 | P19: =D19-H19-L19 -> 0 | Q19: =SUM(N19:P19) -> 17108
A20: ='INVOICE 1'!A20 -> Fixed Assets/Equipment | B20: ='INVOICE 12'!B20 -> 0 | C20: ='INVOICE 12'!C20 -> 0 | D20: ='INVOICE 12'!D20 -> 0 | E20: 0 | F20: =SUM('INVOICE 12'!F20,'INVOICE 12'!J20) -> 0 | G20: =SUM('INVOICE 12'!G20,'INVOICE 12'!K20) -> 0 | H20: =SUM('INVOICE 12'!H20,'INVOICE 12'!L20) -> 0 | I20: 0 | J20: 0 | K20: 0 | L20: 0 | M20: 0 | N20: 0 | O20: 0 | P20: 0 | Q20: 0
A21: ='INVOICE 1'!A21 -> Project Evaluation | B21: ='INVOICE 12'!B21 -> 0 | C21: ='INVOICE 12'!C21 -> 0 | D21: ='INVOICE 12'!D21 -> 10000 | E21: 10000 | F21: =SUM('INVOICE 12'!F21,'INVOICE 12'!J21) -> 0 | G21: =SUM('INVOICE 12'!G21,'INVOICE 12'!K21) -> 0 | H21: =SUM('INVOICE 12'!H21,'INVOICE 12'!L21) -> 0 | I21: 0 | J21: 0 | K21: 0 | L21: 0 | M21: 0 | N21: 0 | O21: 0 | P21: 10000 | Q21: 10000
A22: ='INVOICE 1'!A22 -> Other | B22: ='INVOICE 12'!B22 -> 8780 | C22: ='INVOICE 12'!C22 -> 0 | D22: ='INVOICE 12'!D22 -> 197699 | E22: 206479 | F22: =SUM('INVOICE 12'!F22,'INVOICE 12'!J22) -> 3625 | G22: =SUM('INVOICE 12'!G22,'INVOICE 12'!K22) -> 0 | H22: =SUM('INVOICE 12'!H22,'INVOICE 12'!L22) -> 1264 | I22: 4889 | J22: 0 | K22: 0 | L22: 0 | M22: 0 | N22: 5155 | O22: 0 | P22: 196435 | Q22: 201590
A23: TOTAL | B23: =SUM(B15:B22) -> 497462 | C23: 297642 | D23: 207699 | E23: 1002803 | F23: 323780 | G23: 118161 | H23: 1264 | I23: 443205 | J23: 0 | K23: 0 | L23: 0 | M23: 0 | N23: 173682 | O23: 179481 | P23: 206435 | Q23: 559598
A25: Project Income | D25: Income reported to date | E25: ='INVOICE 1'!E25+'INVOICE 13'!L25 -> 0 | H25: Prior allocated income | I25: 0 | K25: This Period | L25: 0 | P25: Unallocated income balance | Q25: =E25-I25 -> 0
C27: Grant funds expended to date: | E27: =SUM(F23,J23) -> 323780 | I27: Grant funds claimed this period: | J27: =J23 -> 0 | O27: Percentage Grant $$ expended to date: | Q27: =E27/B23 -> 0.6508637846
C28: Cash match to date: | E28: =SUM(G23,K23) -> 118161 | O28: % of Total Obligated Cash Match to date: | Q28: =E28/C23 -> 0.3969903441
C29: In-kind match to date: | E29: =SUM(H23,L23) -> 1264 | O29: % of Total Obligated In-kind Match to date: | Q29: =E29/D23 -> 0.00608572983
E31: Expenditure Descriptions - Units / $ Amounts | O31: Comments
A32: Salaries & Benefits | B32: Grant Funds | D32: =J15 -> 0
B33: Cash Match | D33: =K15 -> 0
B34: In-kind Match | D34: =K16 -> 0
A35: Services & Supplies | B35: Grant Funds | D35: =J16 -> 0
B36: Cash Match | D36: =K16 -> 0
B37: In-kind Match | D37: =L16 -> 0
A38: Prof Services / Public Agency Subcontracts | B38: Grant Funds | D38: =J17 -> 0
B39: Cash Match | D39: =K17 -> 0
B40: In-kind Match | D40: =L17 -> 0
A41: CBO Subcontracts | B41: Grant Funds | D41: =J18 -> 0
B42: Cash Match | D42: =K18 -> 0
B43: In-kind Match | D43: =L18 -> 0
A44: Indirect Costs | B44: Grant Funds | D44: =J20 -> 0
B45: Cash Match | D45: =K20 -> 0
B46: In-kind Match | D46: =L20 -> 0
A47: Equip/Fixed Assets | B47: Grant Funds | D47: =J21 -> 0
B48: Cash Match | D48: =K21 -> 0
B49: In-kind Match | D49: =-L21 -> 0
A50: Project Evaluation | B50: Grant Funds | D50: =J22 -> 0
B51: Cash Match | D51: =K22 -> 0
B52: In-kind Match | D52: =L22 -> 0
A53: Other | B53: Grant Funds | D53: =J19 -> 0
B54: Cash Match | D54: =K19 -> 0
B55: In-kind Match | D55: =L19 -> 0
A56: Project Income | D56: =M25 -> 0
A57: PERSON PREPARING REPORT | F57: AUTHORIZED FINANCIAL OFFICER | N57: BSCC Supplier Data - Internal Use Only
F58: By checking the box below, I hereby certify that I am the authorized financial officer of the herein named agency. I further certify that I have not violated any of the provisions of Section 1090 of the Government Code in incurring the expenditures reported in this invoice, nor in any other way; that Sections 1090 through 1096 of the Government Code will not be violated in any way in the expenditure of funds pursuant to this invoice; that statement of funds above is true, correct, and in accordance with program provisions in all respects; and that all expenditures submitted after the expiration date of this contract are for the purpose of substantiating obligations legally incurred during the contract period. Furthermore, by submitting this invoice, I acknowledge that it must adhere to all of the requirements in the BSCC Grant Administration Guide, including any updates to the Guide during the term of the grant agreement.
N59: ='INVOICE 12'!N59:Q59 -> 0000042790
A60: Name, Title | N60: ='INVOICE 1'!N60:Q60 -> Supplier ID
N61: ='INVOICE 12'!N61:Q61 -> CITY OF PASADENA PUBLIC HEALTH DEPARTMENT
A62: Phone | N62: ='INVOICE 1'!N62:Q62 -> Supplier Name
N63: ='INVOICE 12'!N63:Q63 -> 1845 N FAIR OAKS AVE
A64: Email | N64: ='INVOICE 1'!N64:Q64 -> Address Line 1
N65: ='INVOICE 12'!N65:Q65 -> PASADENA, CA 91103
A66: Date | N66: ='INVOICE 1'!N66:Q66 -> Address Line 2
F69: Name, Title
F71: Phone
F73: Date
A75: BSCC USE ONLY
A76: Date Received: | I76: Approved By: | O76: Date:
K77: BSCC Field Representative

Sheet INVOICE 14
A1: STATE OF CALIFORNIA | N1: Purchase Authority | O1: BSCC 5227
A2: BOARD OF STATE AND COMMUNITY CORRECTIONS | N2: Purchase Order: | O2: 5227-0000002335 | Q2: ='INVOICE 1'!Q2 -> 0
A3: Financial Invoice Form: BSCC 201 (Revised 04/2020)
A5: Program: | B5: ='INVOICE 1'!B5 -> Program Name | M5: Please Note: The California State Controller's Office will send all checks directly to the address listed in the "BSCC Vendor Data" section at the bottom of this invoice.
A7: Grantee: | B7: ='INVOICE 1'!B7 -> City of Pasadena Public Health Department | G7: Lead Public Agency: | I7: ='INVOICE 1'!I7 -> City of Pasadena Public Health Department
A9: Contract #: | B9: ='INVOICE 1'!B9 -> 853-17 | E9: Term: | F9: ='INVOICE 1'!F9 -> 2018-05-01 | G9: TO | I9: ='INVOICE 1'!I9 -> 2021-08-15 | N9: Invoicing Frequency | O9: ='INVOICE 1'!O9 -> Quarterly
A11: Invoice #: | B11: 14 CALVIP 18 | E11: Reporting Period: | F11: 2021-05-01 | G11: TO | I11: 2021-08-16 | J11: Due: | K11: 2021-06-15 | N11: Final Invoice (Y/N): | O11: Yes
A13: Line Items | B13: Budget | F13: Prior Expenditures | J13: This Reporting Period | N13: Balance
B14: Grant Funds | C14: Cash Match | D14: In-kind Match | E14: TOTAL | F14: Grant Funds | G14: Cash Match | H14: In-kind Match | I14: TOTAL | J14: Grant Funds | K14: Cash Match | L14: In-kind Match | M14: TOTAL | N14: Grant Funds | O14: Cash Match | P14: In-kind Match | Q14: TOTAL
A15: ='INVOICE 1'!A15 -> Salaries & Benefits | B15: ='INVOICE 12'!B15 -> 160000 | C15: ='INVOICE 12'!C15 -> 270584 | D15: ='INVOICE 12'!D15 -> 0 | E15: =SUM(B15:D15) -> 430584 | F15: =SUM('INVOICE 12'!F15,'INVOICE 12'!J15) -> 49227 | G15: =SUM('INVOICE 12'!G15,'INVOICE 12'!K15) -> 97161 | H15: =SUM('INVOICE 12'!H15,'INVOICE 12'!L15) -> 0 | I15: =SUM(F15:H15) -> 146388 | J15: 0 | K15: 0 | L15: 0 | M15: =SUM(J15:L15) -> 0 | N15: =B15-F15-J15 -> 110773 | O15: 173423 | P15: 0 | Q15: =SUM(N15:P15) -> 284196
A16: ='INVOICE 1'!A16 -> Services & Supplies | B16: ='INVOICE 12'!B16 -> 14325 | C16: ='INVOICE 12'!C16 -> 0 | D16: ='INVOICE 12'!D16 -> 0 | E16: =SUM(B16:D16) -> 14325 | F16: =SUM('INVOICE 12'!F16,'INVOICE 12'!J16) -> 4537 | G16: =SUM('INVOICE 12'!G16,'INVOICE 12'!K16) -> 0 | H16: =SUM('INVOICE 12'!H16,'INVOICE 12'!L16) -> 0 | I16: =SUM(F16:H16) -> 4537 | J16: 0 | K16: 0 | L16: 0 | M16: =SUM(J16:L16) -> 0 | N16: 9788 | O16: 0 | P16: 0 | Q16: =SUM(N16:P16) -> 9788
A17: ='INVOICE 1'!A17 -> Prof Services / Public Agency Subcontracts | B17: ='INVOICE 12'!B17 -> 49626 | C17: ='INVOICE 12'!C17 -> 0 | D17: ='INVOICE 12'!D17 -> 0 | E17: 49626 | F17: =SUM('INVOICE 12'!F17,'INVOICE 12'!J17) -> 39844 | G17: =SUM('INVOICE 12'!G17,'INVOICE 12'!K17) -> 0 | H17: =SUM('INVOICE 12'!H17,'INVOICE 12'!L17) -> 0 | I17: 39844 | J17: 0 | K17: 0 | L17: 0 | M17: 0 | N17: 9782 | O17: 0 | P17: 0 | Q17: 9782
A18: ='INVOICE 1'!A18 -> CBO Subcontracts | B18: ='INVOICE 12'!B18 -> 248731 | C18: ='INVOICE 12'!C18 -> 0 | D18: ='INVOICE 12'!D18 -> 0 | E18: 248731 | F18: =SUM('INVOICE 12'!F18,'INVOICE 12'!J18) -> 221597 | G18: =SUM('INVOICE 12'!G18,'INVOICE 12'!K18) -> 0 | H18: =SUM('INVOICE 12'!H18,'INVOICE 12'!L18) -> 0 | I18: 221597 | J18: 0 | K18: 0 | L18: 0 | M18: 0 | N18: 27134 | O18: 0 | P18: 0 | Q18: 27134
A19: ='INVOICE 1'!A19 -> Indirect Costs | B19: ='INVOICE 12'!B19 -> 16000 | C19: ='INVOICE 12'!C19 -> 27058 | D19: ='INVOICE 12'!D19 -> 0 | E19: =SUM(B19:D19) -> 43058 | F19: =SUM('INVOICE 12'!F19,'INVOICE 12'!J19) -> 4950 | G19: =SUM('INVOICE 12'!G19,'INVOICE 12'!K19) -> 21000 | H19: =SUM('INVOICE 12'!H19,'INVOICE 12'!L19) -> 0 | I19: =SUM(F19:H19) -> 25950 | J19: 0 | K19: 0 | L19: 0 | M19: =SUM(J19:L19) -> 0 | N19: =B19-F19-J19 -> 11050 | O19: =C19-G19-K19 -> 6058 | P19: =D19-H19-L19 -> 0 | Q19: =SUM(N19:P19) -> 17108
A20: ='INVOICE 1'!A20 -> Fixed Assets/Equipment | B20: ='INVOICE 12'!B20 -> 0 | C20: ='INVOICE 12'!C20 -> 0 | D20: ='INVOICE 12'!D20 -> 0 | E20: 0 | F20: =SUM('INVOICE 12'!F20,'INVOICE 12'!J20) -> 0 | G20: =SUM('INVOICE 12'!G20,'INVOICE 12'!K20) -> 0 | H20: =SUM('INVOICE 12'!H20,'INVOICE 12'!L20) -> 0 | I20: 0 | J20: 0 | K20: 0 | L20: 0 | M20: 0 | N20: 0 | O20: 0 | P20: 0 | Q20: 0
A21: ='INVOICE 1'!A21 -> Project Evaluation | B21: ='INVOICE 12'!B21 -> 0 | C21: ='INVOICE 12'!C21 -> 0 | D21: ='INVOICE 12'!D21 -> 10000 | E21: 10000 | F21: =SUM('INVOICE 12'!F21,'INVOICE 12'!J21) -> 0 | G21: =SUM('INVOICE 12'!G21,'INVOICE 12'!K21) -> 0 | H21: =SUM('INVOICE 12'!H21,'INVOICE 12'!L21) -> 0 | I21: 0 | J21: 0 | K21: 0 | L21: 0 | M21: 0 | N21: 0 | O21: 0 | P21: 10000 | Q21: 10000
A22: ='INVOICE 1'!A22 -> Other | B22: ='INVOICE 12'!B22 -> 8780 | C22: ='INVOICE 12'!C22 -> 0 | D22: ='INVOICE 12'!D22 -> 197699 | E22: 206479 | F22: =SUM('INVOICE 12'!F22,'INVOICE 12'!J22) -> 3625 | G22: =SUM('INVOICE 12'!G22,'INVOICE 12'!K22) -> 0 | H22: =SUM('INVOICE 12'!H22,'INVOICE 12'!L22) -> 1264 | I22: 4889 | J22: 0 | K22: 0 | L22: 0 | M22: 0 | N22: 5155 | O22: 0 | P22: 196435 | Q22: 201590
A23: TOTAL | B23: =SUM(B15:B22) -> 497462 | C23: 297642 | D23: 207699 | E23: 1002803 | F23: 323780 | G23: 118161 | H23: 1264 | I23: 443205 | J23: 0 | K23: 0 | L23: 0 | M23: 0 | N23: 173682 | O23: 179481 | P23: 206435 | Q23: 559598
A25: Project Income | D25: Income reported to date | E25: ='INVOICE 1'!E25+'INVOICE 14'!L25 -> 0 | H25: Prior allocated income | I25: 0 | K25: This Period | L25: 0 | P25: Unallocated income balance | Q25: =E25-I25 -> 0
C27: Grant funds expended to date: | E27: =SUM(F23,J23) -> 323780 | I27: Grant funds claimed this period: | J27: =J23 -> 0 | O27: Percentage Grant $$ expended to date: | Q27: =E27/B23 -> 0.6508637846
C28: Cash match to date: | E28: =SUM(G23,K23) -> 118161 | O28: % of Total Obligated Cash Match to date: | Q28: =E28/C23 -> 0.3969903441
C29: In-kind match to date: | E29: =SUM(H23,L23) -> 1264 | O29: % of Total Obligated In-kind Match to date: | Q29: =E29/D23 -> 0.00608572983
E31: Expenditure Descriptions - Units / $ Amounts | O31: Comments
A32: Salaries & Benefits | B32: Grant Funds | D32: =J15 -> 0
B33: Cash Match | D33: =K15 -> 0
B34: In-kind Match | D34: =K16 -> 0
A35: Services & Supplies | B35: Grant Funds | D35: =J16 -> 0
B36: Cash Match | D36: =K16 -> 0
B37: In-kind Match | D37: =L16 -> 0
A38: Prof Services / Public Agency Subcontracts | B38: Grant Funds | D38: =J17 -> 0
B39: Cash Match | D39: =K17 -> 0
B40: In-kind Match | D40: =L17 -> 0
A41: CBO Subcontracts | B41: Grant Funds | D41: =J18 -> 0
B42: Cash Match | D42: =K18 -> 0
B43: In-kind Match | D43: =L18 -> 0
A44: Indirect Costs | B44: Grant Funds | D44: =J20 -> 0
B45: Cash Match | D45: =K20 -> 0
B46: In-kind Match | D46: =L20 -> 0
A47: Equip/Fixed Assets | B47: Grant Funds | D47: =J21 -> 0
B48: Cash Match | D48: =K21 -> 0
B49: In-kind Match | D49: =-L21 -> 0
A50: Project Evaluation | B50: Grant Funds | D50: =J22 -> 0
B51: Cash Match | D51: =K22 -> 0
B52: In-kind Match | D52: =L22 -> 0
A53: Other | B53: Grant Funds | D53: =J19 -> 0
B54: Cash Match | D54: =K19 -> 0
B55: In-kind Match | D55: =L19 -> 0
A56: Project Income | D56: =M25 -> 0
A57: PERSON PREPARING REPORT | F57: AUTHORIZED FINANCIAL OFFICER | N57: BSCC Supplier Data - Internal Use Only
F58: By checking the box below, I hereby certify that I am the authorized financial officer of the herein named agency. I further certify that I have not violated any of the provisions of Section 1090 of the Government Code in incurring the expenditures reported in this invoice, nor in any other way; that Sections 1090 through 1096 of the Government Code will not be violated in any way in the expenditure of funds pursuant to this invoice; that statement of funds above is true, correct, and in accordance with program provisions in all respects; and that all expenditures submitted after the expiration date of this contract are for the purpose of substantiating obligations legally incurred during the contract period. Furthermore, by submitting this invoice, I acknowledge that it must adhere to all of the requirements in the BSCC Grant Administration Guide, including any updates to the Guide during the term of the grant agreement.
N59: ='INVOICE 12'!N59:Q59 -> 0000042790
A60: Name, Title | N60: ='INVOICE 1'!N60:Q60 -> Supplier ID
N61: ='INVOICE 12'!N61:Q61 -> CITY OF PASADENA PUBLIC HEALTH DEPARTMENT
A62: Phone | N62: ='INVOICE 1'!N62:Q62 -> Supplier Name
N63: ='INVOICE 12'!N63:Q63 -> 1845 N FAIR OAKS AVE
A64: Email | N64: ='INVOICE 1'!N64:Q64 -> Address Line 1
N65: ='INVOICE 12'!N65:Q65 -> PASADENA, CA 91103
A66: Date | N66: ='INVOICE 1'!N66:Q66 -> Address Line 2
F69: Name, Title
F71: Phone
F73: Date
A75: BSCC USE ONLY
A76: Date Received: | I76: Approved By: | O76: Date:
K77: BSCC Field Representative

Sheet Project Budget NARRATIVE
A1: PROJECT BUDGET NARRATIVE & MODIFICATIONS
A2: Salaries and Benefits
A3: 1. SALARIES AND BENEFITS a. Grant Funds Requested: $160,000 Narrative Detail: (see also Grantee Salaries and Benefits Worksheet for back-up) Program Coordinator I: Will provide administrative oversight for the grant and staff. 0.50 FTE in Year 1 (5 months) = $25,589 0.50 FTE in Year 2 (12 months) = $61,414 Total (Years 1 and 2) = $87,003 Social Worker: Responsible for the budget, work plan, and project schedule, assist with implementing project activities, oversee the Community Advocate contractor, coordinate with the project’s Executive Advisors, and coordinate the activities of the Advisory Council. 0.50 FTE in Year 1 (5 months) = $22,587 0.35 FTE in Year 2 (12 months) = $37,947 Total (Years 1 and 2) = $60,534 Case Manager (CSR III): Responsible for providing intensive case management to program youth and families, and connecting them to existing services. 0.20 in Year 1 only (6 months) = $6,453 Grant Administrator: Administrative support for the grant. 0.05 FTE in Year 1 (6 months) = $1,933 0.05 FTE in Year 2 (12 months) = $3,837 Total (Years 1 and 2) = $5,770 b. Cash Match: $270,584 Narrative Detail: (see also Grantee Salaries and Benefits Worksheet for back-up) Case Manager (CSR III): Responsible for providing intensive case management to program youth and families, and connecting them to existing services. 0.80 FTE in Year 1 (6 months) = $25,813 0.80 FTE in Year 2 (6 months) = $25,813 Total Match (Years 1 and 2) = $51,626 Grant Administrator: Administrative support for the grant. 0.10 FTE in Year 1 (6 months) = $3,867 0.05 FTE in Year 2 (12 months) = $3,867 Total Match (Years 1 and 2) = $7,734 Office Assistant: Responsible for ensuring all grant requirements are met, and managing billing to the BSCC and contractor invoicing. 0.05 FTE in Year 1 (12 months) = $3,234 0.05 FTE in Year 2 (12 months) = $3,234 Total Match (Years 1 and 2) = $6,468 PPHD Division Manager: Will provide executive level project monitoring, assist staff with the community outreach component, and assist with overseeing the CBO and project consultants. 0.20 FTE in Year 1 = $40,175 0.20 FTE in Year 2 = $40,175 Total Match (Years 1 and 2) = $80,350 Various Social Work Interns: 1.00 FTE Equivalent in Year 1 = $62,203 1.00 FTE Equivalent in Year 2 = $62,203 Total Match (Years 1 and 2) = $124,406 Benefits (already included in calculations above): The City’s benefits rate of 51.74% covers: vacation and sick leave, Public Employee Retirement System, health and dental insurance, life insurance, Medicare, long-term disability, general liability insurance, workmen’s compensation insurance, and costs for benefits administration.
A4: MOD x APPROVAL DATE: 5/22/19
A7: Services and Supplies Narrative:
A8: 2. SERVICES AND SUPPLIES a. Grant Funds Requested: $14,325 Narrative Detail: General Office Supplies (paper, printer toner/ink, etc.): $2,325 Supplies for Community Events (tents, marketing, logistics, etc.): $1,000/per event x 4 events per year x 2 years = $8,000 Reproduction for the Proposed Violence Intervention and Prevention Campaign (posters, leaflets, handouts, etc.): $2,000 per year x 2 years = $4,000 b. Match: $0 Narrative Detail: Not Applicable
A9: MOD x APPROVAL DATE: 5/22/19
I11: 2021-08-16
A12: Professional Services / Public Agency Subcontracts Narrative
A13: 3. PROFESSIONAL SERVICES a. Grant Funds Requested: $49,626 Narrative Detail: Police Training Consultant to conduct training for City police to improve community-police relations; based on national models such as the U.S. Department of Justice’s “National Initiative for Building Community Trust and Justice” (Why’d You Stop Me?) or other similar programs: $49,626 to conduct multiple trainings for all City officers in Years 1-2. b. Match: $0 Narrative Detail: Not applicable
A14: MOD x APPROVAL DATE: 5/22/19
A17: Community-Based Organizations (CBO) Subcontracts Narrative
A18: 4. COMMUNITY-BASED ORGANIZATION (CBO) SUBCONTRACTS a. Grant Funds Requested: $248,731 (50% of the Grant Funds) Narrative Detail: 1) The PPHD will develop and issue a Request for Qualifications to hire a CBO/FBO that will provide experienced Community Advocates/Violence Interventionists to implement the Credible Messenger Program. Plan is to hire one 1.0 FTE Lead Interventionist and two 0.75 FTE Community Advocates/ Interventionists at approximately $17-20 per hour. Total = $224,731 2) The PPHD will issue a sole source consulting agreement to Live Above the Hype, a program that offers training to police and youth. Year 1: $12,000 (0.60 FTE); Year 2: $12,000 (0.60 FTE) = $24,000. Costs include limited benefits and overhead. b. Match: $0 Narrative Detail: Not applicable
A19: MOD x APPROVAL DATE: 5/22/19
A22: Equipment/Fixed Assets Narrative
A25: Project Evaluation Narrative:
A26: 7. PROJECT EVALUATION a. Grant Funds Requested: $0 Narrative Detail: Not applicable b. Match: $10,000 Narrative Detail: $100/hour x 250 hours/year x 1.4 years = $35,000 total cost (only $10,000 claimed against the grant) A local university will serve as the project evaluator, and their services will be provided in-kind. The college is seeking to engage in local partnerships and build their standing and impact in the community. The evaluator will be responsible for developing the Evaluation Plan, developing all data collection instruments, training staff on data collection methods, conducting the project’s needs assessment (including focus groups and community surveys), and developing Final Evaluation Report.
A27: MOD x APPROVAL DATE: 5/22/19
A30: Other (Travel, Training, etc.) Narrative:
A31: a. Grant Funds Requested: $8,780 Narrative Detail: BSCC Orientation and Training: Travel to Sacramento in Year 1 for Orientation. Costs per person = $878: $300/airfare, $300 lodging for two nights, $150 for ground transportation, and $128 for meals and incidentals. $878/person x 5 persons x 1 trip = $4,390 Staff Training: $1,120. Held in reserve for other staff development and training opportunities. Mileage: 3,000 miles/year x$0.545 x 2 years = $3,270 b. Match: $197,699 Narrative Detail: Leveraged costs and the value of existing programs that will be used by program youth and their families: 1) Project Wraparound: $3,905/family x 20 families/year = $78,100 (based on annual program cost and number of youth currently being served) 2) Mental Health Services & Substance Use Outpatient: estimated value $4,015.94 x 20 youth clients = $80,319 3) Cost to Use the Jackie Robinson Community Center as the Project’s Community-Based Office: $1,220/month (based on square footage for one office) x 24 months = $29,280 4) Design the Violence Intervention and Prevention Campaign: The PPHD’s Youth Advisory Board will develop the campaign brand and multiple designs for posters, leaflets, banners, etc. Valued at $10,000 if contracted to a design firm.
A32: MOD x APPROVAL DATE: 5/22/19
A35: Indirect Costs Narrative:
A36: 5. INDIRECT COSTS a. Grant Funds Requested: $16,000 Narrative Detail: The City of Pasadena’s current indirect rate is 19.449%. The PPHD is proposing a 10% indirect rate (based on salaries and benefits) to stay within the parameters of the CalVIP program’s requirements. A copy of the City’s Cost Allocation Plan is available upon request. b. Cash Match: $27,058 Narrative Detail: See description above.

Sheet INVOICE DUE DATES
A1: Invoice # | B1: Reporting Period | C1: Due Date
A2: Invoice 1 | B2: May 1, 2018 to June 30, 2018 | C2: 2018-08-15
A3: Invoice 2 | B3: July 1, 2018 to September 30, 2018 | C3: 2018-11-15
A4: Invoice 3 | B4: October 1, 2018 to December 31, 2018 | C4: 2018-02-15
A5: Invoice 4 | B5: January 1, 2019 to March 31, 2019 | C5: May 15/2019
A6: Invoice 5 | B6: April 1, 2019 to June 30, 2019 | C6: 2019-08-15
A7: Invoice 6 | B7: July 1, 2019 to September 30, 2019 | C7: 2020-11-15
A8: Invoice 7 | B8: October 1, 2019 to December 31, 2019 | C8: 2020-02-15
A9: Invoice 8 | B9: January 1, 2020 to March 31, 2020 | C9: 2020-05-15
A10: Invoice 9 | B10: April 1, 2020 to June 30, 2020 | C10: 2020-08-15
A11: Invoice 10 | B11: July 1, 2020 to September 30, 2020 | C11: 2020-11-15
A12: Invoice 11 | B12: October 1, 2020 to December 31, 2020 | C12: 2021-02-15
A13: Invoice 12 | B13: January 1, 2021 to March 31, 2021 | C13: 2021-05-14
A14: Invoice 13 | B14: April 1, 2021 to April 30, 2021 | C14: 2021-06-15
A15: Invoice 14 | B15: May 1, 2021 to August 16, 2021* | C15: 2021-06-15
A16: *Note: Only expenditures associated with completion of the Final Local Evaluation Report may be included on this last invoice.

Sheet INSTRUCTIONS
A1: Invoice Workbook
A3: How to Locate the Invoice Workbook
A4: Invoice workbooks are located on the Board of State and Community Corrections (BSCC) website under the Corrections Planning and Grant Programs Division (CPGP) webpage: http://www.bscc.ca.gov/s_correctionsplanningandprograms/.
A6: On the CPGP webpage, locate the CPGP Quick Links and select Grantee Invoicing.
A8: Invoice Workbooks are located under the respective grantee program (e.g., California Violence Intervention and Prevention, Edward Byrne Memorial Justice Assistance Grant, Law Enforcement Assisted Diversion, Proposition 47, etc.).
A10: How to Save the Invoice Workbook
A11: Right click on the file and select Save Link as. This will navigate the grantee to their computer files. The grantee shall navigate to a folder where they would like to save their Invoice Workbook. Do not rename the file. | B11: 14 CALVIP 18 | F11: 2021-05-01 | I11: 2021-08-16
A13: The grantee should then exit the web browser and work directly from the saved file.
A15: Prior to each reporting period, it is the grantee’s responsibility to download and save the Invoice Workbook to their local computer. This will ensure the most current budget information is being used in the Invoice Workbook.
A17: Forms Included in the Invoice Workbook
A18: The Invoice Workbook is an Excel file arranged by worksheet tabs (located along the bottom). The tabs included in the Invoice workbook are listed below:
A19: - Invoice (Form BSCC 201) for each reporting period;
A20: - Modification Request (Form BSCC 223.1 Rev 4/20);
A21: - Project Budget Narrative
A22: - Invoice Due Dates
A23: - Instructions.
A25: Passwords and Formulas in the Invoice Workbook
A26: Each time the grantee opens the Invoice workbook, they will be prompted to enter a password. The password is the grant agreement number (e.g. 990-19, include the -, do not include BSCC).
A28: The Invoice Workbook has specific functions which require macros to be enabled. A macro is a series of commands, such as calculations, that are stored within the document for tasks performed repeatedly. In most cases, Excel will prompt the grantee to enable macros. When this prompt appears, select Enable Editing then Enable Content. Enabling macros for the Invoice Workbook will not compromise the security of the local system nor the security of the agency's network.
A31: Financial Invoice - Form BSCC 201
A33: How to Complete a Financial Invoice
A34: Each Financial Invoice has a separate workbook tab titled, INVOICE #. The Financial Invoice will allow grantees to enter data into the green-shaded fields; all other fields are locked.
A36: The following instructions are for the green-shaded fields the Invoice to be completed by the Grantee.
A38: THIS REPORTING PERIOD
A39: The grantee shall enter the line item expenditures and match contributions incurred during the reporting period.
A40: All expenditures should be rounded to the nearest whole dollar; do not enter decimals.
A41: If an amount entered into a cell is greater than the available balance, an Invalid Dollar error message will appear. If the error is typographical, select Retry and enter the correct amount. If the amount entered is correct, however greater than the available balance, select Cancel and submit a Budget Modification. See, Budget Modification details below.
A43: EXPENDITURE DESCRIPTION
A44: For each dollar amount entered as an expenditure, enter a brief but detailed description. Your expenditures should correlate to Project Budget Narrative, which is listed on its own tab along with approved modification requests.
A46: PERSON PREPARING REPORT
A47: The grantee will designate an individual to prepare invoices. The Authorized Financial Officer cannot prepare invoices.
A48: The individual who prepares invoices will provide their contact information and the date the invoice was prepared under the PERSON PREPARING REPORT section. Then, forward the Invoice Workbook to the Authorized Financial Officer for review and approval.
A50: AUTHORIZED FINANCIAL OFFICER
A51: The Authorized Financial Officer is the Financial Officer listed in the Grant Agreement, STD 213 and/or Grantee Contact Information Sheet, Form 227.
A52: The Authorized Financial Officer cannot be the Project Director or the individual preparing the invoice.
A53: The Authorized Financial Officer must review each line item expenditure and description. Then, approve the invoice by checking the certification box and providing their contact information and the date of approval.
A54: Once the invoice is approved, the Authorized Financial Officer shall email the Invoice Workbook to the any grant inbox: anygrant@bscc.ca.gov. The Authorized Financial Officer is the only authorized party to submit an Invoice Workbook to the BSCC.
A55: Approved Financial Invoice
A56: Once BSCC staff reviews and approves the Financial Invoice, an updated Invoice Workbook will be available on the BSCC website. All approved Financial Invoices will be locked from editing but will be viewable in the Invoice Workbook.
A58: Modification Request - Form BSCC 223.1
A60: Modification Request Requirements
A61: It is the grantees responsibility to receive prior approval from the Field Representative for modifications to the budget or budget narrative. Once the Field Representative approves a modification to the budget or budget narrative, the grantee may complete and submit a Modification Request.
A62: The Modification Request Form allows the grantee to: - Make a change within a line-item change that modifies the grant project narrative, but does not change the total dollar amount of the line item. - Modify the budget by moving funds from one line item to another; or - Allocate earned project income
A64: The grantee must allow a minimum of 10 working days, for the modification form to be submitted and approved by the BSCC prior to completing the next invoice.
A66: How to Complete a Modification Request
A67: Grantees can access the Modification Request form by selecting the tab titled, MODIFICATION REQUEST. For the Modification Request form, grantees can enter data into the yellow-shaded fields; all other fields are locked. First, the grantee must select the purpose of the modification by checking the appropriate box in the yellow section at the top of the form.
A69: The following instructions are for the yellow-shaded fields in the Modification Request to be completed by the Grantee.
A71: Modification Request # and Effective on Invoice #
A72: The grantee shall identify the budget modification number by selecting the next number in sequential order (1 if it's the first) and then identify on which invoice the modification becomes effective.
A74: CHANGES (+/-) and JUSTIFICATION FOR MODIFIED BUDGET
A75: Line-item changes - Complete only the JUSTIFICATION FOR MODIFICATION section below the budget table. The justification must: list the affected line-item(s), detail how the original budget narrative has changed, and explain why the change is necessary. Line-item changes do not change the budget $$. Budget modifications - complete the CHANGES (+/-) section by using a + (plus symbol) followed by a whole dollar amount in the line item that is increasing and using a - (minus symbol) followed by a whole dollar amount in the line item that is decreasing. The TOTAL line must show zeros. In addition, complete the JUSTIFICATION FOR MODIFICATION section. The justification must: list the affected line-item(s), detail how the original budget narrative has changed, and explain why the change is necessary Project Income Allocation - use the Grant Funds column in the CHANGES (+/-) to show how the income will be allocated across line-items. In the Total Allocating box on the Project Income line copy the amount shown in the TOTAL line of Grant Funds column. In addition, complete the JUSTIFICATION FOR MODIFICATION section. The justification must: list the affected line-item(s) and provide narrative detail about how the project income will be used to advance program objectives. (See Grant Administration Guide, Section 13, Project and Other Income)
A77: PERSON PREPARING REPORT
A78: The grantee will designate an individual to prepare Modification Requests. The Authorized Financial Officer cannot prepare Modification Requests.
A79: The individual who prepares the request will provide their contact information and the date the modification was prepared under the PERSON PREPARING REPORT section. Then, forward the Invoice Workbook to the Authorized Financial Officer for review and approval.
A81: AUTHORIZED FINANCIAL OFFICER
A82: The Authorized Financial Officer is the Financial Officer listed in the Grant Agreement, STD 213 and/or Grantee Contact Information Sheet, Form 227.
A83: The Authorized Financial Officer cannot be the Project Director or the individual preparing the modification request.
A84: The Authorized Financial Officer must review each line item change, narrative change and justifications. Then, approve the modification request by checking the certification box and providing their contact information and the date of approval.
A85: Once the modification request is approved, the Authorized Financial Officer shall email the Invoice Workbook to the any grant inbox: anygrant@bscc.ca.gov. The Authorized Financial Officer is the only authorized party to submit it an Invoice Workbook to the BSCC.
A87: Approved Modification Request
A88: Once BSCC staff reviews and approves the Modification Request, the updated Invoice Workbook will be emailed to the Authorized Financial Officer and the individual who prepared the re quest. All approved modifications will be locked from editing but will be viewable in the Invoice Workbook.
